Body Name,Body,Service Area Categorisation,Service Division Categorisation,Responsible Unit,Expenses Type,Detailed Expenses Type,Payment Date,Transaction Number,Payment Amount,Supplier Type,Supplier Name,Supplier Id
Portsmouth City Council,PCC,Cultural and Related Services,Open Spaces,Culture & City Development,Premises-Related Expenditure,Water Services,29/06/2018,6230592,42.34,VENDOR,CASTLE WATER LIMITED,142798
Portsmouth City Council,PCC,Cultural and Related Services,Culture and Heritage,Culture & City Development,Supplies and Services,"Equipment, furniture and materials",20/06/2018,6228793,761,VENDOR,BAY TREE GALLERY,142134
Portsmouth City Council,PCC,Adult Social Care,Support with Memory and Cognition Older People (65 - 74),Adult Services,Premises-Related Expenditure,Cleaning and domestic supplies,19/06/2018,6228237,119.91,VENDOR,CJS PORTSMOUTH LTD,100139
Portsmouth City Council,PCC,Highways and Transport Services,Parking Services,Regeneration,Third Party Payments,Private contractors,07/06/2018,6226491,50,VENDOR,BOARHUNT GROUP LTD,103726
Portsmouth City Council,PCC,Highways and Transport Services,Parking Services,Regeneration,Third Party Payments,Private contractors,07/06/2018,6226491,50,VENDOR,BOARHUNT GROUP LTD,103726
Portsmouth City Council,PCC,Highways and Transport Services,Parking Services,Regeneration,Third Party Payments,Private contractors,07/06/2018,6226491,50,VENDOR,BOARHUNT GROUP LTD,103726
Portsmouth City Council,PCC,Highways and Transport Services,Parking Services,Regeneration,Third Party Payments,Private contractors,07/06/2018,6226491,50,VENDOR,BOARHUNT GROUP LTD,103726
Portsmouth City Council,PCC,Highways and Transport Services,Parking Services,Regeneration,Third Party Payments,Private contractors,07/06/2018,6226491,50,VENDOR,BOARHUNT GROUP LTD,103726
Portsmouth City Council,PCC,Highways and Transport Services,Parking Services,Regeneration,Third Party Payments,Private contractors,07/06/2018,6226491,42.5,VENDOR,BOARHUNT GROUP LTD,103726
Portsmouth City Council,PCC,Highways and Transport Services,Parking Services,Regeneration,Third Party Payments,Private contractors,07/06/2018,6226491,50,VENDOR,BOARHUNT GROUP LTD,103726
Portsmouth City Council,PCC,Highways and Transport Services,Parking Services,Regeneration,Third Party Payments,Private contractors,07/06/2018,6226491,50,VENDOR,BOARHUNT GROUP LTD,103726
Portsmouth City Council,PCC,Highways and Transport Services,Parking Services,Regeneration,Third Party Payments,Private contractors,15/06/2018,6227915,292.5,VENDOR,BOARHUNT GROUP LTD,103726
Portsmouth City Council,PCC,Highways and Transport Services,Parking Services,Regeneration,Third Party Payments,Private contractors,07/06/2018,6226491,90,VENDOR,BOARHUNT GROUP LTD,103726
Portsmouth City Council,PCC,Highways and Transport Services,Parking Services,Regeneration,Third Party Payments,Private contractors,15/06/2018,6227915,42.5,VENDOR,BOARHUNT GROUP LTD,103726
Portsmouth City Council,PCC,Highways and Transport Services,Parking Services,Regeneration,Third Party Payments,Private contractors,15/06/2018,6227915,42.5,VENDOR,BOARHUNT GROUP LTD,103726
Portsmouth City Council,PCC,Highways and Transport Services,Parking Services,Regeneration,Third Party Payments,Private contractors,15/06/2018,6227915,50,VENDOR,BOARHUNT GROUP LTD,103726
Portsmouth City Council,PCC,Highways and Transport Services,Parking Services,Regeneration,Third Party Payments,Private contractors,15/06/2018,6227915,180,VENDOR,BOARHUNT GROUP LTD,103726
Portsmouth City Council,PCC,Highways and Transport Services,Parking Services,Regeneration,Premises-Related Expenditure,Rents,15/06/2018,6227915,1800,VENDOR,BOARHUNT GROUP LTD,103726
Portsmouth City Council,PCC,Highways and Transport Services,Parking Services,Regeneration,Third Party Payments,Private contractors,15/06/2018,6227915,50,VENDOR,BOARHUNT GROUP LTD,103726
Portsmouth City Council,PCC,Highways and Transport Services,Parking Services,Regeneration,Third Party Payments,Private contractors,15/06/2018,6227915,44,VENDOR,BOARHUNT GROUP LTD,103726
Portsmouth City Council,PCC,Highways and Transport Services,Parking Services,Regeneration,Third Party Payments,Private contractors,15/06/2018,6227915,50,VENDOR,BOARHUNT GROUP LTD,103726
Portsmouth City Council,PCC,Highways and Transport Services,Parking Services,Regeneration,Third Party Payments,Private contractors,15/06/2018,6227915,50,VENDOR,BOARHUNT GROUP LTD,103726
Portsmouth City Council,PCC,Highways and Transport Services,Parking Services,Regeneration,Third Party Payments,Private contractors,15/06/2018,6227915,44,VENDOR,BOARHUNT GROUP LTD,103726
Portsmouth City Council,PCC,Highways and Transport Services,Parking Services,Regeneration,Third Party Payments,Private contractors,15/06/2018,6227915,44,VENDOR,BOARHUNT GROUP LTD,103726
Portsmouth City Council,PCC,Highways and Transport Services,Parking Services,Regeneration,Third Party Payments,Private contractors,15/06/2018,6227915,44,VENDOR,BOARHUNT GROUP LTD,103726
Portsmouth City Council,PCC,Highways and Transport Services,Parking Services,Regeneration,Third Party Payments,Private contractors,15/06/2018,6227915,50,VENDOR,BOARHUNT GROUP LTD,103726
Portsmouth City Council,PCC,Highways and Transport Services,Parking Services,Regeneration,Third Party Payments,Private contractors,15/06/2018,6227915,50,VENDOR,BOARHUNT GROUP LTD,103726
Portsmouth City Council,PCC,Highways and Transport Services,Parking Services,Regeneration,Third Party Payments,Private contractors,15/06/2018,6227915,50,VENDOR,BOARHUNT GROUP LTD,103726
Portsmouth City Council,PCC,Highways and Transport Services,Parking Services,Regeneration,Third Party Payments,Private contractors,15/06/2018,6227915,50,VENDOR,BOARHUNT GROUP LTD,103726
Portsmouth City Council,PCC,Highways and Transport Services,Parking Services,Regeneration,Third Party Payments,Private contractors,15/06/2018,6227915,44,VENDOR,BOARHUNT GROUP LTD,103726
Portsmouth City Council,PCC,Children's and Education Services,Special Schools,Children's Services and Education,Third Party Payments,Other establishments,04/06/2018,6225818,26634.5,VENDOR,ST EDWARDS SCHOOL,101262
Portsmouth City Council,PCC,Children's and Education Services,Special Schools,Children's Services and Education,Third Party Payments,Other establishments,11/06/2018,6226976,24241,VENDOR,ST EDWARDS SCHOOL,101262
Portsmouth City Council,PCC,Children's and Education Services,Other Education and Community Budget,Children's Services and Education,Supplies and Services,"Printing, stationery and general office expenses",15/06/2018,6227997,335,VENDOR,PRODUCT DEVELOPMENT CORPORATION,134173
Portsmouth City Council,PCC,Highways and Transport Services,Parking Services,Regeneration,Third Party Payments,Private contractors,15/06/2018,6227997,250,VENDOR,PRODUCT DEVELOPMENT CORPORATION,134173
Portsmouth City Council,PCC,Children's and Education Services,Family Support Services,Children's Services and Education,Transport-Related Expenditure,Public transport,13/06/2018,6227255,75.3,VENDOR,ATOC LTD,103839
Portsmouth City Council,PCC,Children's and Education Services,Children Looked After,Children's Services and Education,Transport-Related Expenditure,Public transport,13/06/2018,6227255,30.9,VENDOR,ATOC LTD,103839
Portsmouth City Council,PCC,Children's and Education Services,Children Looked After,Children's Services and Education,Transport-Related Expenditure,Public transport,13/06/2018,6227255,31.5,VENDOR,ATOC LTD,103839
Portsmouth City Council,PCC,Children's and Education Services,Other Children and Family Services,Children's Services and Education,Transport-Related Expenditure,Public transport,13/06/2018,6227255,471.25,VENDOR,ATOC LTD,103839
Portsmouth City Council,PCC,Children's and Education Services,Asylum seekers,Children's Services and Education,Transport-Related Expenditure,Public transport,13/06/2018,6227255,46.2,VENDOR,ATOC LTD,103839
Portsmouth City Council,PCC,Children's and Education Services,Youth Justice,Children's Services and Education,Transport-Related Expenditure,Public transport,13/06/2018,6227255,245.8,VENDOR,ATOC LTD,103839
Portsmouth City Council,PCC,Children's and Education Services,Family Support Services,Children's Services and Education,Transport-Related Expenditure,Public transport,20/06/2018,6228792,11.6,VENDOR,ATOC LTD,103839
Portsmouth City Council,PCC,Children's and Education Services,Safeguarding Children and Young Peoples Services,Children's Services and Education,Transport-Related Expenditure,Public transport,20/06/2018,6228792,82.8,VENDOR,ATOC LTD,103839
Portsmouth City Council,PCC,Children's and Education Services,Safeguarding Children and Young Peoples Services,Children's Services and Education,Transport-Related Expenditure,Public transport,20/06/2018,6228792,49.2,VENDOR,ATOC LTD,103839
Portsmouth City Council,PCC,Children's and Education Services,Family Support Services,Children's Services and Education,Transport-Related Expenditure,Public transport,20/06/2018,6228792,541.6,VENDOR,ATOC LTD,103839
Portsmouth City Council,PCC,Children's and Education Services,Other Children and Family Services,Children's Services and Education,Transport-Related Expenditure,Public transport,20/06/2018,6228792,241.75,VENDOR,ATOC LTD,103839
Portsmouth City Council,PCC,Children's and Education Services,Safeguarding Children and Young Peoples Services,Children's Services and Education,Transport-Related Expenditure,Public transport,20/06/2018,6228792,14,VENDOR,ATOC LTD,103839
Portsmouth City Council,PCC,Children's and Education Services,Other Children and Family Services,Children's Services and Education,Transport-Related Expenditure,Public transport,20/06/2018,6228792,110,VENDOR,ATOC LTD,103839
Portsmouth City Council,PCC,Children's and Education Services,Youth Justice,Children's Services and Education,Transport-Related Expenditure,Public transport,20/06/2018,6228792,96.3,VENDOR,ATOC LTD,103839
Portsmouth City Council,PCC,Cultural and Related Services,Open Spaces,Culture & City Development,Premises-Related Expenditure,Grounds maintenance costs,12/06/2018,6227127,1514.81,COMPANY,J B CORRIE AND CO LTD,100911
Portsmouth City Council,PCC,Cultural and Related Services,Open Spaces,Culture & City Development,Premises-Related Expenditure,Grounds maintenance costs,18/06/2018,6228170,923.46,VENDOR,ROSEHILL POLYMERS LTD,112397
Portsmouth City Council,PCC,Support Service / Transparency Costs Unallocated,AMS,"Housing, Neighbourhood and Building Services",Supplies and Services,Communications and computing,11/06/2018,6226917,870,VENDOR,INTEGRATED ENVIRONMENTAL SOLUTIONS LTD,139464
Portsmouth City Council,PCC,Adult Social Care,Assistive Equipment & Technology,"Housing, Neighbourhood and Building Services",Supplies and Services,"Equipment, furniture and materials",25/06/2018,6229724,15,VENDOR,TYNETEC B/U OF LEGRAND ELECTRIC LTD,140439
Portsmouth City Council,PCC,Adult Social Care,Assistive Equipment & Technology,"Housing, Neighbourhood and Building Services",Supplies and Services,"Equipment, furniture and materials",25/06/2018,6229724,71.12,VENDOR,TYNETEC B/U OF LEGRAND ELECTRIC LTD,140439
Portsmouth City Council,PCC,Adult Social Care,Assistive Equipment & Technology,"Housing, Neighbourhood and Building Services",Supplies and Services,"Equipment, furniture and materials",25/06/2018,6229724,94.75,VENDOR,TYNETEC B/U OF LEGRAND ELECTRIC LTD,140439
Portsmouth City Council,PCC,Adult Social Care,Assistive Equipment & Technology,"Housing, Neighbourhood and Building Services",Supplies and Services,"Equipment, furniture and materials",25/06/2018,6229724,1189.6,VENDOR,TYNETEC B/U OF LEGRAND ELECTRIC LTD,140439
Portsmouth City Council,PCC,Adult Social Care,Assistive Equipment & Technology,"Housing, Neighbourhood and Building Services",Supplies and Services,"Equipment, furniture and materials",25/06/2018,6229724,570.45,VENDOR,TYNETEC B/U OF LEGRAND ELECTRIC LTD,140439
Portsmouth City Council,PCC,Adult Social Care,Assistive Equipment & Technology,"Housing, Neighbourhood and Building Services",Supplies and Services,"Equipment, furniture and materials",19/06/2018,6228324,717.4,VENDOR,TYNETEC B/U OF LEGRAND ELECTRIC LTD,140439
Portsmouth City Council,PCC,Adult Social Care,Assistive Equipment & Technology,"Housing, Neighbourhood and Building Services",Supplies and Services,"Equipment, furniture and materials",19/06/2018,6228324,2404.25,VENDOR,TYNETEC B/U OF LEGRAND ELECTRIC LTD,140439
Portsmouth City Council,PCC,Adult Social Care,Assistive Equipment & Technology,"Housing, Neighbourhood and Building Services",Supplies and Services,"Equipment, furniture and materials",22/06/2018,6229535,97.04,VENDOR,TYNETEC B/U OF LEGRAND ELECTRIC LTD,140439
Portsmouth City Council,PCC,Adult Social Care,Assistive Equipment & Technology,"Housing, Neighbourhood and Building Services",Supplies and Services,"Equipment, furniture and materials",22/06/2018,6229535,69.96,VENDOR,TYNETEC B/U OF LEGRAND ELECTRIC LTD,140439
Portsmouth City Council,PCC,Adult Social Care,Assistive Equipment & Technology,"Housing, Neighbourhood and Building Services",Supplies and Services,"Equipment, furniture and materials",22/06/2018,6229535,474.45,VENDOR,TYNETEC B/U OF LEGRAND ELECTRIC LTD,140439
Portsmouth City Council,PCC,Adult Social Care,Assistive Equipment & Technology,"Housing, Neighbourhood and Building Services",Supplies and Services,"Equipment, furniture and materials",22/06/2018,6229535,3600,VENDOR,TYNETEC B/U OF LEGRAND ELECTRIC LTD,140439
Portsmouth City Council,PCC,Adult Social Care,Assistive Equipment & Technology,"Housing, Neighbourhood and Building Services",Supplies and Services,"Equipment, furniture and materials",22/06/2018,6229535,440.8,VENDOR,TYNETEC B/U OF LEGRAND ELECTRIC LTD,140439
Portsmouth City Council,PCC,Cultural and Related Services,Culture and Heritage,Culture & City Development,Supplies and Services,"Equipment, furniture and materials",08/06/2018,6226720,467.16,VENDOR,HALF MOON BAY LIMITED,128956
Portsmouth City Council,PCC,Support Service / Transparency Costs Unallocated,AMS,"Housing, Neighbourhood and Building Services",Supplies and Services,"Equipment, furniture and materials",04/06/2018,6225793,105.98,VENDOR,PORTSDOWN OFFICE LTD,100059
Portsmouth City Council,PCC,Support Service / Transparency Costs Unallocated,AMS,"Housing, Neighbourhood and Building Services",Supplies and Services,"Equipment, furniture and materials",04/06/2018,6225793,802.54,VENDOR,PORTSDOWN OFFICE LTD,100059
Portsmouth City Council,PCC,Support Service / Transparency Costs Unallocated,Personnel,"HR, Legal, Audit & Performance",Supplies and Services,"Equipment, furniture and materials",04/06/2018,6225793,3035.28,VENDOR,PORTSDOWN OFFICE LTD,100059
Portsmouth City Council,PCC,Support Service / Transparency Costs Unallocated,AMS,"Housing, Neighbourhood and Building Services",Supplies and Services,"Equipment, furniture and materials",04/06/2018,6225793,180,VENDOR,PORTSDOWN OFFICE LTD,100059
Portsmouth City Council,PCC,Support Service / Transparency Costs Unallocated,AMS,"Housing, Neighbourhood and Building Services",Supplies and Services,"Equipment, furniture and materials",06/06/2018,6226421,3518.98,VENDOR,PORTSDOWN OFFICE LTD,100059
Portsmouth City Council,PCC,Highways and Transport Services,"Environment, Safety and Routine Maintenance",Regeneration,Supplies and Services,Grants and subscriptions,11/06/2018,6227005,1100,VENDOR,VODAFONE LTD,100173
Portsmouth City Council,PCC,Other,Suspense and Capital Schemes,Capital - Traffic & Transportation,Capital Charges,Capital Expenditure (WIP),11/06/2018,6227005,2208.34,VENDOR,VODAFONE LTD,100173
Portsmouth City Council,PCC,Other,Suspense and Capital Schemes,Capital - Traffic & Transportation,Capital Charges,Capital Expenditure (WIP),11/06/2018,6227005,79.17,VENDOR,VODAFONE LTD,100173
Portsmouth City Council,PCC,Other,Suspense and Capital Schemes,Capital - Traffic & Transportation,Capital Charges,Capital Expenditure (WIP),11/06/2018,6227005,229.16,VENDOR,VODAFONE LTD,100173
Portsmouth City Council,PCC,Children's and Education Services,Children Looked After,Children's Services and Education,Supplies and Services,Services,01/06/2018,6225682,5000,VENDOR,TLC EDUCATION GROUP,143877
Portsmouth City Council,PCC,Housing Revenue Account,"Rents, Rates, Taxes and Other Charges","Housing, Neighbourhood and Building Services",Premises-Related Expenditure,Water Services,07/06/2018,6226593,323.57,VENDOR,SOUTHERN WATER,100254
Portsmouth City Council,PCC,Highways and Transport Services,Traffic Management and Road Safety,Regeneration,Employees,Direct employee expenses,04/06/2018,6225779,1925,VENDOR,INSTITUTION OF CIVIL ENGINEERS,101457
Portsmouth City Council,PCC,Highways and Transport Services,Traffic Management and Road Safety,Regeneration,Employees,Direct employee expenses,04/06/2018,6225779,300,VENDOR,INSTITUTION OF CIVIL ENGINEERS,101457
Portsmouth City Council,PCC,Other,Suspense and Capital Schemes,Capital - Culture Leisure & Sport,Capital Charges,Capital Expenditure (WIP),13/06/2018,6227719,79522.9,COMPANY,MOUNTJOY LIMITED,129869
Portsmouth City Council,PCC,Other,Suspense and Capital Schemes,Capital - Health & Social Care,Capital Charges,Capital Expenditure (WIP),01/06/2018,6225634,47872.99,COMPANY,MOUNTJOY LIMITED,129869
Portsmouth City Council,PCC,Housing Revenue Account,Repairs and Maintenance,"Housing, Neighbourhood and Building Services",Premises-Related Expenditure,"Repairs, alterations and maintenance of buildings",15/06/2018,6227981,13265.72,COMPANY,MOUNTJOY LIMITED,129869
Portsmouth City Council,PCC,Housing Revenue Account,Repairs and Maintenance,"Housing, Neighbourhood and Building Services",Premises-Related Expenditure,"Repairs, alterations and maintenance of buildings",19/06/2018,6228293,19495.92,COMPANY,MOUNTJOY LIMITED,129869
Portsmouth City Council,PCC,Other,Suspense and Capital Schemes,Capital - Health & Social Care,Capital Charges,Capital Expenditure (WIP),27/06/2018,6230342,25837.66,COMPANY,MOUNTJOY LIMITED,129869
Portsmouth City Council,PCC,Other,Suspense and Capital Schemes,Capital - Education,Capital Charges,Capital Expenditure (WIP),29/06/2018,6230683,280105,COMPANY,MOUNTJOY LIMITED,129869
Portsmouth City Council,PCC,Cultural and Related Services,Library Service,Culture & City Development,Premises-Related Expenditure,Water Services,01/06/2018,6225541,177.28,VENDOR,CASTLE WATER LIMITED,142798
Portsmouth City Council,PCC,Cultural and Related Services,Open Spaces,Culture & City Development,Premises-Related Expenditure,Water Services,22/06/2018,6229435,40.86,VENDOR,CASTLE WATER LIMITED,142798
Portsmouth City Council,PCC,Children's and Education Services,Children Looked After,Children's Services and Education,Premises-Related Expenditure,Water Services,01/06/2018,6225541,229.4,VENDOR,CASTLE WATER LIMITED,142798
Portsmouth City Council,PCC,Housing Revenue Account,Other charges for services and facilities,"Housing, Neighbourhood and Building Services",Premises-Related Expenditure,Water Services,08/06/2018,6226656,164.21,VENDOR,CASTLE WATER LIMITED,142798
Portsmouth City Council,PCC,Housing Revenue Account,Special Services,"Housing, Neighbourhood and Building Services",Premises-Related Expenditure,Water Services,08/06/2018,6226656,3.88,VENDOR,CASTLE WATER LIMITED,142798
Portsmouth City Council,PCC,Adult Social Care,Social Care Activities,Adult Services,Third Party Payments,Other establishments,04/06/2018,6225773,5292.5,VENDOR,HELPING HANDS HOMECARE,141367
Portsmouth City Council,PCC,Cultural and Related Services,Open Spaces,Culture & City Development,Premises-Related Expenditure,Water Services,22/06/2018,6229435,193.81,VENDOR,CASTLE WATER LIMITED,142798
Portsmouth City Council,PCC,Cultural and Related Services,Open Spaces,Culture & City Development,Premises-Related Expenditure,Water Services,22/06/2018,6229435,2671.48,VENDOR,CASTLE WATER LIMITED,142798
Portsmouth City Council,PCC,Cultural and Related Services,Open Spaces,Culture & City Development,Premises-Related Expenditure,Water Services,22/06/2018,6229435,808.23,VENDOR,CASTLE WATER LIMITED,142798
Portsmouth City Council,PCC,Cultural and Related Services,Open Spaces,Culture & City Development,Premises-Related Expenditure,Water Services,22/06/2018,6229435,11183.06,VENDOR,CASTLE WATER LIMITED,142798
Portsmouth City Council,PCC,Cultural and Related Services,Open Spaces,Culture & City Development,Premises-Related Expenditure,Water Services,22/06/2018,6229435,5589.15,VENDOR,CASTLE WATER LIMITED,142798
Portsmouth City Council,PCC,Housing Revenue Account,Supervision and Management,"Housing, Neighbourhood and Building Services",Premises-Related Expenditure,Water Services,29/06/2018,6230592,146.03,VENDOR,CASTLE WATER LIMITED,142798
Portsmouth City Council,PCC,Adult Social Care,Physical Support Older People (85+),Adult Services,Third Party Payments,Other establishments,07/06/2018,6226483,848.88,VENDOR,ASTER CARE LTD,130238
Portsmouth City Council,PCC,Highways and Transport Services,"Airports, Harbours and Toll Facilities",Portsmouth International Port,Premises-Related Expenditure,"Repairs, alterations and maintenance of buildings",21/06/2018,6229294,1455,VENDOR,BLD COMPUTER SOLUTIONS LTD,107653
Portsmouth City Council,PCC,Children's and Education Services,Children Looked After,Children's Services and Education,Third Party Payments,Other establishments,15/06/2018,6227968,3011.34,VENDOR,HORIZON CARE AND EDUCATION GROUP LTD,138450
Portsmouth City Council,PCC,Children's and Education Services,Asylum seekers,Children's Services and Education,Third Party Payments,Other establishments,13/06/2018,6227697,3011.34,VENDOR,HORIZON CARE AND EDUCATION GROUP LTD,138450
Portsmouth City Council,PCC,Other,Suspense and Capital Schemes,Capital - Housing GF,Capital Charges,REFCUS,13/06/2018,6227783,16800,COMPANY,YOUNG AND YOUNG BUILDING SERVICES LTD,104996
Portsmouth City Council,PCC,Children's and Education Services,Children Looked After,Children's Services and Education,Third Party Payments,Other establishments,12/06/2018,6227122,3011.34,VENDOR,HORIZON CARE AND EDUCATION GROUP LTD,138450
Portsmouth City Council,PCC,Children's and Education Services,Children Looked After,Children's Services and Education,Third Party Payments,Other establishments,13/06/2018,6227697,1457.1,VENDOR,HORIZON CARE AND EDUCATION GROUP LTD,138450
Portsmouth City Council,PCC,Other,Suspense and Capital Schemes,Capital - Traffic & Transportation,Capital Charges,Capital Expenditure (WIP),11/06/2018,6226961,8310,VENDOR,PRITCHARD ARCHITECTURE LIMITED,144062
Portsmouth City Council,PCC,Housing Services,Supporting People,"Housing, Neighbourhood and Building Services",Third Party Payments,Other establishments,12/06/2018,6227223,33025,VENDOR,TWO SAINTS LTD,102584
Portsmouth City Council,PCC,Housing Revenue Account,Supervision and Management,"Housing, Neighbourhood and Building Services",Third Party Payments,Other establishments,12/06/2018,6227223,4166.67,VENDOR,TWO SAINTS LTD,102584
Portsmouth City Council,PCC,Housing Services,Supporting People,"Housing, Neighbourhood and Building Services",Third Party Payments,Other establishments,12/06/2018,6227223,33025,VENDOR,TWO SAINTS LTD,102584
Portsmouth City Council,PCC,Housing Services,Supporting People,"Housing, Neighbourhood and Building Services",Third Party Payments,Other establishments,12/06/2018,6227223,33025,VENDOR,TWO SAINTS LTD,102584
Portsmouth City Council,PCC,Other,Suspense and Capital Schemes,Capital - Childrens Services,Capital Charges,Capital Expenditure (WIP),28/06/2018,6230525,180000,VENDOR,SERVELEC GROUP LTD,144037
Portsmouth City Council,PCC,Other,Suspense and Capital Schemes,Capital - Childrens Services,Capital Charges,Capital Expenditure (WIP),28/06/2018,6230525,24879.7,VENDOR,SERVELEC GROUP LTD,144037
Portsmouth City Council,PCC,Adult Social Care,Social Care Activities,Adult Services,Third Party Payments,Other establishments,20/06/2018,6228790,5496.96,VENDOR,ASTER CARE LTD,130238
Portsmouth City Council,PCC,Adult Social Care,Social Care Activities,Adult Services,Third Party Payments,Other establishments,15/06/2018,6227984,2738.4,VENDOR,NURSE PLUS & CARER PLUS (UK) LIMITED,129474
Portsmouth City Council,PCC,Adult Social Care,Social Care Activities,Adult Services,Third Party Payments,Other establishments,20/06/2018,6228790,5714.52,VENDOR,ASTER CARE LTD,130238
Portsmouth City Council,PCC,Adult Social Care,Social Care Activities,Adult Services,Third Party Payments,Other establishments,20/06/2018,6228790,5279.4,VENDOR,ASTER CARE LTD,130238
Portsmouth City Council,PCC,Adult Social Care,Social Care Activities,Adult Services,Third Party Payments,Other establishments,04/06/2018,6225790,2738.4,VENDOR,NURSE PLUS & CARER PLUS (UK) LIMITED,129474
Portsmouth City Council,PCC,Adult Social Care,Social Care Activities,Adult Services,Third Party Payments,Other establishments,08/06/2018,6226757,2738.4,VENDOR,NURSE PLUS & CARER PLUS (UK) LIMITED,129474
Portsmouth City Council,PCC,Adult Social Care,Social Care Activities,Adult Services,Third Party Payments,Other establishments,15/06/2018,6227984,2738.4,VENDOR,NURSE PLUS & CARER PLUS (UK) LIMITED,129474
Portsmouth City Council,PCC,Adult Social Care,Social Care Activities,Adult Services,Third Party Payments,Other establishments,26/06/2018,6229840,2738.4,VENDOR,NURSE PLUS & CARER PLUS (UK) LIMITED,129474
Portsmouth City Council,PCC,Adult Social Care,Social Care Activities,Adult Services,Third Party Payments,Other establishments,20/06/2018,6228790,10393.92,VENDOR,ASTER CARE LTD,130238
Portsmouth City Council,PCC,Children's and Education Services,Children Looked After,Children's Services and Education,Third Party Payments,Other establishments,15/06/2018,6227968,3011.34,VENDOR,HORIZON CARE AND EDUCATION GROUP LTD,138450
Portsmouth City Council,PCC,Children's and Education Services,Children Looked After,Children's Services and Education,Third Party Payments,Other establishments,12/06/2018,6227122,2820,VENDOR,HORIZON CARE AND EDUCATION GROUP LTD,138450
Portsmouth City Council,PCC,Children's and Education Services,Children Looked After,Children's Services and Education,Third Party Payments,Other establishments,12/06/2018,6227122,2914.2,VENDOR,HORIZON CARE AND EDUCATION GROUP LTD,138450
Portsmouth City Council,PCC,Children's and Education Services,Children Looked After,Children's Services and Education,Third Party Payments,Other establishments,15/06/2018,6227968,2914.2,VENDOR,HORIZON CARE AND EDUCATION GROUP LTD,138450
Portsmouth City Council,PCC,Children's and Education Services,Asylum seekers,Children's Services and Education,Third Party Payments,Other establishments,12/06/2018,6227122,2914.2,VENDOR,HORIZON CARE AND EDUCATION GROUP LTD,138450
Portsmouth City Council,PCC,Children's and Education Services,Other Children and Family Services,Children's Services and Education,Third Party Payments,Other establishments,15/06/2018,6227902,144.24,VENDOR,APPLETREE SUPPORT LTD,126285
Portsmouth City Council,PCC,Children's and Education Services,Other Children and Family Services,Children's Services and Education,Third Party Payments,Other establishments,15/06/2018,6227902,640.07,VENDOR,APPLETREE SUPPORT LTD,126285
Portsmouth City Council,PCC,Children's and Education Services,Other Children and Family Services,Children's Services and Education,Third Party Payments,Other establishments,15/06/2018,6227902,126.23,VENDOR,APPLETREE SUPPORT LTD,126285
Portsmouth City Council,PCC,Children's and Education Services,Other Children and Family Services,Children's Services and Education,Third Party Payments,Other establishments,15/06/2018,6227902,27.05,VENDOR,APPLETREE SUPPORT LTD,126285
Portsmouth City Council,PCC,Children's and Education Services,Other Children and Family Services,Children's Services and Education,Third Party Payments,Other establishments,05/06/2018,6225842,216.36,VENDOR,APPLETREE SUPPORT LTD,126285
Portsmouth City Council,PCC,Children's and Education Services,Other Children and Family Services,Children's Services and Education,Third Party Payments,Other establishments,15/06/2018,6227902,802.35,VENDOR,APPLETREE SUPPORT LTD,126285
Portsmouth City Council,PCC,Children's and Education Services,Other Children and Family Services,Children's Services and Education,Third Party Payments,Other establishments,15/06/2018,6227902,432.79,VENDOR,APPLETREE SUPPORT LTD,126285
Portsmouth City Council,PCC,Children's and Education Services,Other Children and Family Services,Children's Services and Education,Third Party Payments,Other establishments,05/06/2018,6225842,1081.8,VENDOR,APPLETREE SUPPORT LTD,126285
Portsmouth City Council,PCC,Children's and Education Services,Other Children and Family Services,Children's Services and Education,Third Party Payments,Other establishments,05/06/2018,6225842,1081.8,VENDOR,APPLETREE SUPPORT LTD,126285
Portsmouth City Council,PCC,Children's and Education Services,Children Looked After,Children's Services and Education,Third Party Payments,Other establishments,05/06/2018,6225842,766.37,VENDOR,APPLETREE SUPPORT LTD,126285
Portsmouth City Council,PCC,Children's and Education Services,Other Children and Family Services,Children's Services and Education,Third Party Payments,Other establishments,05/06/2018,6225842,2456.83,VENDOR,APPLETREE SUPPORT LTD,126285
Portsmouth City Council,PCC,Adult Social Care,Social Care Activities,Adult Services,Third Party Payments,Other establishments,08/06/2018,6226635,2596.32,VENDOR,APPLETREE SUPPORT LTD,126285
Portsmouth City Council,PCC,Central Services,Coroners' Court Services,Culture & City Development,Supplies and Services,Services,20/06/2018,6229219,274.3,SOLETRADER,Classified as 'personal data' (under the Data Protection Act 1998),140312
Portsmouth City Council,PCC,Central Services,Coroners' Court Services,Culture & City Development,Supplies and Services,Services,20/06/2018,6229219,275.9,SOLETRADER,Classified as 'personal data' (under the Data Protection Act 1998),140312
Portsmouth City Council,PCC,Costs below Net Cost of Services,Trading,Finance & IT,Supplies and Services,Miscellaneous expenses,01/06/2018,6225687,1743.7,VENDOR,WEIGHTMANS LLP,127719
Portsmouth City Council,PCC,Costs below Net Cost of Services,Trading,Finance & IT,Supplies and Services,Miscellaneous expenses,01/06/2018,6225687,7442.45,VENDOR,WEIGHTMANS LLP,127719
Portsmouth City Council,PCC,Costs below Net Cost of Services,Trading,Finance & IT,Supplies and Services,Miscellaneous expenses,01/06/2018,6225687,883.1,VENDOR,WEIGHTMANS LLP,127719
Portsmouth City Council,PCC,Costs below Net Cost of Services,Trading,Finance & IT,Supplies and Services,Miscellaneous expenses,01/06/2018,6225687,2619.85,VENDOR,WEIGHTMANS LLP,127719
Portsmouth City Council,PCC,Costs below Net Cost of Services,Trading,Finance & IT,Supplies and Services,Miscellaneous expenses,22/06/2018,6229537,22556.63,VENDOR,WEIGHTMANS LLP,127719
Portsmouth City Council,PCC,Environmental and Regulatory Services,Regulatory Services,Culture & City Development,Third Party Payments,Private contractors,19/06/2018,318718,2452.32,VENDOR,Classified as 'personal data' (under the Data Protection Act 1998),129646
Portsmouth City Council,PCC,Children's and Education Services,Children Looked After,Children's Services and Education,Supplies and Services,Services,13/06/2018,6227244,575,VENDOR,ACADEMY TRUST (UNIVERSITY OF CHICHESTER),138859
Portsmouth City Council,PCC,Adult Social Care,Social Care Activities,Adult Services,Third Party Payments,Other establishments,13/06/2018,6227749,1320,VENDOR,SAFEGUARDING GP,137636
Portsmouth City Council,PCC,Central Services,Coroners' Court Services,Culture & City Development,Supplies and Services,Services,20/06/2018,6229219,272.3,SOLETRADER,Classified as 'personal data' (under the Data Protection Act 1998),140312
Portsmouth City Council,PCC,Central Services,Coroners' Court Services,Culture & City Development,Supplies and Services,Services,20/06/2018,6229219,125,SOLETRADER,Classified as 'personal data' (under the Data Protection Act 1998),140312
Portsmouth City Council,PCC,Children's and Education Services,Children Looked After,Children's Services and Education,Supplies and Services,Services,04/06/2018,6225831,1103.76,VENDOR,UNITED LEARNING TRUST,137910
Portsmouth City Council,PCC,Other,Suspense and Capital Schemes,Capital - Housing GF,Capital Charges,REFCUS,28/06/2018,6230564,3835.83,VENDOR,WICOR BUILDING SERVICES LIMITED,144144
Portsmouth City Council,PCC,Housing Services,Private Sector Housing Renewal,"Housing, Neighbourhood and Building Services",Income,Other grants reimbursements and contributions,28/06/2018,6230564,-402.36,VENDOR,WICOR BUILDING SERVICES LIMITED,144144
Portsmouth City Council,PCC,Adult Social Care,Learning Disability Support  Adults (18 - 64),Adult Services,Third Party Payments,Other establishments,12/06/2018,6227179,250.84,VENDOR,ROYAL MENCAP SOCIETY,102744
Portsmouth City Council,PCC,Adult Social Care,Learning Disability Support  Adults (18 - 64),Adult Services,Third Party Payments,Other establishments,12/06/2018,6227179,125.4,VENDOR,ROYAL MENCAP SOCIETY,102744
Portsmouth City Council,PCC,Adult Social Care,Learning Disability Support  Adults (18 - 64),Adult Services,Third Party Payments,Other establishments,12/06/2018,6227179,313.56,VENDOR,ROYAL MENCAP SOCIETY,102744
Portsmouth City Council,PCC,Adult Social Care,Learning Disability Support  Adults (18 - 64),Adult Services,Third Party Payments,Other establishments,12/06/2018,6227179,438.96,VENDOR,ROYAL MENCAP SOCIETY,102744
Portsmouth City Council,PCC,Adult Social Care,Learning Disability Support  Adults (18 - 64),Adult Services,Third Party Payments,Other establishments,12/06/2018,6227179,282.2,VENDOR,ROYAL MENCAP SOCIETY,102744
Portsmouth City Council,PCC,Adult Social Care,Learning Disability Support  Adults (18 - 64),Adult Services,Third Party Payments,Other establishments,12/06/2018,6227179,62.72,VENDOR,ROYAL MENCAP SOCIETY,102744
Portsmouth City Council,PCC,Adult Social Care,Learning Disability Support  Adults (18 - 64),Adult Services,Third Party Payments,Other establishments,12/06/2018,6227179,188.12,VENDOR,ROYAL MENCAP SOCIETY,102744
Portsmouth City Council,PCC,Adult Social Care,Learning Disability Support  Adults (18 - 64),Adult Services,Third Party Payments,Other establishments,12/06/2018,6227179,877.92,VENDOR,ROYAL MENCAP SOCIETY,102744
Portsmouth City Council,PCC,Adult Social Care,Learning Disability Support  Adults (18 - 64),Adult Services,Third Party Payments,Other establishments,12/06/2018,6227179,250.88,VENDOR,ROYAL MENCAP SOCIETY,102744
Portsmouth City Council,PCC,Adult Social Care,Learning Disability Support  Adults (18 - 64),Adult Services,Third Party Payments,Other establishments,12/06/2018,6227179,376.32,VENDOR,ROYAL MENCAP SOCIETY,102744
Portsmouth City Council,PCC,Adult Social Care,Learning Disability Support  Adults (18 - 64),Adult Services,Third Party Payments,Other establishments,12/06/2018,6227179,219.48,VENDOR,ROYAL MENCAP SOCIETY,102744
Portsmouth City Council,PCC,Adult Social Care,Learning Disability Support  Adults (18 - 64),Adult Services,Third Party Payments,Other establishments,12/06/2018,6227179,122.96,VENDOR,ROYAL MENCAP SOCIETY,102744
Portsmouth City Council,PCC,Adult Social Care,Learning Disability Support  Adults (18 - 64),Adult Services,Third Party Payments,Other establishments,12/06/2018,6227179,125.4,VENDOR,ROYAL MENCAP SOCIETY,102744
Portsmouth City Council,PCC,Adult Social Care,Learning Disability Support  Adults (18 - 64),Adult Services,Third Party Payments,Other establishments,12/06/2018,6227179,376.24,VENDOR,ROYAL MENCAP SOCIETY,102744
Portsmouth City Council,PCC,Adult Social Care,Learning Disability Support  Adults (18 - 64),Adult Services,Third Party Payments,Other establishments,12/06/2018,6227179,313.56,VENDOR,ROYAL MENCAP SOCIETY,102744
Portsmouth City Council,PCC,Adult Social Care,Learning Disability Support  Adults (18 - 64),Adult Services,Third Party Payments,Other establishments,08/06/2018,6226778,8187.04,VENDOR,ROYAL MENCAP SOCIETY,102744
Portsmouth City Council,PCC,Adult Social Care,Learning Disability Support  Adults (18 - 64),Adult Services,Third Party Payments,Other establishments,12/06/2018,6227179,125.4,VENDOR,ROYAL MENCAP SOCIETY,102744
Portsmouth City Council,PCC,Adult Social Care,Learning Disability Support  Adults (18 - 64),Adult Services,Third Party Payments,Other establishments,12/06/2018,6227179,250.84,VENDOR,ROYAL MENCAP SOCIETY,102744
Portsmouth City Council,PCC,Adult Social Care,Learning Disability Support  Adults (18 - 64),Adult Services,Third Party Payments,Other establishments,12/06/2018,6227179,940.64,VENDOR,ROYAL MENCAP SOCIETY,102744
Portsmouth City Council,PCC,Adult Social Care,Learning Disability Support  Adults (18 - 64),Adult Services,Third Party Payments,Other establishments,12/06/2018,6227179,878.08,VENDOR,ROYAL MENCAP SOCIETY,102744
Portsmouth City Council,PCC,Adult Social Care,Learning Disability Support  Adults (18 - 64),Adult Services,Third Party Payments,Other establishments,12/06/2018,6227179,739.56,VENDOR,ROYAL MENCAP SOCIETY,102744
Portsmouth City Council,PCC,Adult Social Care,Social Care Activities,Adult Services,Third Party Payments,Other establishments,12/06/2018,6227179,9363.2,VENDOR,ROYAL MENCAP SOCIETY,102744
Portsmouth City Council,PCC,Adult Social Care,Social Care Activities,Adult Services,Third Party Payments,Other establishments,12/06/2018,6227179,2779.4,VENDOR,ROYAL MENCAP SOCIETY,102744
Portsmouth City Council,PCC,Adult Social Care,Learning Disability Support  Adults (18 - 64),Adult Services,Third Party Payments,Other establishments,21/06/2018,6229391,2523.28,VENDOR,ROYAL MENCAP SOCIETY,102744
Portsmouth City Council,PCC,Adult Social Care,Learning Disability Support  Adults (18 - 64),Adult Services,Third Party Payments,Other establishments,21/06/2018,6229391,878.08,VENDOR,ROYAL MENCAP SOCIETY,102744
Portsmouth City Council,PCC,Adult Social Care,Learning Disability Support  Adults (18 - 64),Adult Services,Third Party Payments,Other establishments,12/06/2018,6227179,2623.16,VENDOR,ROYAL MENCAP SOCIETY,102744
Portsmouth City Council,PCC,Adult Social Care,Learning Disability Support  Adults (18 - 64),Adult Services,Income,Customer and client receipts,12/06/2018,6227179,-476.7,VENDOR,ROYAL MENCAP SOCIETY,102744
Portsmouth City Council,PCC,Adult Social Care,Learning Disability Support  Adults (18 - 64),Adult Services,Third Party Payments,Other establishments,12/06/2018,6227179,2591.7,VENDOR,ROYAL MENCAP SOCIETY,102744
Portsmouth City Council,PCC,Adult Social Care,Learning Disability Support  Adults (18 - 64),Adult Services,Income,Customer and client receipts,12/06/2018,6227179,-438.3,VENDOR,ROYAL MENCAP SOCIETY,102744
Portsmouth City Council,PCC,Adult Social Care,Learning Disability Support  Adults (18 - 64),Adult Services,Third Party Payments,Other establishments,12/06/2018,6227179,2581.5,VENDOR,ROYAL MENCAP SOCIETY,102744
Portsmouth City Council,PCC,Adult Social Care,Learning Disability Support  Adults (18 - 64),Adult Services,Income,Customer and client receipts,12/06/2018,6227179,-573,VENDOR,ROYAL MENCAP SOCIETY,102744
Portsmouth City Council,PCC,Adult Social Care,Learning Disability Support  Adults (18 - 64),Adult Services,Third Party Payments,Other establishments,12/06/2018,6227179,2584.8,VENDOR,ROYAL MENCAP SOCIETY,102744
Portsmouth City Council,PCC,Adult Social Care,Learning Disability Support  Adults (18 - 64),Adult Services,Third Party Payments,Other establishments,21/06/2018,6229391,739.56,VENDOR,ROYAL MENCAP SOCIETY,102744
Portsmouth City Council,PCC,Adult Social Care,Social Care Activities,Adult Services,Third Party Payments,Other establishments,21/06/2018,6229391,9363.2,VENDOR,ROYAL MENCAP SOCIETY,102744
Portsmouth City Council,PCC,Adult Social Care,Social Care Activities,Adult Services,Third Party Payments,Other establishments,21/06/2018,6229391,2779.4,VENDOR,ROYAL MENCAP SOCIETY,102744
Portsmouth City Council,PCC,Children's and Education Services,Other Education and Community Budget,Children's Services and Education,Transport-Related Expenditure,Car allowances,07/06/2018,6226500,900,VENDOR,CITY WIDE TAXIS,103408
Portsmouth City Council,PCC,Children's and Education Services,Other Education and Community Budget,Children's Services and Education,Transport-Related Expenditure,Car allowances,07/06/2018,6226500,1340,VENDOR,CITY WIDE TAXIS,103408
Portsmouth City Council,PCC,Children's and Education Services,Other Education and Community Budget,Children's Services and Education,Transport-Related Expenditure,Car allowances,07/06/2018,6226500,560,VENDOR,CITY WIDE TAXIS,103408
Portsmouth City Council,PCC,Children's and Education Services,Other Education and Community Budget,Children's Services and Education,Transport-Related Expenditure,Car allowances,07/06/2018,6226500,720,VENDOR,CITY WIDE TAXIS,103408
Portsmouth City Council,PCC,Children's and Education Services,Other Education and Community Budget,Children's Services and Education,Transport-Related Expenditure,Car allowances,07/06/2018,6226500,720,VENDOR,CITY WIDE TAXIS,103408
Portsmouth City Council,PCC,Children's and Education Services,Other Education and Community Budget,Children's Services and Education,Transport-Related Expenditure,Car allowances,07/06/2018,6226500,1170,VENDOR,CITY WIDE TAXIS,103408
Portsmouth City Council,PCC,Children's and Education Services,Other Education and Community Budget,Children's Services and Education,Transport-Related Expenditure,Car allowances,07/06/2018,6226500,585,VENDOR,CITY WIDE TAXIS,103408
Portsmouth City Council,PCC,Children's and Education Services,Other Education and Community Budget,Children's Services and Education,Transport-Related Expenditure,Car allowances,07/06/2018,6226500,1116,VENDOR,CITY WIDE TAXIS,103408
Portsmouth City Council,PCC,Children's and Education Services,Other Education and Community Budget,Children's Services and Education,Transport-Related Expenditure,Car allowances,07/06/2018,6226500,2400,VENDOR,CITY WIDE TAXIS,103408
Portsmouth City Council,PCC,Children's and Education Services,Other Education and Community Budget,Children's Services and Education,Transport-Related Expenditure,Car allowances,13/06/2018,6227273,612,VENDOR,CITY WIDE TAXIS,103408
Portsmouth City Council,PCC,Support Service / Transparency Costs Unallocated,AMS,Regeneration,Supplies and Services,Communications and computing,04/06/2018,6225718,5000,VENDOR,CONCERTO SUPPORT SERVICES LTD,129010
Portsmouth City Council,PCC,Adult Social Care,Social Care Activities,Adult Services,Third Party Payments,Other establishments,15/06/2018,6228008,186.31,VENDOR,SAFEGUARDING GP,137636
Portsmouth City Council,PCC,Adult Social Care,Social Care Activities,Adult Services,Third Party Payments,Other establishments,15/06/2018,6228006,186.31,VENDOR,SAFEGUARDING GP,137636
Portsmouth City Council,PCC,Adult Social Care,Social Care Activities,Adult Services,Third Party Payments,Other establishments,15/06/2018,6228008,223.27,VENDOR,SAFEGUARDING GP,137636
Portsmouth City Council,PCC,Adult Social Care,Social Care Activities,Adult Services,Third Party Payments,Other establishments,15/06/2018,6228008,186.31,VENDOR,SAFEGUARDING GP,137636
Portsmouth City Council,PCC,Adult Social Care,Social Care Activities,Adult Services,Third Party Payments,Other establishments,15/06/2018,6228008,186.31,VENDOR,SAFEGUARDING GP,137636
Portsmouth City Council,PCC,Adult Social Care,Social Care Activities,Adult Services,Third Party Payments,Other establishments,15/06/2018,6228008,186.31,VENDOR,SAFEGUARDING GP,137636
Portsmouth City Council,PCC,Adult Social Care,Social Care Activities,Adult Services,Third Party Payments,Other establishments,15/06/2018,6228008,186.31,VENDOR,SAFEGUARDING GP,137636
Portsmouth City Council,PCC,Adult Social Care,Social Care Activities,Adult Services,Third Party Payments,Other establishments,15/06/2018,6228008,186.31,VENDOR,SAFEGUARDING GP,137636
Portsmouth City Council,PCC,Support Service / Transparency Costs Unallocated,Personnel,"HR, Legal, Audit & Performance",Employees,Direct employee expenses,27/06/2018,6229932,801.5,VENDOR,FIFIELD TRAINING LTD,141393
Portsmouth City Council,PCC,Housing Services,Private Sector Housing Renewal,"Housing, Neighbourhood and Building Services",Supplies and Services,Grants and subscriptions,13/06/2018,6227728,954.4,COMPANY,PB CONSTRUCTION AND DEVELOPMENT LTD,114534
Portsmouth City Council,PCC,Other,Suspense and Capital Schemes,Capital - Housing GF,Capital Charges,REFCUS,13/06/2018,6227728,8000,COMPANY,PB CONSTRUCTION AND DEVELOPMENT LTD,114534
Portsmouth City Council,PCC,Housing Services,Private Sector Housing Renewal,"Housing, Neighbourhood and Building Services",Income,Other grants reimbursements and contributions,13/06/2018,6227728,-120,COMPANY,PB CONSTRUCTION AND DEVELOPMENT LTD,114534
Portsmouth City Council,PCC,Housing Services,Private Sector Housing Renewal,"Housing, Neighbourhood and Building Services",Income,Other grants reimbursements and contributions,13/06/2018,6227728,-1122,COMPANY,PB CONSTRUCTION AND DEVELOPMENT LTD,114534
Portsmouth City Council,PCC,Cultural and Related Services,Open Spaces,Culture & City Development,Premises-Related Expenditure,Grounds maintenance costs,08/06/2018,6226719,487,COMPANY,HAGS-SMP LIMITED,106205
Portsmouth City Council,PCC,Highways and Transport Services,Traffic Management and Road Safety,Regeneration,Supplies and Services,Services,28/06/2018,6230489,8560,VENDOR,ISLAND HIGHWAY & TRANSPORT CONSULTANTS LTD,138720
Portsmouth City Council,PCC,Adult Social Care,Social Care Activities,Adult Services,Third Party Payments,Other establishments,05/06/2018,6225936,197.19,VENDOR,SAFEGUARDING GP,137636
Portsmouth City Council,PCC,Cultural and Related Services,Culture and Heritage,Culture & City Development,Supplies and Services,Grants and subscriptions,07/06/2018,6226574,3000,VENDOR,PORTSMOUTH FESTIVITIES,118599
Portsmouth City Council,PCC,Corporate and Democratic Core,Democratic Representation and Management,Culture & City Development,Third Party Payments,Private contractors,04/06/2018,6225762,475,VENDOR,FILMBANK DISTRIBUTORS LTD,110960
Portsmouth City Council,PCC,Adult Social Care,Social Care Activities,Adult Services,Third Party Payments,Other establishments,05/06/2018,6225936,186.31,VENDOR,SAFEGUARDING GP,137636
Portsmouth City Council,PCC,Adult Social Care,Social Care Activities,Adult Services,Third Party Payments,Other establishments,05/06/2018,6225939,186.31,VENDOR,SAFEGUARDING GP,137636
Portsmouth City Council,PCC,Adult Social Care,Social Care Activities,Adult Services,Third Party Payments,Other establishments,05/06/2018,6225939,186.31,VENDOR,SAFEGUARDING GP,137636
Portsmouth City Council,PCC,Adult Social Care,Social Care Activities,Adult Services,Third Party Payments,Other establishments,05/06/2018,6225936,186.31,VENDOR,SAFEGUARDING GP,137636
Portsmouth City Council,PCC,Adult Social Care,Social Care Activities,Adult Services,Third Party Payments,Other establishments,15/06/2018,6228008,186.31,VENDOR,SAFEGUARDING GP,137636
Portsmouth City Council,PCC,Adult Social Care,Social Care Activities,Adult Services,Third Party Payments,Other establishments,05/06/2018,6225936,186.31,VENDOR,SAFEGUARDING GP,137636
Portsmouth City Council,PCC,Adult Social Care,Social Care Activities,Adult Services,Third Party Payments,Other establishments,05/06/2018,6225936,186.31,VENDOR,SAFEGUARDING GP,137636
Portsmouth City Council,PCC,Adult Social Care,Social Care Activities,Adult Services,Third Party Payments,Other establishments,05/06/2018,6225936,186.31,VENDOR,SAFEGUARDING GP,137636
Portsmouth City Council,PCC,Adult Social Care,Social Care Activities,Adult Services,Third Party Payments,Other establishments,05/06/2018,6225936,220.03,VENDOR,SAFEGUARDING GP,137636
Portsmouth City Council,PCC,Adult Social Care,Social Care Activities,Adult Services,Third Party Payments,Other establishments,05/06/2018,6225936,186.31,VENDOR,SAFEGUARDING GP,137636
Portsmouth City Council,PCC,Adult Social Care,Commissioning & service delivery,Adult Services,Supplies and Services,Catering,28/06/2018,6230516,3360,VENDOR,PROTON (SOUTHERN) LTD,102952
Portsmouth City Council,PCC,Housing Services,Private Sector Housing Renewal,"Housing, Neighbourhood and Building Services",Supplies and Services,Grants and subscriptions,13/06/2018,6227706,517.81,COMPANY,L DEVINE AND CO LIMITED,111002
Portsmouth City Council,PCC,Other,Suspense and Capital Schemes,Capital - Housing GF,Capital Charges,REFCUS,13/06/2018,6227706,20902.45,COMPANY,L DEVINE AND CO LIMITED,111002
Portsmouth City Council,PCC,Housing Services,Private Sector Housing Renewal,"Housing, Neighbourhood and Building Services",Income,Other grants reimbursements and contributions,13/06/2018,6227706,-2246.88,COMPANY,L DEVINE AND CO LIMITED,111002
Portsmouth City Council,PCC,Housing Services,Private Sector Housing Renewal,"Housing, Neighbourhood and Building Services",Supplies and Services,Grants and subscriptions,13/06/2018,6227706,2367.4,COMPANY,L DEVINE AND CO LIMITED,111002
Portsmouth City Council,PCC,Other,Suspense and Capital Schemes,Capital - Housing GF,Capital Charges,REFCUS,13/06/2018,6227706,8000,COMPANY,L DEVINE AND CO LIMITED,111002
Portsmouth City Council,PCC,Housing Services,Private Sector Housing Renewal,"Housing, Neighbourhood and Building Services",Income,Other grants reimbursements and contributions,13/06/2018,6227706,-120,COMPANY,L DEVINE AND CO LIMITED,111002
Portsmouth City Council,PCC,Housing Services,Private Sector Housing Renewal,"Housing, Neighbourhood and Building Services",Income,Other grants reimbursements and contributions,13/06/2018,6227706,-774.5,COMPANY,L DEVINE AND CO LIMITED,111002
Portsmouth City Council,PCC,Adult Social Care,Social Care Activities,Adult Services,Third Party Payments,Other establishments,05/06/2018,6225936,186.31,VENDOR,SAFEGUARDING GP,137636
Portsmouth City Council,PCC,Adult Social Care,Social Care Activities,Adult Services,Third Party Payments,Other establishments,15/06/2018,6228008,28.28,VENDOR,SAFEGUARDING GP,137636
Portsmouth City Council,PCC,Other,Suspense and Capital Schemes,Capital - Culture Leisure & Sport,Capital Charges,Capital Expenditure (WIP),19/06/2018,6228320,6301.96,VENDOR,THE TETLEY WORKSHOP CARPET AND TAPESTRY CONSERVATION,140641
Portsmouth City Council,PCC,Other,Suspense and Capital Schemes,Capital - Culture Leisure & Sport,Capital Charges,Capital Expenditure (WIP),19/06/2018,6228320,100,VENDOR,THE TETLEY WORKSHOP CARPET AND TAPESTRY CONSERVATION,140641
Portsmouth City Council,PCC,Other,Suspense and Capital Schemes,Capital - Culture Leisure & Sport,Capital Charges,Capital Expenditure (WIP),19/06/2018,6228320,100,VENDOR,THE TETLEY WORKSHOP CARPET AND TAPESTRY CONSERVATION,140641
Portsmouth City Council,PCC,Other,Suspense and Capital Schemes,Capital - Culture Leisure & Sport,Capital Charges,Capital Expenditure (WIP),19/06/2018,6228320,2297.77,VENDOR,THE TETLEY WORKSHOP CARPET AND TAPESTRY CONSERVATION,140641
Portsmouth City Council,PCC,Cultural and Related Services,Library Service,Culture & City Development,Premises-Related Expenditure,"Repairs, alterations and maintenance of buildings",29/06/2018,6230647,75,VENDOR,EMOS INFORMATION SYSTEMS LTD,101405
Portsmouth City Council,PCC,Cultural and Related Services,Library Service,Culture & City Development,Premises-Related Expenditure,"Repairs, alterations and maintenance of buildings",29/06/2018,6230647,75,VENDOR,EMOS INFORMATION SYSTEMS LTD,101405
Portsmouth City Council,PCC,Cultural and Related Services,Library Service,Culture & City Development,Premises-Related Expenditure,"Repairs, alterations and maintenance of buildings",29/06/2018,6230647,225,VENDOR,EMOS INFORMATION SYSTEMS LTD,101405
Portsmouth City Council,PCC,Cultural and Related Services,Library Service,Culture & City Development,Premises-Related Expenditure,"Repairs, alterations and maintenance of buildings",29/06/2018,6230647,75,VENDOR,EMOS INFORMATION SYSTEMS LTD,101405
Portsmouth City Council,PCC,Cultural and Related Services,Library Service,Culture & City Development,Premises-Related Expenditure,"Repairs, alterations and maintenance of buildings",29/06/2018,6230647,75,VENDOR,EMOS INFORMATION SYSTEMS LTD,101405
Portsmouth City Council,PCC,Cultural and Related Services,Library Service,Culture & City Development,Premises-Related Expenditure,"Repairs, alterations and maintenance of buildings",29/06/2018,6230647,225,VENDOR,EMOS INFORMATION SYSTEMS LTD,101405
Portsmouth City Council,PCC,Cultural and Related Services,Library Service,Culture & City Development,Premises-Related Expenditure,"Repairs, alterations and maintenance of buildings",29/06/2018,6230647,75,VENDOR,EMOS INFORMATION SYSTEMS LTD,101405
Portsmouth City Council,PCC,Cultural and Related Services,Library Service,Culture & City Development,Premises-Related Expenditure,"Repairs, alterations and maintenance of buildings",29/06/2018,6230647,75,VENDOR,EMOS INFORMATION SYSTEMS LTD,101405
Portsmouth City Council,PCC,Cultural and Related Services,Library Service,Culture & City Development,Premises-Related Expenditure,"Repairs, alterations and maintenance of buildings",29/06/2018,6230647,225,VENDOR,EMOS INFORMATION SYSTEMS LTD,101405
Portsmouth City Council,PCC,Cultural and Related Services,Library Service,Culture & City Development,Premises-Related Expenditure,"Repairs, alterations and maintenance of buildings",29/06/2018,6230647,75,VENDOR,EMOS INFORMATION SYSTEMS LTD,101405
Portsmouth City Council,PCC,Cultural and Related Services,Library Service,Culture & City Development,Premises-Related Expenditure,"Repairs, alterations and maintenance of buildings",29/06/2018,6230647,75,VENDOR,EMOS INFORMATION SYSTEMS LTD,101405
Portsmouth City Council,PCC,Cultural and Related Services,Library Service,Culture & City Development,Premises-Related Expenditure,"Repairs, alterations and maintenance of buildings",29/06/2018,6230647,225,VENDOR,EMOS INFORMATION SYSTEMS LTD,101405
Portsmouth City Council,PCC,Cultural and Related Services,Library Service,Culture & City Development,Premises-Related Expenditure,"Repairs, alterations and maintenance of buildings",29/06/2018,6230647,75,VENDOR,EMOS INFORMATION SYSTEMS LTD,101405
Portsmouth City Council,PCC,Cultural and Related Services,Library Service,Culture & City Development,Premises-Related Expenditure,"Repairs, alterations and maintenance of buildings",29/06/2018,6230647,75,VENDOR,EMOS INFORMATION SYSTEMS LTD,101405
Portsmouth City Council,PCC,Cultural and Related Services,Library Service,Culture & City Development,Premises-Related Expenditure,"Repairs, alterations and maintenance of buildings",29/06/2018,6230647,225,VENDOR,EMOS INFORMATION SYSTEMS LTD,101405
Portsmouth City Council,PCC,Children's and Education Services,Family Support Services,Children's Services and Education,Third Party Payments,Other establishments,19/06/2018,6228304,107.58,VENDOR,PREPAID FINANCIAL SERVICES,137139
Portsmouth City Council,PCC,Children's and Education Services,Children Looked After,Children's Services and Education,Third Party Payments,Other establishments,19/06/2018,6228304,20.66,VENDOR,PREPAID FINANCIAL SERVICES,137139
Portsmouth City Council,PCC,Children's and Education Services,Other Education and Community Budget,Children's Services and Education,Third Party Payments,Other establishments,19/06/2018,6228304,66.04,VENDOR,PREPAID FINANCIAL SERVICES,137139
Portsmouth City Council,PCC,Children's and Education Services,Other Education and Community Budget,Children's Services and Education,Third Party Payments,Other establishments,19/06/2018,6228304,413.32,VENDOR,PREPAID FINANCIAL SERVICES,137139
Portsmouth City Council,PCC,Adult Social Care,Physical Support Adults (18 - 64),Adult Services,Third Party Payments,Other establishments,19/06/2018,6228304,769.74,VENDOR,PREPAID FINANCIAL SERVICES,137139
Portsmouth City Council,PCC,Adult Social Care,Commissioning & service delivery,Adult Services,Third Party Payments,Other establishments,19/06/2018,6228304,10.58,VENDOR,PREPAID FINANCIAL SERVICES,137139
Portsmouth City Council,PCC,Housing Revenue Account,Special Services,"Housing, Neighbourhood and Building Services",Supplies and Services,Grants and subscriptions,20/06/2018,6229210,18500,VENDOR,LANDPORT COMMUNITY CENTRE ASSOCIATION,126074
Portsmouth City Council,PCC,Housing Revenue Account,Repairs and Maintenance,"Housing, Neighbourhood and Building Services",Premises-Related Expenditure,"Repairs, alterations and maintenance of buildings",21/06/2018,6229280,42579.35,COMPANY,A PURKISS BUILDING AND DECORATING LTD,100338
Portsmouth City Council,PCC,Housing Revenue Account,Repairs and Maintenance,"Housing, Neighbourhood and Building Services",Premises-Related Expenditure,"Repairs, alterations and maintenance of buildings",11/06/2018,6226827,2366.01,COMPANY,ALLSOP AND FRANCIS LIMITED,118132
Portsmouth City Council,PCC,Cultural and Related Services,Culture and Heritage,Culture & City Development,Third Party Payments,Private contractors,15/06/2018,6227998,750,VENDOR,REALIZE CONCEPT INTERIORS LIMITED,143802
Portsmouth City Council,PCC,Adult Social Care,Social Care Activities,Adult Services,Third Party Payments,Other establishments,26/06/2018,6229855,186.31,VENDOR,SAFEGUARDING GP,137636
Portsmouth City Council,PCC,Adult Social Care,Social Care Activities,Adult Services,Third Party Payments,Other establishments,26/06/2018,6229855,186.31,VENDOR,SAFEGUARDING GP,137636
Portsmouth City Council,PCC,Adult Social Care,Social Care Activities,Adult Services,Third Party Payments,Other establishments,26/06/2018,6229855,186.31,VENDOR,SAFEGUARDING GP,137636
Portsmouth City Council,PCC,Adult Social Care,Social Care Activities,Adult Services,Third Party Payments,Other establishments,26/06/2018,6229855,186.31,VENDOR,SAFEGUARDING GP,137636
Portsmouth City Council,PCC,Adult Social Care,Social Care Activities,Adult Services,Third Party Payments,Other establishments,26/06/2018,6229855,186.31,VENDOR,SAFEGUARDING GP,137636
Portsmouth City Council,PCC,Adult Social Care,Social Care Activities,Adult Services,Third Party Payments,Other establishments,26/06/2018,6229855,221.12,VENDOR,SAFEGUARDING GP,137636
Portsmouth City Council,PCC,Adult Social Care,Social Care Activities,Adult Services,Third Party Payments,Other establishments,26/06/2018,6229855,186.31,VENDOR,SAFEGUARDING GP,137636
Portsmouth City Council,PCC,Children's and Education Services,Children Looked After,Children's Services and Education,Third Party Payments,Other establishments,19/06/2018,6228227,6510,VENDOR,BLUE SKY FOSTERING,119870
Portsmouth City Council,PCC,Cultural and Related Services,Library Service,Culture & City Development,Supplies and Services,Communications and computing,11/06/2018,6226916,2843.76,VENDOR,INSIGHT MEDIA INTERNET LTD,104536
Portsmouth City Council,PCC,Cultural and Related Services,Culture and Heritage,Culture & City Development,Supplies and Services,"Equipment, furniture and materials",19/06/2018,6228309,623.72,VENDOR,SDL IMPORTS LTD,101235
Portsmouth City Council,PCC,Costs below Net Cost of Services,Trading,Regeneration,Premises-Related Expenditure,"Repairs, alterations and maintenance of buildings",18/06/2018,6228058,1325,COMPANY,BAILEY BROS (SOUTHERN) LTD,114153
Portsmouth City Council,PCC,Central Services,Elections,Community & Communication,Third Party Payments,Private contractors,06/06/2018,6226424,2167.49,VENDOR,PORTSMOUTH CULTURAL TRUST,134492
Portsmouth City Council,PCC,Support Service / Transparency Costs Unallocated,Personnel,"HR, Legal, Audit & Performance",Employees,Direct employee expenses,01/06/2018,6225545,77342.34,VENDOR,COMENSURA LTD,140265
Portsmouth City Council,PCC,Support Service / Transparency Costs Unallocated,Personnel,"HR, Legal, Audit & Performance",Employees,Direct employee expenses,08/06/2018,6226662,61810.16,VENDOR,COMENSURA LTD,140265
Portsmouth City Council,PCC,Support Service / Transparency Costs Unallocated,Personnel,"HR, Legal, Audit & Performance",Employees,Direct employee expenses,15/06/2018,6227924,73166.49,VENDOR,COMENSURA LTD,140265
Portsmouth City Council,PCC,Support Service / Transparency Costs Unallocated,Personnel,"HR, Legal, Audit & Performance",Employees,Direct employee expenses,22/06/2018,6229439,66849.69,VENDOR,COMENSURA LTD,140265
Portsmouth City Council,PCC,Support Service / Transparency Costs Unallocated,Personnel,"HR, Legal, Audit & Performance",Employees,Direct employee expenses,29/06/2018,6230602,70294.27,VENDOR,COMENSURA LTD,140265
Portsmouth City Council,PCC,Housing Revenue Account,Supervision and Management,"Housing, Neighbourhood and Building Services",Employees,Direct employee expenses,06/06/2018,6226025,5410,VENDOR,ELMHURST ENERGY SYSTEMS LTD,127591
Portsmouth City Council,PCC,Planning Services,Business support,Regeneration,Premises-Related Expenditure,"Repairs, alterations and maintenance of buildings",26/06/2018,6229797,902,COMPANY,D & J MEADEN LIMITED,130022
Portsmouth City Council,PCC,Planning Services,Business support,Regeneration,Premises-Related Expenditure,"Repairs, alterations and maintenance of buildings",26/06/2018,6229797,126,COMPANY,D & J MEADEN LIMITED,130022
Portsmouth City Council,PCC,Planning Services,Business support,Regeneration,Premises-Related Expenditure,"Repairs, alterations and maintenance of buildings",26/06/2018,6229797,628,COMPANY,D & J MEADEN LIMITED,130022
Portsmouth City Council,PCC,Planning Services,Business support,Regeneration,Premises-Related Expenditure,"Repairs, alterations and maintenance of buildings",26/06/2018,6229797,36.4,COMPANY,D & J MEADEN LIMITED,130022
Portsmouth City Council,PCC,Planning Services,Business support,Regeneration,Premises-Related Expenditure,"Repairs, alterations and maintenance of buildings",26/06/2018,6229797,48,COMPANY,D & J MEADEN LIMITED,130022
Portsmouth City Council,PCC,Planning Services,Business support,Regeneration,Premises-Related Expenditure,"Repairs, alterations and maintenance of buildings",28/06/2018,6230459,925.39,COMPANY,D & J MEADEN LIMITED,130022
Portsmouth City Council,PCC,Children's and Education Services,Children Looked After,Children's Services and Education,Third Party Payments,Other establishments,22/06/2018,6229474,2166,VENDOR,DIAGRAMA FOUNDATION,121858
Portsmouth City Council,PCC,Children's and Education Services,Children Looked After,Children's Services and Education,Third Party Payments,Other establishments,22/06/2018,6229474,1800,VENDOR,DIAGRAMA FOUNDATION,121858
Portsmouth City Council,PCC,Highways and Transport Services,"Airports, Harbours and Toll Facilities",Portsmouth International Port,Supplies and Services,Miscellaneous expenses,11/06/2018,6226826,45.84,VENDOR,ADARE INTERNATIONAL LTD,138060
Portsmouth City Council,PCC,Highways and Transport Services,"Airports, Harbours and Toll Facilities",Portsmouth International Port,Supplies and Services,Miscellaneous expenses,11/06/2018,6226826,3940,VENDOR,ADARE INTERNATIONAL LTD,138060
Portsmouth City Council,PCC,Highways and Transport Services,"Airports, Harbours and Toll Facilities",Portsmouth International Port,Supplies and Services,Miscellaneous expenses,11/06/2018,6226826,59.74,VENDOR,ADARE INTERNATIONAL LTD,138060
Portsmouth City Council,PCC,Highways and Transport Services,"Airports, Harbours and Toll Facilities",Portsmouth International Port,Supplies and Services,Miscellaneous expenses,11/06/2018,6226826,165,VENDOR,ADARE INTERNATIONAL LTD,138060
Portsmouth City Council,PCC,Children's and Education Services,Children Looked After,Children's Services and Education,Third Party Payments,Other establishments,22/06/2018,6229474,9000,VENDOR,DIAGRAMA FOUNDATION,121858
Portsmouth City Council,PCC,Children's and Education Services,Children Looked After,Children's Services and Education,Third Party Payments,Other establishments,22/06/2018,6229474,900,VENDOR,DIAGRAMA FOUNDATION,121858
Portsmouth City Council,PCC,Other,Suspense and Capital Schemes,Capital - Traffic & Transportation,Capital Charges,Capital Expenditure (WIP),07/06/2018,6226586,745,COMPANY,SIEMENS PLC,106546
Portsmouth City Council,PCC,Other,Suspense and Capital Schemes,Capital - Traffic & Transportation,Capital Charges,Capital Expenditure (WIP),07/06/2018,6226586,511.79,COMPANY,SIEMENS PLC,106546
Portsmouth City Council,PCC,Cultural and Related Services,Allocation of Management & Admin,Community & Communication,Supplies and Services,"Printing, stationery and general office expenses",11/06/2018,6226913,-24,VENDOR,HOLBROOKS PRINTERS LTD,100893
Portsmouth City Council,PCC,Other,Suspense and Capital Schemes,Capital - PRED (Excl. Port & Solent LEP),Capital Charges,Capital Expenditure (WIP),04/06/2018,6225824,3062.5,VENDOR,THE OYSTER PARTNERSHIP,120530
Portsmouth City Council,PCC,Other,Suspense and Capital Schemes,Capital - PRED (Excl. Port & Solent LEP),Capital Charges,Capital Expenditure (WIP),05/06/2018,6225961,3062.5,VENDOR,THE OYSTER PARTNERSHIP,120530
Portsmouth City Council,PCC,Other,Suspense and Capital Schemes,Capital - PRED (Excl. Port & Solent LEP),Capital Charges,Capital Expenditure (WIP),19/06/2018,6228319,3062.5,VENDOR,THE OYSTER PARTNERSHIP,120530
Portsmouth City Council,PCC,Other,Suspense and Capital Schemes,Capital - PRED (Excl. Port & Solent LEP),Capital Charges,Capital Expenditure (WIP),19/06/2018,6228319,3062.5,VENDOR,THE OYSTER PARTNERSHIP,120530
Portsmouth City Council,PCC,Other,Suspense and Capital Schemes,Capital - PRED (Excl. Port & Solent LEP),Capital Charges,Capital Expenditure (WIP),27/06/2018,6230386,3062.5,VENDOR,THE OYSTER PARTNERSHIP,120530
Portsmouth City Council,PCC,Housing Revenue Account,Repairs and Maintenance,"Housing, Neighbourhood and Building Services",Premises-Related Expenditure,"Repairs, alterations and maintenance of buildings",15/06/2018,6227954,658,VENDOR,EASY CARE SYSTEMS LIMITED,108899
Portsmouth City Council,PCC,Support Service / Transparency Costs Unallocated,Procurement,Finance & IT,Supplies and Services,Communications and computing,18/06/2018,6228135,3433.49,VENDOR,IN-TEND LTD,121323
Portsmouth City Council,PCC,Children's and Education Services,Asylum seekers,Children's Services and Education,Supplies and Services,Services,15/06/2018,6227945,43,VENDOR,D A LANGUAGES LIMITED,140878
Portsmouth City Council,PCC,Children's and Education Services,Asylum seekers,Children's Services and Education,Supplies and Services,Services,18/06/2018,6228114,47,VENDOR,D A LANGUAGES LIMITED,140878
Portsmouth City Council,PCC,Adult Social Care,Support with Memory and Cognition Older People (65 - 74),Adult Services,Supplies and Services,Catering,18/06/2018,6228064,155.52,VENDOR,BOLERO DRINKS LTD,143993
Portsmouth City Council,PCC,Cultural and Related Services,Recreation and Sport,Culture & City Development,Premises-Related Expenditure,Fixtures and fittings,05/06/2018,6225913,792,VENDOR,LUMISPHERE PRODUCTS LTD,100203
Portsmouth City Council,PCC,Cultural and Related Services,Recreation and Sport,Culture & City Development,Supplies and Services,"Printing, stationery and general office expenses",05/06/2018,6225913,25.5,VENDOR,LUMISPHERE PRODUCTS LTD,100203
Portsmouth City Council,PCC,Support Service / Transparency Costs Unallocated,Financial Services,Finance & IT,Supplies and Services,Grants and subscriptions,25/06/2018,6229648,2065,VENDOR,LAVAT CONSULTING LTD,125232
Portsmouth City Council,PCC,Support Service / Transparency Costs Unallocated,Information Services,Finance & IT,Supplies and Services,Communications and computing,27/06/2018,6229911,46.08,VENDOR,CIVICA UK LTD,104001
Portsmouth City Council,PCC,Support Service / Transparency Costs Unallocated,Information Services,Finance & IT,Supplies and Services,Communications and computing,27/06/2018,6229911,216.4,VENDOR,CIVICA UK LTD,104001
Portsmouth City Council,PCC,Support Service / Transparency Costs Unallocated,Information Services,Finance & IT,Supplies and Services,Communications and computing,27/06/2018,6229911,82.61,VENDOR,CIVICA UK LTD,104001
Portsmouth City Council,PCC,Support Service / Transparency Costs Unallocated,Information Services,Finance & IT,Supplies and Services,Communications and computing,27/06/2018,6229911,20.56,VENDOR,CIVICA UK LTD,104001
Portsmouth City Council,PCC,Support Service / Transparency Costs Unallocated,Information Services,Finance & IT,Supplies and Services,Communications and computing,27/06/2018,6229911,26.8,VENDOR,CIVICA UK LTD,104001
Portsmouth City Council,PCC,Support Service / Transparency Costs Unallocated,Information Services,Finance & IT,Supplies and Services,Communications and computing,27/06/2018,6229911,7725.48,VENDOR,CIVICA UK LTD,104001
Portsmouth City Council,PCC,Support Service / Transparency Costs Unallocated,Information Services,Finance & IT,Supplies and Services,Communications and computing,27/06/2018,6229911,7189.8,VENDOR,CIVICA UK LTD,104001
Portsmouth City Council,PCC,Support Service / Transparency Costs Unallocated,Information Services,Finance & IT,Supplies and Services,Communications and computing,27/06/2018,6229911,4794,VENDOR,CIVICA UK LTD,104001
Portsmouth City Council,PCC,Support Service / Transparency Costs Unallocated,Information Services,Finance & IT,Supplies and Services,Communications and computing,27/06/2018,6229911,6179.3,VENDOR,CIVICA UK LTD,104001
Portsmouth City Council,PCC,Support Service / Transparency Costs Unallocated,Information Services,Finance & IT,Supplies and Services,Communications and computing,27/06/2018,6229911,51156,VENDOR,CIVICA UK LTD,104001
Portsmouth City Council,PCC,Support Service / Transparency Costs Unallocated,Information Services,Finance & IT,Supplies and Services,Communications and computing,27/06/2018,6229911,129548.25,VENDOR,CIVICA UK LTD,104001
Portsmouth City Council,PCC,Support Service / Transparency Costs Unallocated,Information Services,Finance & IT,Supplies and Services,Communications and computing,27/06/2018,6229911,140080.72,VENDOR,CIVICA UK LTD,104001
Portsmouth City Council,PCC,Support Service / Transparency Costs Unallocated,Information Services,Finance & IT,Supplies and Services,Communications and computing,27/06/2018,6229911,54036.6,VENDOR,CIVICA UK LTD,104001
Portsmouth City Council,PCC,Support Service / Transparency Costs Unallocated,Information Services,Finance & IT,Supplies and Services,Communications and computing,27/06/2018,6229911,2216.48,VENDOR,CIVICA UK LTD,104001
Portsmouth City Council,PCC,Support Service / Transparency Costs Unallocated,Information Services,Finance & IT,Supplies and Services,Communications and computing,27/06/2018,6229911,2016.56,VENDOR,CIVICA UK LTD,104001
Portsmouth City Council,PCC,Children's and Education Services,Safeguarding Children and Young Peoples Services,Children's Services and Education,Supplies and Services,Miscellaneous expenses,01/06/2018,6225604,103.8,VENDOR,FREEDOM IOW LTD,110290
Portsmouth City Council,PCC,Other,Suspense and Capital Schemes,Portsmouth International Port,Supplies and Services,Miscellaneous expenses,28/06/2018,6230473,6000,VENDOR,EXPRESS WELDCARE SERVICES LTD,100776
Portsmouth City Council,PCC,Adult Social Care,Learning Disability Support  Adults (18 - 64),Adult Services,Third Party Payments,Other establishments,13/06/2018,6227689,135,SOLETRADER,Classified as 'personal data' (under the Data Protection Act 1998),141627
Portsmouth City Council,PCC,Children's and Education Services,Safeguarding Children and Young Peoples Services,Children's Services and Education,Supplies and Services,Miscellaneous expenses,01/06/2018,6225604,1044,VENDOR,FREEDOM IOW LTD,110290
Portsmouth City Council,PCC,Children's and Education Services,Safeguarding Children and Young Peoples Services,Children's Services and Education,Supplies and Services,Miscellaneous expenses,01/06/2018,6225604,1032.72,VENDOR,FREEDOM IOW LTD,110290
Portsmouth City Council,PCC,Support Service / Transparency Costs Unallocated,Personnel,"HR, Legal, Audit & Performance",Supplies and Services,"Printing, stationery and general office expenses",08/06/2018,6226777,775.11,VENDOR,ROYAL MAIL,100182
Portsmouth City Council,PCC,Environmental and Regulatory Services,Regulatory Services,"Housing, Neighbourhood and Building Services",Supplies and Services,"Printing, stationery and general office expenses",06/06/2018,6226431,66.67,VENDOR,ROYAL MAIL,100182
Portsmouth City Council,PCC,Other,Suspense and Capital Schemes,Capital - Housing RA,Capital Charges,Capital Expenditure (WIP),29/06/2018,6230698,1348.5,VENDOR,PORTSMOUTH CULTURAL TRUST,134492
Portsmouth City Council,PCC,Highways and Transport Services,"Airports, Harbours and Toll Facilities",Portsmouth International Port,Third Party Payments,Private contractors,01/06/2018,6225610,1063,OTHER LOCAL AUTHORITY,HAMPSHIRE COUNTY COUNCIL,100030
Portsmouth City Council,PCC,Costs below Net Cost of Services,Trading,Regeneration,Third Party Payments,Private contractors,14/06/2018,6227826,1616,VENDOR,DEFENCE ESTATES SOUTHWEST,111693
Portsmouth City Council,PCC,Costs below Net Cost of Services,Trading,Regeneration,Third Party Payments,Private contractors,12/06/2018,6227082,1616,VENDOR,DEFENCE ESTATES SOUTHWEST,111693
Portsmouth City Council,PCC,Housing Services,Homelessness,"Housing, Neighbourhood and Building Services",Premises-Related Expenditure,Rents,25/06/2018,6229654,3590.04,VENDOR,Classified as 'personal data' (under the Data Protection Act 1998),143986
Portsmouth City Council,PCC,Children's and Education Services,Family Support Services,Children's Services and Education,Employees,Direct employee expenses,13/06/2018,6227772,55,VENDOR,THE UNIVERSITY OF CHICHESTER,102581
Portsmouth City Council,PCC,Children's and Education Services,Family Support Services,Children's Services and Education,Employees,Direct employee expenses,13/06/2018,6227772,1325,VENDOR,THE UNIVERSITY OF CHICHESTER,102581
Portsmouth City Council,PCC,Central Services,Elections,Community & Communication,Supplies and Services,"Printing, stationery and general office expenses",04/06/2018,6225763,39273.71,VENDOR,FINANCIAL DATA MANANGEMENT PLC,102246
Portsmouth City Council,PCC,Central Services,Elections,Community & Communication,Supplies and Services,"Printing, stationery and general office expenses",29/06/2018,6230651,1026.27,VENDOR,FINANCIAL DATA MANANGEMENT PLC,102246
Portsmouth City Council,PCC,Planning Services,Business support,Regeneration,Premises-Related Expenditure,"Repairs, alterations and maintenance of buildings",06/06/2018,6226440,20.16,VENDOR,SIX DEGREES TECHNOLOGY GROUP LTD,137034
Portsmouth City Council,PCC,Planning Services,Business support,Regeneration,Premises-Related Expenditure,"Repairs, alterations and maintenance of buildings",06/06/2018,6226440,37.32,VENDOR,SIX DEGREES TECHNOLOGY GROUP LTD,137034
Portsmouth City Council,PCC,Cultural and Related Services,Recreation and Sport,Culture & City Development,Premises-Related Expenditure,"Repairs, alterations and maintenance of buildings",06/06/2018,6226440,37.32,VENDOR,SIX DEGREES TECHNOLOGY GROUP LTD,137034
Portsmouth City Council,PCC,Support Service / Transparency Costs Unallocated,LLM,"Housing, Neighbourhood and Building Services",Premises-Related Expenditure,"Repairs, alterations and maintenance of buildings",06/06/2018,6226440,18.66,VENDOR,SIX DEGREES TECHNOLOGY GROUP LTD,137034
Portsmouth City Council,PCC,Support Service / Transparency Costs Unallocated,LLM,"Housing, Neighbourhood and Building Services",Premises-Related Expenditure,"Repairs, alterations and maintenance of buildings",06/06/2018,6226440,57.48,VENDOR,SIX DEGREES TECHNOLOGY GROUP LTD,137034
Portsmouth City Council,PCC,Support Service / Transparency Costs Unallocated,LLM,"Housing, Neighbourhood and Building Services",Premises-Related Expenditure,"Repairs, alterations and maintenance of buildings",06/06/2018,6226440,18.66,VENDOR,SIX DEGREES TECHNOLOGY GROUP LTD,137034
Portsmouth City Council,PCC,Support Service / Transparency Costs Unallocated,LLM,"Housing, Neighbourhood and Building Services",Premises-Related Expenditure,"Repairs, alterations and maintenance of buildings",06/06/2018,6226440,18.66,VENDOR,SIX DEGREES TECHNOLOGY GROUP LTD,137034
Portsmouth City Council,PCC,Support Service / Transparency Costs Unallocated,LLM,"Housing, Neighbourhood and Building Services",Premises-Related Expenditure,"Repairs, alterations and maintenance of buildings",06/06/2018,6226440,18.66,VENDOR,SIX DEGREES TECHNOLOGY GROUP LTD,137034
Portsmouth City Council,PCC,Support Service / Transparency Costs Unallocated,LLM,"Housing, Neighbourhood and Building Services",Premises-Related Expenditure,"Repairs, alterations and maintenance of buildings",06/06/2018,6226440,20.16,VENDOR,SIX DEGREES TECHNOLOGY GROUP LTD,137034
Portsmouth City Council,PCC,Support Service / Transparency Costs Unallocated,LLM,"Housing, Neighbourhood and Building Services",Premises-Related Expenditure,"Repairs, alterations and maintenance of buildings",06/06/2018,6226440,40.32,VENDOR,SIX DEGREES TECHNOLOGY GROUP LTD,137034
Portsmouth City Council,PCC,Support Service / Transparency Costs Unallocated,LLM,"Housing, Neighbourhood and Building Services",Premises-Related Expenditure,"Repairs, alterations and maintenance of buildings",06/06/2018,6226440,20.16,VENDOR,SIX DEGREES TECHNOLOGY GROUP LTD,137034
Portsmouth City Council,PCC,Support Service / Transparency Costs Unallocated,LLM,"Housing, Neighbourhood and Building Services",Premises-Related Expenditure,"Repairs, alterations and maintenance of buildings",06/06/2018,6226440,20.16,VENDOR,SIX DEGREES TECHNOLOGY GROUP LTD,137034
Portsmouth City Council,PCC,Support Service / Transparency Costs Unallocated,LLM,"Housing, Neighbourhood and Building Services",Premises-Related Expenditure,"Repairs, alterations and maintenance of buildings",06/06/2018,6226440,20.16,VENDOR,SIX DEGREES TECHNOLOGY GROUP LTD,137034
Portsmouth City Council,PCC,Support Service / Transparency Costs Unallocated,LLM,"Housing, Neighbourhood and Building Services",Premises-Related Expenditure,"Repairs, alterations and maintenance of buildings",06/06/2018,6226440,18.66,VENDOR,SIX DEGREES TECHNOLOGY GROUP LTD,137034
Portsmouth City Council,PCC,Support Service / Transparency Costs Unallocated,LLM,"Housing, Neighbourhood and Building Services",Premises-Related Expenditure,"Repairs, alterations and maintenance of buildings",06/06/2018,6226440,18.66,VENDOR,SIX DEGREES TECHNOLOGY GROUP LTD,137034
Portsmouth City Council,PCC,Support Service / Transparency Costs Unallocated,LLM,"Housing, Neighbourhood and Building Services",Premises-Related Expenditure,"Repairs, alterations and maintenance of buildings",06/06/2018,6226440,18.66,VENDOR,SIX DEGREES TECHNOLOGY GROUP LTD,137034
Portsmouth City Council,PCC,Housing Revenue Account,Repairs and Maintenance,"Housing, Neighbourhood and Building Services",Premises-Related Expenditure,"Repairs, alterations and maintenance of buildings",06/06/2018,6226440,1591.94,VENDOR,SIX DEGREES TECHNOLOGY GROUP LTD,137034
Portsmouth City Council,PCC,Children's and Education Services,Children Looked After,Children's Services and Education,Supplies and Services,"Equipment, furniture and materials",14/06/2018,6227864,2928.6,VENDOR,PORTSMOUTH COMMUNICATIONS LTD,106039
Portsmouth City Council,PCC,Children's and Education Services,Family Support Services,Children's Services and Education,Supplies and Services,Communications and computing,06/06/2018,6226423,1037.13,VENDOR,PORTSMOUTH COMMUNICATIONS LTD,106039
Portsmouth City Council,PCC,Other,Suspense and Capital Schemes,Capital - Resources,Capital Charges,Capital Expenditure (WIP),20/06/2018,6229227,782.6,VENDOR,PORTSMOUTH COMMUNICATIONS LTD,106039
Portsmouth City Council,PCC,Housing Services,Private Sector Housing Renewal,"Housing, Neighbourhood and Building Services",Supplies and Services,Grants and subscriptions,13/06/2018,6227704,-750,VENDOR,KEMP BUILDERS,135362
Portsmouth City Council,PCC,Other,Suspense and Capital Schemes,Capital - Housing GF,Capital Charges,REFCUS,13/06/2018,6227704,21210.4,VENDOR,KEMP BUILDERS,135362
Portsmouth City Council,PCC,Housing Services,Private Sector Housing Renewal,"Housing, Neighbourhood and Building Services",Income,Other grants reimbursements and contributions,13/06/2018,6227704,-2670.67,VENDOR,KEMP BUILDERS,135362
Portsmouth City Council,PCC,Other,Suspense and Capital Schemes,Capital - Housing GF,Capital Charges,REFCUS,20/06/2018,6229209,9093.52,VENDOR,KEMP BUILDERS,135362
Portsmouth City Council,PCC,Other,Suspense and Capital Schemes,Capital - Housing GF,Capital Charges,REFCUS,20/06/2018,6229209,4648.52,VENDOR,KEMP BUILDERS,135362
Portsmouth City Council,PCC,Other,Suspense and Capital Schemes,Regeneration,Third Party Payments,Private contractors,27/06/2018,6230303,450000,OTHER LOCAL AUTHORITY,HAMPSHIRE COUNTY COUNCIL,100030
Portsmouth City Council,PCC,Housing Services,Homelessness,"Housing, Neighbourhood and Building Services",Premises-Related Expenditure,Rents,25/06/2018,6229585,1800,SOLETRADER,Classified as 'personal data' (under the Data Protection Act 1998),139708
Portsmouth City Council,PCC,Adult Social Care,Social Care Activities,Adult Services,Third Party Payments,Other establishments,26/06/2018,318814,186.31,VENDOR,SAFEGUARDING GP,137636
Portsmouth City Council,PCC,Adult Social Care,Social Care Activities,Adult Services,Third Party Payments,Other establishments,26/06/2018,318814,204.81,VENDOR,SAFEGUARDING GP,137636
Portsmouth City Council,PCC,Adult Social Care,Physical Support Older People (85+),Adult Services,Third Party Payments,Other establishments,28/06/2018,6230555,56.32,VENDOR,UNIVERSAL CARE AGENCY LTD,139975
Portsmouth City Council,PCC,Adult Social Care,Physical Support Older People (85+),Adult Services,Third Party Payments,Other establishments,26/06/2018,6229750,31200,VENDOR,AGINCARE UK,134367
Portsmouth City Council,PCC,Adult Social Care,Physical Support Older People (85+),Adult Services,Third Party Payments,Other establishments,26/06/2018,6229750,3000,VENDOR,AGINCARE UK,134367
Portsmouth City Council,PCC,Adult Social Care,Physical Support Older People (85+),Adult Services,Third Party Payments,Other establishments,26/06/2018,6229750,187.35,VENDOR,AGINCARE UK,134367
Portsmouth City Council,PCC,Adult Social Care,Physical Support Older People (85+),Adult Services,Third Party Payments,Other establishments,26/06/2018,6229750,30225,VENDOR,AGINCARE UK,134367
Portsmouth City Council,PCC,Adult Social Care,Physical Support Older People (85+),Adult Services,Third Party Payments,Other establishments,26/06/2018,6229750,3000,VENDOR,AGINCARE UK,134367
Portsmouth City Council,PCC,Adult Social Care,Physical Support Older People (85+),Adult Services,Third Party Payments,Other establishments,26/06/2018,6229750,26882.14,VENDOR,AGINCARE UK,134367
Portsmouth City Council,PCC,Adult Social Care,Physical Support Older People (85+),Adult Services,Third Party Payments,Other establishments,26/06/2018,6229750,3000,VENDOR,AGINCARE UK,134367
Portsmouth City Council,PCC,Adult Social Care,Physical Support Older People (85+),Adult Services,Third Party Payments,Other establishments,26/06/2018,6229750,104.3,VENDOR,AGINCARE UK,134367
Portsmouth City Council,PCC,Adult Social Care,Physical Support Older People (85+),Adult Services,Third Party Payments,Other establishments,12/06/2018,6227015,1817.06,VENDOR,AGINCARE UK,134367
Portsmouth City Council,PCC,Adult Social Care,Physical Support Older People (85+),Adult Services,Third Party Payments,Other establishments,22/06/2018,6229427,1817.06,VENDOR,AGINCARE UK,134367
Portsmouth City Council,PCC,Highways and Transport Services,"Airports, Harbours and Toll Facilities",Portsmouth International Port,Premises-Related Expenditure,Rents,11/06/2018,6226942,22781.25,COMPANY,NETWORK RAIL INFRASTRUCTURE LIMITED,106694
Portsmouth City Council,PCC,Highways and Transport Services,"Airports, Harbours and Toll Facilities",Portsmouth International Port,Transport-Related Expenditure,Direct transport costs,01/06/2018,6225650,18396.3,VENDOR,SGS UNITED KINGDOM LTD,105507
Portsmouth City Council,PCC,Highways and Transport Services,"Airports, Harbours and Toll Facilities",Portsmouth International Port,Transport-Related Expenditure,Direct transport costs,14/06/2018,6227873,14225.2,VENDOR,SGS UNITED KINGDOM LTD,105507
Portsmouth City Council,PCC,Environmental and Regulatory Services,Regulatory Services,Culture & City Development,Employees,Direct employee expenses,28/06/2018,6230521,50,VENDOR,RMC EMEA LIMITED,122070
Portsmouth City Council,PCC,Children's and Education Services,Other Children and Family Services,Children's Services and Education,Employees,Direct employee expenses,28/06/2018,6230521,214,VENDOR,RMC EMEA LIMITED,122070
Portsmouth City Council,PCC,Adult Social Care,Commissioning & service delivery,Adult Services,Employees,Direct employee expenses,28/06/2018,6230521,128,VENDOR,RMC EMEA LIMITED,122070
Portsmouth City Council,PCC,Public Health,Public Health - Split Costing,Public Health,Employees,Direct employee expenses,28/06/2018,6230521,350,VENDOR,RMC EMEA LIMITED,122070
Portsmouth City Council,PCC,Housing Revenue Account,Supervision and Management,"Housing, Neighbourhood and Building Services",Employees,Direct employee expenses,28/06/2018,6230521,520,VENDOR,RMC EMEA LIMITED,122070
Portsmouth City Council,PCC,Support Service / Transparency Costs Unallocated,Personnel,"HR, Legal, Audit & Performance",Employees,Direct employee expenses,28/06/2018,6230521,64,VENDOR,RMC EMEA LIMITED,122070
Portsmouth City Council,PCC,Support Service / Transparency Costs Unallocated,Personnel,"HR, Legal, Audit & Performance",Employees,Direct employee expenses,28/06/2018,6230521,481.85,VENDOR,RMC EMEA LIMITED,122070
Portsmouth City Council,PCC,Other,Suspense and Capital Schemes,"HR, Legal, Audit & Performance",Employees,Direct employee expenses,28/06/2018,6230521,733.4,VENDOR,RMC EMEA LIMITED,122070
Portsmouth City Council,PCC,Support Service / Transparency Costs Unallocated,Personnel,"HR, Legal, Audit & Performance",Employees,Direct employee expenses,28/06/2018,6230521,165.36,VENDOR,RMC EMEA LIMITED,122070
Portsmouth City Council,PCC,Adult Social Care,Information and Early Intervention,Adult Services,Premises-Related Expenditure,Cleaning and domestic supplies,01/06/2018,6225638,547.32,VENDOR,NVIRO LTD,124507
Portsmouth City Council,PCC,Adult Social Care,Learning Disability Support  Adults (18 - 64),Adult Services,Premises-Related Expenditure,Cleaning and domestic supplies,06/06/2018,6226417,1209.96,VENDOR,NVIRO LTD,124507
Portsmouth City Council,PCC,Adult Social Care,Learning Disability Support  Adults (18 - 64),Adult Services,Premises-Related Expenditure,Cleaning and domestic supplies,08/06/2018,6226758,1214.62,VENDOR,NVIRO LTD,124507
Portsmouth City Council,PCC,Highways and Transport Services,"Airports, Harbours and Toll Facilities",Portsmouth International Port,Premises-Related Expenditure,Cleaning and domestic supplies,28/06/2018,6230503,8514.07,VENDOR,NVIRO LTD,124507
Portsmouth City Council,PCC,Highways and Transport Services,"Airports, Harbours and Toll Facilities",Portsmouth International Port,Premises-Related Expenditure,Cleaning and domestic supplies,28/06/2018,6230503,8514.06,VENDOR,NVIRO LTD,124507
Portsmouth City Council,PCC,Highways and Transport Services,"Airports, Harbours and Toll Facilities",Portsmouth International Port,Premises-Related Expenditure,Cleaning and domestic supplies,28/06/2018,6230503,2167,VENDOR,NVIRO LTD,124507
Portsmouth City Council,PCC,Adult Social Care,Learning Disability Support  Adults (18 - 64),Adult Services,Premises-Related Expenditure,Cleaning and domestic supplies,01/06/2018,6225638,4872.85,VENDOR,NVIRO LTD,124507
Portsmouth City Council,PCC,Adult Social Care,Learning Disability Support  Adults (18 - 64),Adult Services,Premises-Related Expenditure,Cleaning and domestic supplies,28/06/2018,6230503,163.72,VENDOR,NVIRO LTD,124507
Portsmouth City Council,PCC,Housing Revenue Account,Special Services,"Housing, Neighbourhood and Building Services",Employees,Direct employee expenses,13/06/2018,6227250,3474.25,VENDOR,APEX PROPERTY VENTURES LTD,108437
Portsmouth City Council,PCC,Other,Suspense and Capital Schemes,Capital - Traffic & Transportation,Capital Charges,Capital Expenditure (WIP),21/06/2018,6229330,187.15,VENDOR,DLM DISTRIBUTION LTD,143707
Portsmouth City Council,PCC,Other,Suspense and Capital Schemes,Capital - Traffic & Transportation,Capital Charges,Capital Expenditure (WIP),21/06/2018,6229330,616.49,VENDOR,DLM DISTRIBUTION LTD,143707
Portsmouth City Council,PCC,Housing Revenue Account,Supervision and Management,"Housing, Neighbourhood and Building Services",Supplies and Services,Grants and subscriptions,06/06/2018,6226403,925,VENDOR,HOUSING SYSTEMS LTD,141522
Portsmouth City Council,PCC,Children's and Education Services,Children Looked After,Children's Services and Education,Employees,Direct employee expenses,11/06/2018,6226943,950,VENDOR,NEW FAMILY SOCIAL,134951
Portsmouth City Council,PCC,Adult Social Care,Physical Support Older People (85+),Adult Services,Third Party Payments,Other establishments,01/06/2018,6225531,319.02,VENDOR,APEX PROPERTY VENTURES LTD,108437
Portsmouth City Council,PCC,Adult Social Care,Physical Support Older People (85+),Adult Services,Third Party Payments,Other establishments,01/06/2018,6225531,229.04,VENDOR,APEX PROPERTY VENTURES LTD,108437
Portsmouth City Council,PCC,Adult Social Care,Social Care Activities,Adult Services,Third Party Payments,Other establishments,01/06/2018,6225531,10302.34,VENDOR,APEX PROPERTY VENTURES LTD,108437
Portsmouth City Council,PCC,Adult Social Care,Social Care Activities,Adult Services,Third Party Payments,Other establishments,01/06/2018,6225531,16.36,VENDOR,APEX PROPERTY VENTURES LTD,108437
Portsmouth City Council,PCC,Adult Social Care,Physical Support Older People (85+),Adult Services,Third Party Payments,Other establishments,19/06/2018,6228217,1075.67,VENDOR,APEX PROPERTY VENTURES LTD,108437
Portsmouth City Council,PCC,Adult Social Care,Physical Support Older People (85+),Adult Services,Third Party Payments,Other establishments,11/06/2018,6226830,1586.92,VENDOR,APEX PROPERTY VENTURES LTD,108437
Portsmouth City Council,PCC,Adult Social Care,Physical Support Older People (85+),Adult Services,Third Party Payments,Other establishments,01/06/2018,6225531,1042.95,VENDOR,APEX PROPERTY VENTURES LTD,108437
Portsmouth City Council,PCC,Housing Revenue Account,Special Services,"Housing, Neighbourhood and Building Services",Employees,Direct employee expenses,14/06/2018,6227789,3553.76,VENDOR,APEX PROPERTY VENTURES LTD,108437
Portsmouth City Council,PCC,Adult Social Care,Physical Support Older People (85+),Adult Services,Third Party Payments,Other establishments,29/06/2018,6230575,331.29,VENDOR,APEX PROPERTY VENTURES LTD,108437
Portsmouth City Council,PCC,Adult Social Care,Physical Support Older People (85+),Adult Services,Third Party Payments,Other establishments,29/06/2018,6230575,216.77,VENDOR,APEX PROPERTY VENTURES LTD,108437
Portsmouth City Council,PCC,Adult Social Care,Social Care Activities,Adult Services,Third Party Payments,Other establishments,29/06/2018,6230575,10438.39,VENDOR,APEX PROPERTY VENTURES LTD,108437
Portsmouth City Council,PCC,Adult Social Care,Physical Support Older People (85+),Adult Services,Third Party Payments,Other establishments,29/06/2018,6230575,65.44,VENDOR,APEX PROPERTY VENTURES LTD,108437
Portsmouth City Council,PCC,Adult Social Care,Physical Support Older People (85+),Adult Services,Third Party Payments,Other establishments,29/06/2018,6230575,687.12,VENDOR,APEX PROPERTY VENTURES LTD,108437
Portsmouth City Council,PCC,Adult Social Care,Social Care Activities,Adult Services,Third Party Payments,Other establishments,29/06/2018,6230575,2143.16,VENDOR,APEX PROPERTY VENTURES LTD,108437
Portsmouth City Council,PCC,Adult Social Care,Physical Support Adults (18 - 64),Adult Services,Third Party Payments,Other establishments,29/06/2018,6230575,196.32,VENDOR,APEX PROPERTY VENTURES LTD,108437
Portsmouth City Council,PCC,Adult Social Care,Physical Support Older People (85+),Adult Services,Third Party Payments,Other establishments,29/06/2018,6230575,2274.04,VENDOR,APEX PROPERTY VENTURES LTD,108437
Portsmouth City Council,PCC,Adult Social Care,Physical Support Older People (85+),Adult Services,Third Party Payments,Other establishments,29/06/2018,6230575,687.12,VENDOR,APEX PROPERTY VENTURES LTD,108437
Portsmouth City Council,PCC,Adult Social Care,Physical Support Older People (85+),Adult Services,Third Party Payments,Other establishments,29/06/2018,6230575,359.92,VENDOR,APEX PROPERTY VENTURES LTD,108437
Portsmouth City Council,PCC,Adult Social Care,Physical Support Older People (85+),Adult Services,Third Party Payments,Other establishments,29/06/2018,6230575,327.2,VENDOR,APEX PROPERTY VENTURES LTD,108437
Portsmouth City Council,PCC,Adult Social Care,Physical Support Older People (85+),Adult Services,Third Party Payments,Other establishments,29/06/2018,6230575,376.28,VENDOR,APEX PROPERTY VENTURES LTD,108437
Portsmouth City Council,PCC,Adult Social Care,Physical Support Older People (85+),Adult Services,Third Party Payments,Other establishments,29/06/2018,6230575,368.1,VENDOR,APEX PROPERTY VENTURES LTD,108437
Portsmouth City Council,PCC,Adult Social Care,Physical Support Adults (18 - 64),Adult Services,Third Party Payments,Other establishments,29/06/2018,6230575,98.16,VENDOR,APEX PROPERTY VENTURES LTD,108437
Portsmouth City Council,PCC,Adult Social Care,Physical Support Older People (85+),Adult Services,Third Party Payments,Other establishments,29/06/2018,6230575,801.64,VENDOR,APEX PROPERTY VENTURES LTD,108437
Portsmouth City Council,PCC,Adult Social Care,Physical Support Older People (85+),Adult Services,Third Party Payments,Other establishments,29/06/2018,6230575,339.47,VENDOR,APEX PROPERTY VENTURES LTD,108437
Portsmouth City Council,PCC,Adult Social Care,Physical Support Older People (85+),Adult Services,Third Party Payments,Other establishments,29/06/2018,6230575,1832.32,VENDOR,APEX PROPERTY VENTURES LTD,108437
Portsmouth City Council,PCC,Adult Social Care,Physical Support Older People (85+),Adult Services,Third Party Payments,Other establishments,29/06/2018,6230575,32.72,VENDOR,APEX PROPERTY VENTURES LTD,108437
Portsmouth City Council,PCC,Adult Social Care,Physical Support Older People (85+),Adult Services,Third Party Payments,Other establishments,29/06/2018,6230575,572.6,VENDOR,APEX PROPERTY VENTURES LTD,108437
Portsmouth City Council,PCC,Adult Social Care,Physical Support Older People (85+),Adult Services,Third Party Payments,Other establishments,29/06/2018,6230575,453.99,VENDOR,APEX PROPERTY VENTURES LTD,108437
Portsmouth City Council,PCC,Adult Social Care,Physical Support Older People (85+),Adult Services,Third Party Payments,Other establishments,29/06/2018,6230575,327.2,VENDOR,APEX PROPERTY VENTURES LTD,108437
Portsmouth City Council,PCC,Adult Social Care,Physical Support Older People (85+),Adult Services,Third Party Payments,Other establishments,29/06/2018,6230575,237.22,VENDOR,APEX PROPERTY VENTURES LTD,108437
Portsmouth City Council,PCC,Adult Social Care,Physical Support Older People (85+),Adult Services,Third Party Payments,Other establishments,29/06/2018,6230575,478.53,VENDOR,APEX PROPERTY VENTURES LTD,108437
Portsmouth City Council,PCC,Adult Social Care,Physical Support Older People (85+),Adult Services,Third Party Payments,Other establishments,29/06/2018,6230575,458.08,VENDOR,APEX PROPERTY VENTURES LTD,108437
Portsmouth City Council,PCC,Adult Social Care,Physical Support Older People (85+),Adult Services,Third Party Payments,Other establishments,29/06/2018,6230575,1603.28,VENDOR,APEX PROPERTY VENTURES LTD,108437
Portsmouth City Council,PCC,Adult Social Care,Physical Support Older People (85+),Adult Services,Third Party Payments,Other establishments,29/06/2018,6230575,1832.32,VENDOR,APEX PROPERTY VENTURES LTD,108437
Portsmouth City Council,PCC,Adult Social Care,Physical Support Older People (85+),Adult Services,Third Party Payments,Other establishments,29/06/2018,6230575,237.22,VENDOR,APEX PROPERTY VENTURES LTD,108437
Portsmouth City Council,PCC,Adult Social Care,Physical Support Older People (85+),Adult Services,Third Party Payments,Other establishments,29/06/2018,6230575,674.85,VENDOR,APEX PROPERTY VENTURES LTD,108437
Portsmouth City Council,PCC,Adult Social Care,Physical Support Older People (85+),Adult Services,Third Party Payments,Other establishments,29/06/2018,6230575,2061.36,VENDOR,APEX PROPERTY VENTURES LTD,108437
Portsmouth City Council,PCC,Adult Social Care,Physical Support Older People (85+),Adult Services,Third Party Payments,Other establishments,29/06/2018,6230575,229.04,VENDOR,APEX PROPERTY VENTURES LTD,108437
Portsmouth City Council,PCC,Adult Social Care,Physical Support Older People (85+),Adult Services,Third Party Payments,Other establishments,29/06/2018,6230575,81.8,VENDOR,APEX PROPERTY VENTURES LTD,108437
Portsmouth City Council,PCC,Adult Social Care,Physical Support Older People (85+),Adult Services,Third Party Payments,Other establishments,29/06/2018,6230575,278.12,VENDOR,APEX PROPERTY VENTURES LTD,108437
Portsmouth City Council,PCC,Adult Social Care,Physical Support Older People (85+),Adult Services,Third Party Payments,Other establishments,29/06/2018,6230575,130.88,VENDOR,APEX PROPERTY VENTURES LTD,108437
Portsmouth City Council,PCC,Adult Social Care,Physical Support Older People (85+),Adult Services,Third Party Payments,Other establishments,29/06/2018,6230575,1357.88,VENDOR,APEX PROPERTY VENTURES LTD,108437
Portsmouth City Council,PCC,Adult Social Care,Physical Support Older People (85+),Adult Services,Third Party Payments,Other establishments,29/06/2018,6230575,327.2,VENDOR,APEX PROPERTY VENTURES LTD,108437
Portsmouth City Council,PCC,Adult Social Care,Physical Support Adults (18 - 64),Adult Services,Third Party Payments,Other establishments,29/06/2018,6230575,343.56,VENDOR,APEX PROPERTY VENTURES LTD,108437
Portsmouth City Council,PCC,Adult Social Care,Physical Support Older People (85+),Adult Services,Third Party Payments,Other establishments,29/06/2018,6230575,81.8,VENDOR,APEX PROPERTY VENTURES LTD,108437
Portsmouth City Council,PCC,Adult Social Care,Physical Support Older People (85+),Adult Services,Third Party Payments,Other establishments,29/06/2018,6230575,912.07,VENDOR,APEX PROPERTY VENTURES LTD,108437
Portsmouth City Council,PCC,Adult Social Care,Physical Support Older People (85+),Adult Services,Third Party Payments,Other establishments,29/06/2018,6230575,687.12,VENDOR,APEX PROPERTY VENTURES LTD,108437
Portsmouth City Council,PCC,Adult Social Care,Physical Support Older People (85+),Adult Services,Third Party Payments,Other establishments,29/06/2018,6230575,458.08,VENDOR,APEX PROPERTY VENTURES LTD,108437
Portsmouth City Council,PCC,Adult Social Care,Physical Support Adults (18 - 64),Adult Services,Third Party Payments,Other establishments,29/06/2018,6230575,147.24,VENDOR,APEX PROPERTY VENTURES LTD,108437
Portsmouth City Council,PCC,Adult Social Care,Physical Support Older People (85+),Adult Services,Third Party Payments,Other establishments,29/06/2018,6230575,98.16,VENDOR,APEX PROPERTY VENTURES LTD,108437
Portsmouth City Council,PCC,Adult Social Care,Physical Support Older People (85+),Adult Services,Third Party Payments,Other establishments,29/06/2018,6230575,1439.68,VENDOR,APEX PROPERTY VENTURES LTD,108437
Portsmouth City Council,PCC,Adult Social Care,Physical Support Older People (85+),Adult Services,Third Party Payments,Other establishments,29/06/2018,6230575,1033.36,VENDOR,APEX PROPERTY VENTURES LTD,108437
Portsmouth City Council,PCC,Adult Social Care,Physical Support Older People (85+),Adult Services,Third Party Payments,Other establishments,29/06/2018,6230575,98.16,VENDOR,APEX PROPERTY VENTURES LTD,108437
Portsmouth City Council,PCC,Adult Social Care,Physical Support Older People (85+),Adult Services,Third Party Payments,Other establishments,29/06/2018,6230575,241.31,VENDOR,APEX PROPERTY VENTURES LTD,108437
Portsmouth City Council,PCC,Adult Social Care,Physical Support Older People (85+),Adult Services,Third Party Payments,Other establishments,29/06/2018,6230575,229.04,VENDOR,APEX PROPERTY VENTURES LTD,108437
Portsmouth City Council,PCC,Adult Social Care,Physical Support Adults (18 - 64),Adult Services,Third Party Payments,Other establishments,29/06/2018,6230575,220.86,VENDOR,APEX PROPERTY VENTURES LTD,108437
Portsmouth City Council,PCC,Adult Social Care,Physical Support Older People (85+),Adult Services,Third Party Payments,Other establishments,29/06/2018,6230575,400.82,VENDOR,APEX PROPERTY VENTURES LTD,108437
Portsmouth City Council,PCC,Adult Social Care,Physical Support Older People (85+),Adult Services,Third Party Payments,Other establishments,29/06/2018,6230575,486.71,VENDOR,APEX PROPERTY VENTURES LTD,108437
Portsmouth City Council,PCC,Adult Social Care,Social Care Activities,Adult Services,Third Party Payments,Other establishments,29/06/2018,6230575,2290.4,VENDOR,APEX PROPERTY VENTURES LTD,108437
Portsmouth City Council,PCC,Adult Social Care,Physical Support Older People (85+),Adult Services,Third Party Payments,Other establishments,29/06/2018,6230575,143.15,VENDOR,APEX PROPERTY VENTURES LTD,108437
Portsmouth City Council,PCC,Adult Social Care,Learning Disability Support  Adults (18 - 64),Adult Services,Third Party Payments,Other establishments,29/06/2018,6230575,1047.04,VENDOR,APEX PROPERTY VENTURES LTD,108437
Portsmouth City Council,PCC,Adult Social Care,Physical Support Older People (85+),Adult Services,Third Party Payments,Other establishments,29/06/2018,6230575,654.4,VENDOR,APEX PROPERTY VENTURES LTD,108437
Portsmouth City Council,PCC,Adult Social Care,Physical Support Older People (85+),Adult Services,Third Party Payments,Other establishments,29/06/2018,6230575,65.44,VENDOR,APEX PROPERTY VENTURES LTD,108437
Portsmouth City Council,PCC,Adult Social Care,Physical Support Older People (85+),Adult Services,Third Party Payments,Other establishments,29/06/2018,6230575,924.34,VENDOR,APEX PROPERTY VENTURES LTD,108437
Portsmouth City Council,PCC,Adult Social Care,Physical Support Older People (85+),Adult Services,Third Party Payments,Other establishments,29/06/2018,6230575,646.22,VENDOR,APEX PROPERTY VENTURES LTD,108437
Portsmouth City Council,PCC,Adult Social Care,Physical Support Adults (18 - 64),Adult Services,Third Party Payments,Other establishments,29/06/2018,6230575,700.8,VENDOR,APEX PROPERTY VENTURES LTD,108437
Portsmouth City Council,PCC,Adult Social Care,Physical Support Adults (18 - 64),Adult Services,Third Party Payments,Other establishments,29/06/2018,6230575,1042.2,VENDOR,APEX PROPERTY VENTURES LTD,108437
Portsmouth City Council,PCC,Adult Social Care,Social Support - Support for Carer,Adult Services,Third Party Payments,Other establishments,29/06/2018,6230575,225.28,VENDOR,APEX PROPERTY VENTURES LTD,108437
Portsmouth City Council,PCC,Adult Social Care,Physical Support Older People (85+),Adult Services,Third Party Payments,Other establishments,29/06/2018,6230575,65.44,VENDOR,APEX PROPERTY VENTURES LTD,108437
Portsmouth City Council,PCC,Adult Social Care,Physical Support Adults (18 - 64),Adult Services,Third Party Payments,Other establishments,29/06/2018,6230575,425.36,VENDOR,APEX PROPERTY VENTURES LTD,108437
Portsmouth City Council,PCC,Adult Social Care,Physical Support Older People (85+),Adult Services,Third Party Payments,Other establishments,29/06/2018,6230575,229.04,VENDOR,APEX PROPERTY VENTURES LTD,108437
Portsmouth City Council,PCC,Adult Social Care,Physical Support Older People (85+),Adult Services,Third Party Payments,Other establishments,29/06/2018,6230575,2257.68,VENDOR,APEX PROPERTY VENTURES LTD,108437
Portsmouth City Council,PCC,Adult Social Care,Physical Support Older People (85+),Adult Services,Third Party Payments,Other establishments,29/06/2018,6230575,32.72,VENDOR,APEX PROPERTY VENTURES LTD,108437
Portsmouth City Council,PCC,Adult Social Care,Physical Support Older People (85+),Adult Services,Third Party Payments,Other establishments,29/06/2018,6230575,801.64,VENDOR,APEX PROPERTY VENTURES LTD,108437
Portsmouth City Council,PCC,Adult Social Care,Physical Support Older People (85+),Adult Services,Third Party Payments,Other establishments,29/06/2018,6230575,24.54,VENDOR,APEX PROPERTY VENTURES LTD,108437
Portsmouth City Council,PCC,Adult Social Care,Social Support - Support for Carer,Adult Services,Third Party Payments,Other establishments,29/06/2018,6230575,225.28,VENDOR,APEX PROPERTY VENTURES LTD,108437
Portsmouth City Council,PCC,Adult Social Care,Physical Support Older People (85+),Adult Services,Third Party Payments,Other establishments,29/06/2018,6230575,163.6,VENDOR,APEX PROPERTY VENTURES LTD,108437
Portsmouth City Council,PCC,Adult Social Care,Physical Support Adults (18 - 64),Adult Services,Third Party Payments,Other establishments,29/06/2018,6230575,98.16,VENDOR,APEX PROPERTY VENTURES LTD,108437
Portsmouth City Council,PCC,Adult Social Care,Physical Support Older People (85+),Adult Services,Third Party Payments,Other establishments,29/06/2018,6230575,1488.76,VENDOR,APEX PROPERTY VENTURES LTD,108437
Portsmouth City Council,PCC,Adult Social Care,Physical Support Adults (18 - 64),Adult Services,Third Party Payments,Other establishments,29/06/2018,6230575,466.26,VENDOR,APEX PROPERTY VENTURES LTD,108437
Portsmouth City Council,PCC,Adult Social Care,Physical Support Older People (85+),Adult Services,Third Party Payments,Other establishments,29/06/2018,6230575,2061.36,VENDOR,APEX PROPERTY VENTURES LTD,108437
Portsmouth City Council,PCC,Adult Social Care,Physical Support Older People (85+),Adult Services,Third Party Payments,Other establishments,29/06/2018,6230575,229.04,VENDOR,APEX PROPERTY VENTURES LTD,108437
Portsmouth City Council,PCC,Adult Social Care,Physical Support Older People (85+),Adult Services,Third Party Payments,Other establishments,29/06/2018,6230575,1055.22,VENDOR,APEX PROPERTY VENTURES LTD,108437
Portsmouth City Council,PCC,Adult Social Care,Physical Support Older People (85+),Adult Services,Third Party Payments,Other establishments,29/06/2018,6230575,400.82,VENDOR,APEX PROPERTY VENTURES LTD,108437
Portsmouth City Council,PCC,Adult Social Care,Physical Support Older People (85+),Adult Services,Third Party Payments,Other establishments,29/06/2018,6230575,171.78,VENDOR,APEX PROPERTY VENTURES LTD,108437
Portsmouth City Council,PCC,Adult Social Care,Physical Support Older People (85+),Adult Services,Third Party Payments,Other establishments,29/06/2018,6230575,1383.36,VENDOR,APEX PROPERTY VENTURES LTD,108437
Portsmouth City Council,PCC,Adult Social Care,Social Support - Support for Carer,Adult Services,Third Party Payments,Other establishments,29/06/2018,6230575,56.32,VENDOR,APEX PROPERTY VENTURES LTD,108437
Portsmouth City Council,PCC,Adult Social Care,Physical Support Older People (65-74),Adult Services,Third Party Payments,Other establishments,29/06/2018,6230575,458.08,VENDOR,APEX PROPERTY VENTURES LTD,108437
Portsmouth City Council,PCC,Adult Social Care,Physical Support Older People (85+),Adult Services,Third Party Payments,Other establishments,29/06/2018,6230575,1374.24,VENDOR,APEX PROPERTY VENTURES LTD,108437
Portsmouth City Council,PCC,Adult Social Care,Physical Support Adults (18 - 64),Adult Services,Third Party Payments,Other establishments,29/06/2018,6230575,506.88,VENDOR,APEX PROPERTY VENTURES LTD,108437
Portsmouth City Council,PCC,Adult Social Care,Physical Support Older People (85+),Adult Services,Third Party Payments,Other establishments,29/06/2018,6230575,220.86,VENDOR,APEX PROPERTY VENTURES LTD,108437
Portsmouth City Council,PCC,Adult Social Care,Physical Support Older People (85+),Adult Services,Third Party Payments,Other establishments,29/06/2018,6230575,458.08,VENDOR,APEX PROPERTY VENTURES LTD,108437
Portsmouth City Council,PCC,Adult Social Care,Physical Support Older People (85+),Adult Services,Third Party Payments,Other establishments,29/06/2018,6230575,229.04,VENDOR,APEX PROPERTY VENTURES LTD,108437
Portsmouth City Council,PCC,Adult Social Care,Physical Support Older People (85+),Adult Services,Third Party Payments,Other establishments,29/06/2018,6230575,343.56,VENDOR,APEX PROPERTY VENTURES LTD,108437
Portsmouth City Council,PCC,Adult Social Care,Physical Support Older People (85+),Adult Services,Third Party Payments,Other establishments,29/06/2018,6230575,24.54,VENDOR,APEX PROPERTY VENTURES LTD,108437
Portsmouth City Council,PCC,Adult Social Care,Physical Support Older People (85+),Adult Services,Third Party Payments,Other establishments,29/06/2018,6230575,28.63,VENDOR,APEX PROPERTY VENTURES LTD,108437
Portsmouth City Council,PCC,Adult Social Care,Physical Support Older People (85+),Adult Services,Third Party Payments,Other establishments,29/06/2018,6230575,229.04,VENDOR,APEX PROPERTY VENTURES LTD,108437
Portsmouth City Council,PCC,Adult Social Care,Physical Support Older People (85+),Adult Services,Third Party Payments,Other establishments,29/06/2018,6230575,229.04,VENDOR,APEX PROPERTY VENTURES LTD,108437
Portsmouth City Council,PCC,Adult Social Care,Physical Support Older People (85+),Adult Services,Third Party Payments,Other establishments,29/06/2018,6230575,1603.28,VENDOR,APEX PROPERTY VENTURES LTD,108437
Portsmouth City Council,PCC,Adult Social Care,Physical Support Older People (85+),Adult Services,Third Party Payments,Other establishments,29/06/2018,6230575,36.81,VENDOR,APEX PROPERTY VENTURES LTD,108437
Portsmouth City Council,PCC,Adult Social Care,Physical Support Older People (85+),Adult Services,Third Party Payments,Other establishments,29/06/2018,6230575,409,VENDOR,APEX PROPERTY VENTURES LTD,108437
Portsmouth City Council,PCC,Adult Social Care,Physical Support Older People (85+),Adult Services,Third Party Payments,Other establishments,29/06/2018,6230575,523.52,VENDOR,APEX PROPERTY VENTURES LTD,108437
Portsmouth City Council,PCC,Adult Social Care,Physical Support Older People (85+),Adult Services,Third Party Payments,Other establishments,29/06/2018,6230575,229.04,VENDOR,APEX PROPERTY VENTURES LTD,108437
Portsmouth City Council,PCC,Adult Social Care,Physical Support Older People (85+),Adult Services,Third Party Payments,Other establishments,29/06/2018,6230575,2711.67,VENDOR,APEX PROPERTY VENTURES LTD,108437
Portsmouth City Council,PCC,Adult Social Care,Physical Support Older People (85+),Adult Services,Third Party Payments,Other establishments,29/06/2018,6230575,114.52,VENDOR,APEX PROPERTY VENTURES LTD,108437
Portsmouth City Council,PCC,Adult Social Care,Physical Support Older People (85+),Adult Services,Third Party Payments,Other establishments,29/06/2018,6230575,458.08,VENDOR,APEX PROPERTY VENTURES LTD,108437
Portsmouth City Council,PCC,Adult Social Care,Physical Support Adults (18 - 64),Adult Services,Third Party Payments,Other establishments,29/06/2018,6230575,89.98,VENDOR,APEX PROPERTY VENTURES LTD,108437
Portsmouth City Council,PCC,Adult Social Care,Physical Support Older People (85+),Adult Services,Third Party Payments,Other establishments,29/06/2018,6230575,229.04,VENDOR,APEX PROPERTY VENTURES LTD,108437
Portsmouth City Council,PCC,Adult Social Care,Physical Support Older People (85+),Adult Services,Third Party Payments,Other establishments,29/06/2018,6230575,458.08,VENDOR,APEX PROPERTY VENTURES LTD,108437
Portsmouth City Council,PCC,Adult Social Care,Physical Support Older People (85+),Adult Services,Third Party Payments,Other establishments,29/06/2018,6230575,2290.4,VENDOR,APEX PROPERTY VENTURES LTD,108437
Portsmouth City Council,PCC,Adult Social Care,Physical Support Older People (85+),Adult Services,Third Party Payments,Other establishments,29/06/2018,6230575,568.51,VENDOR,APEX PROPERTY VENTURES LTD,108437
Portsmouth City Council,PCC,Adult Social Care,Learning Disability Support  Adults (18 - 64),Adult Services,Third Party Payments,Other establishments,29/06/2018,6230575,278.12,VENDOR,APEX PROPERTY VENTURES LTD,108437
Portsmouth City Council,PCC,Adult Social Care,Physical Support Older People (85+),Adult Services,Third Party Payments,Other establishments,29/06/2018,6230575,466.26,VENDOR,APEX PROPERTY VENTURES LTD,108437
Portsmouth City Council,PCC,Adult Social Care,Social Support - Support for Carer,Adult Services,Third Party Payments,Other establishments,29/06/2018,6230575,112.64,VENDOR,APEX PROPERTY VENTURES LTD,108437
Portsmouth City Council,PCC,Adult Social Care,Physical Support Older People (85+),Adult Services,Third Party Payments,Other establishments,29/06/2018,6230575,490.8,VENDOR,APEX PROPERTY VENTURES LTD,108437
Portsmouth City Council,PCC,Adult Social Care,Physical Support Older People (85+),Adult Services,Third Party Payments,Other establishments,29/06/2018,6230575,327.2,VENDOR,APEX PROPERTY VENTURES LTD,108437
Portsmouth City Council,PCC,Adult Social Care,Physical Support Older People (85+),Adult Services,Third Party Payments,Other establishments,29/06/2018,6230575,490.8,VENDOR,APEX PROPERTY VENTURES LTD,108437
Portsmouth City Council,PCC,Adult Social Care,Physical Support Older People (85+),Adult Services,Third Party Payments,Other establishments,29/06/2018,6230575,2061.36,VENDOR,APEX PROPERTY VENTURES LTD,108437
Portsmouth City Council,PCC,Adult Social Care,Physical Support Adults (18 - 64),Adult Services,Third Party Payments,Other establishments,29/06/2018,6230575,220.86,VENDOR,APEX PROPERTY VENTURES LTD,108437
Portsmouth City Council,PCC,Adult Social Care,Physical Support Older People (85+),Adult Services,Third Party Payments,Other establishments,29/06/2018,6230575,458.08,VENDOR,APEX PROPERTY VENTURES LTD,108437
Portsmouth City Council,PCC,Adult Social Care,Physical Support Older People (85+),Adult Services,Third Party Payments,Other establishments,29/06/2018,6230575,8.18,VENDOR,APEX PROPERTY VENTURES LTD,108437
Portsmouth City Council,PCC,Adult Social Care,Physical Support Older People (85+),Adult Services,Third Party Payments,Other establishments,29/06/2018,6230575,155.42,VENDOR,APEX PROPERTY VENTURES LTD,108437
Portsmouth City Council,PCC,Adult Social Care,Physical Support Older People (85+),Adult Services,Third Party Payments,Other establishments,29/06/2018,6230575,732.11,VENDOR,APEX PROPERTY VENTURES LTD,108437
Portsmouth City Council,PCC,Adult Social Care,Physical Support Older People (85+),Adult Services,Third Party Payments,Other establishments,29/06/2018,6230575,98.16,VENDOR,APEX PROPERTY VENTURES LTD,108437
Portsmouth City Council,PCC,Adult Social Care,Physical Support Older People (85+),Adult Services,Third Party Payments,Other establishments,29/06/2018,6230575,98.16,VENDOR,APEX PROPERTY VENTURES LTD,108437
Portsmouth City Council,PCC,Adult Social Care,Physical Support Older People (85+),Adult Services,Third Party Payments,Other establishments,29/06/2018,6230575,801.64,VENDOR,APEX PROPERTY VENTURES LTD,108437
Portsmouth City Council,PCC,Adult Social Care,Physical Support Older People (85+),Adult Services,Third Party Payments,Other establishments,29/06/2018,6230575,380.37,VENDOR,APEX PROPERTY VENTURES LTD,108437
Portsmouth City Council,PCC,Adult Social Care,Physical Support Older People (85+),Adult Services,Third Party Payments,Other establishments,29/06/2018,6230575,130.88,VENDOR,APEX PROPERTY VENTURES LTD,108437
Portsmouth City Council,PCC,Adult Social Care,Physical Support Adults (18 - 64),Adult Services,Third Party Payments,Other establishments,29/06/2018,6230575,163.6,VENDOR,APEX PROPERTY VENTURES LTD,108437
Portsmouth City Council,PCC,Adult Social Care,Physical Support Older People (85+),Adult Services,Third Party Payments,Other establishments,29/06/2018,6230575,114.52,VENDOR,APEX PROPERTY VENTURES LTD,108437
Portsmouth City Council,PCC,Adult Social Care,Physical Support Adults (18 - 64),Adult Services,Third Party Payments,Other establishments,29/06/2018,6230575,458.08,VENDOR,APEX PROPERTY VENTURES LTD,108437
Portsmouth City Council,PCC,Adult Social Care,Physical Support Older People (85+),Adult Services,Third Party Payments,Other establishments,29/06/2018,6230575,229.04,VENDOR,APEX PROPERTY VENTURES LTD,108437
Portsmouth City Council,PCC,Adult Social Care,Physical Support Older People (85+),Adult Services,Third Party Payments,Other establishments,29/06/2018,6230575,32.72,VENDOR,APEX PROPERTY VENTURES LTD,108437
Portsmouth City Council,PCC,Adult Social Care,Physical Support Older People (85+),Adult Services,Third Party Payments,Other establishments,29/06/2018,6230575,163.6,VENDOR,APEX PROPERTY VENTURES LTD,108437
Portsmouth City Council,PCC,Adult Social Care,Physical Support Older People (85+),Adult Services,Third Party Payments,Other establishments,29/06/2018,6230575,425.36,VENDOR,APEX PROPERTY VENTURES LTD,108437
Portsmouth City Council,PCC,Adult Social Care,Physical Support Older People (85+),Adult Services,Third Party Payments,Other establishments,29/06/2018,6230575,229.04,VENDOR,APEX PROPERTY VENTURES LTD,108437
Portsmouth City Council,PCC,Adult Social Care,Physical Support Older People (85+),Adult Services,Third Party Payments,Other establishments,29/06/2018,6230575,212.68,VENDOR,APEX PROPERTY VENTURES LTD,108437
Portsmouth City Council,PCC,Adult Social Care,Physical Support Older People (85+),Adult Services,Third Party Payments,Other establishments,29/06/2018,6230575,114.52,VENDOR,APEX PROPERTY VENTURES LTD,108437
Portsmouth City Council,PCC,Adult Social Care,Physical Support Older People (85+),Adult Services,Third Party Payments,Other establishments,29/06/2018,6230575,1374.24,VENDOR,APEX PROPERTY VENTURES LTD,108437
Portsmouth City Council,PCC,Adult Social Care,Learning Disability Support  Adults (18 - 64),Adult Services,Third Party Payments,Other establishments,29/06/2018,6230575,229.04,VENDOR,APEX PROPERTY VENTURES LTD,108437
Portsmouth City Council,PCC,Adult Social Care,Learning Disability Support  Adults (18 - 64),Adult Services,Third Party Payments,Other establishments,29/06/2018,6230575,290.39,VENDOR,APEX PROPERTY VENTURES LTD,108437
Portsmouth City Council,PCC,Adult Social Care,Physical Support Older People (85+),Adult Services,Third Party Payments,Other establishments,29/06/2018,6230575,2290.4,VENDOR,APEX PROPERTY VENTURES LTD,108437
Portsmouth City Council,PCC,Adult Social Care,Physical Support Older People (85+),Adult Services,Third Party Payments,Other establishments,29/06/2018,6230575,638.04,VENDOR,APEX PROPERTY VENTURES LTD,108437
Portsmouth City Council,PCC,Adult Social Care,Physical Support Adults (18 - 64),Adult Services,Third Party Payments,Other establishments,29/06/2018,6230575,883.44,VENDOR,APEX PROPERTY VENTURES LTD,108437
Portsmouth City Council,PCC,Adult Social Care,Physical Support Adults (18 - 64),Adult Services,Third Party Payments,Other establishments,29/06/2018,6230575,229.04,VENDOR,APEX PROPERTY VENTURES LTD,108437
Portsmouth City Council,PCC,Adult Social Care,Physical Support Older People (85+),Adult Services,Third Party Payments,Other establishments,29/06/2018,6230575,629.86,VENDOR,APEX PROPERTY VENTURES LTD,108437
Portsmouth City Council,PCC,Adult Social Care,Physical Support Older People (85+),Adult Services,Third Party Payments,Other establishments,29/06/2018,6230575,196.32,VENDOR,APEX PROPERTY VENTURES LTD,108437
Portsmouth City Council,PCC,Adult Social Care,Physical Support Older People (85+),Adult Services,Third Party Payments,Other establishments,29/06/2018,6230575,134.97,VENDOR,APEX PROPERTY VENTURES LTD,108437
Portsmouth City Council,PCC,Adult Social Care,Social Care Activities,Adult Services,Third Party Payments,Other establishments,29/06/2018,6230575,327.2,VENDOR,APEX PROPERTY VENTURES LTD,108437
Portsmouth City Council,PCC,Adult Social Care,Physical Support Older People (85+),Adult Services,Third Party Payments,Other establishments,29/06/2018,6230575,458.08,VENDOR,APEX PROPERTY VENTURES LTD,108437
Portsmouth City Council,PCC,Adult Social Care,Physical Support Older People (85+),Adult Services,Third Party Payments,Other establishments,29/06/2018,6230575,1832.32,VENDOR,APEX PROPERTY VENTURES LTD,108437
Portsmouth City Council,PCC,Adult Social Care,Physical Support Older People (85+),Adult Services,Third Party Payments,Other establishments,29/06/2018,6230575,163.6,VENDOR,APEX PROPERTY VENTURES LTD,108437
Portsmouth City Council,PCC,Adult Social Care,Physical Support Older People (85+),Adult Services,Third Party Payments,Other establishments,29/06/2018,6230575,605.32,VENDOR,APEX PROPERTY VENTURES LTD,108437
Portsmouth City Council,PCC,Adult Social Care,Physical Support Older People (85+),Adult Services,Third Party Payments,Other establishments,29/06/2018,6230575,229.04,VENDOR,APEX PROPERTY VENTURES LTD,108437
Portsmouth City Council,PCC,Adult Social Care,Physical Support Adults (18 - 64),Adult Services,Third Party Payments,Other establishments,29/06/2018,6230575,355.83,VENDOR,APEX PROPERTY VENTURES LTD,108437
Portsmouth City Council,PCC,Adult Social Care,Physical Support Adults (18 - 64),Adult Services,Third Party Payments,Other establishments,29/06/2018,6230575,421.27,VENDOR,APEX PROPERTY VENTURES LTD,108437
Portsmouth City Council,PCC,Adult Social Care,Physical Support Older People (85+),Adult Services,Third Party Payments,Other establishments,29/06/2018,6230575,417.18,VENDOR,APEX PROPERTY VENTURES LTD,108437
Portsmouth City Council,PCC,Adult Social Care,Physical Support Older People (85+),Adult Services,Third Party Payments,Other establishments,29/06/2018,6230575,629.86,VENDOR,APEX PROPERTY VENTURES LTD,108437
Portsmouth City Council,PCC,Adult Social Care,Physical Support Older People (85+),Adult Services,Third Party Payments,Other establishments,29/06/2018,6230575,196.32,VENDOR,APEX PROPERTY VENTURES LTD,108437
Portsmouth City Council,PCC,Adult Social Care,Physical Support Older People (85+),Adult Services,Third Party Payments,Other establishments,29/06/2018,6230575,2437.64,VENDOR,APEX PROPERTY VENTURES LTD,108437
Portsmouth City Council,PCC,Adult Social Care,Physical Support Older People (85+),Adult Services,Third Party Payments,Other establishments,29/06/2018,6230575,654.4,VENDOR,APEX PROPERTY VENTURES LTD,108437
Portsmouth City Council,PCC,Adult Social Care,Physical Support Older People (85+),Adult Services,Third Party Payments,Other establishments,29/06/2018,6230575,343.56,VENDOR,APEX PROPERTY VENTURES LTD,108437
Portsmouth City Council,PCC,Adult Social Care,Physical Support Older People (85+),Adult Services,Third Party Payments,Other establishments,29/06/2018,6230575,1112.48,VENDOR,APEX PROPERTY VENTURES LTD,108437
Portsmouth City Council,PCC,Adult Social Care,Physical Support Older People (85+),Adult Services,Third Party Payments,Other establishments,29/06/2018,6230575,212.68,VENDOR,APEX PROPERTY VENTURES LTD,108437
Portsmouth City Council,PCC,Adult Social Care,Physical Support Older People (85+),Adult Services,Third Party Payments,Other establishments,29/06/2018,6230575,343.56,VENDOR,APEX PROPERTY VENTURES LTD,108437
Portsmouth City Council,PCC,Adult Social Care,Learning Disability Support  Adults (18 - 64),Adult Services,Third Party Payments,Other establishments,29/06/2018,6230575,44.67,VENDOR,APEX PROPERTY VENTURES LTD,108437
Portsmouth City Council,PCC,Adult Social Care,Learning Disability Support  Adults (18 - 64),Adult Services,Third Party Payments,Other establishments,29/06/2018,6230575,110.75,VENDOR,APEX PROPERTY VENTURES LTD,108437
Portsmouth City Council,PCC,Adult Social Care,Physical Support Older People (85+),Adult Services,Third Party Payments,Other establishments,29/06/2018,6230575,147.24,VENDOR,APEX PROPERTY VENTURES LTD,108437
Portsmouth City Council,PCC,Housing Revenue Account,Special Services,"Housing, Neighbourhood and Building Services",Employees,Direct employee expenses,25/06/2018,6229552,3553.76,VENDOR,APEX PROPERTY VENTURES LTD,108437
Portsmouth City Council,PCC,Housing Revenue Account,Special Services,"Housing, Neighbourhood and Building Services",Employees,Direct employee expenses,25/06/2018,6229552,-199.5,VENDOR,APEX PROPERTY VENTURES LTD,108437
Portsmouth City Council,PCC,Housing Revenue Account,Special Services,"Housing, Neighbourhood and Building Services",Employees,Direct employee expenses,25/06/2018,6229552,3753.26,VENDOR,APEX PROPERTY VENTURES LTD,108437
Portsmouth City Council,PCC,Planning Services,Business support,Regeneration,Supplies and Services,"Equipment, furniture and materials",28/06/2018,6230537,863.13,VENDOR,SPANDEX LIMITED,100163
Portsmouth City Council,PCC,Planning Services,Business support,Regeneration,Supplies and Services,"Equipment, furniture and materials",28/06/2018,6230537,784.67,VENDOR,SPANDEX LIMITED,100163
Portsmouth City Council,PCC,Housing Services,Homelessness,"Housing, Neighbourhood and Building Services",Premises-Related Expenditure,Rents,25/06/2018,6229671,1800,SOLETRADER,Classified as 'personal data' (under the Data Protection Act 1998),138874
Portsmouth City Council,PCC,Housing Services,Homelessness,"Housing, Neighbourhood and Building Services",Premises-Related Expenditure,Rents,25/06/2018,6229638,2490,SOLETRADER,Classified as 'personal data' (under the Data Protection Act 1998),135979
Portsmouth City Council,PCC,Adult Social Care,Social Care Activities,Adult Services,Third Party Payments,Other establishments,05/06/2018,6225936,220.03,VENDOR,SAFEGUARDING GP,137636
Portsmouth City Council,PCC,Adult Social Care,Social Care Activities,Adult Services,Third Party Payments,Other establishments,05/06/2018,6225936,186.31,VENDOR,SAFEGUARDING GP,137636
Portsmouth City Council,PCC,Adult Social Care,Social Care Activities,Adult Services,Third Party Payments,Other establishments,05/06/2018,6225936,186.31,VENDOR,SAFEGUARDING GP,137636
Portsmouth City Council,PCC,Adult Social Care,Social Care Activities,Adult Services,Third Party Payments,Other establishments,05/06/2018,6225936,186.31,VENDOR,SAFEGUARDING GP,137636
Portsmouth City Council,PCC,Adult Social Care,Social Care Activities,Adult Services,Third Party Payments,Other establishments,05/06/2018,6225936,186.31,VENDOR,SAFEGUARDING GP,137636
Portsmouth City Council,PCC,Environmental and Regulatory Services,Regulatory Services,Culture & City Development,Third Party Payments,Private contractors,04/06/2018,6225693,972,VENDOR,ADAMS MOREY LTD,100446
Portsmouth City Council,PCC,Environmental and Regulatory Services,Regulatory Services,Culture & City Development,Third Party Payments,Private contractors,04/06/2018,6225693,1057.5,VENDOR,ADAMS MOREY LTD,100446
Portsmouth City Council,PCC,Environmental and Regulatory Services,Regulatory Services,Culture & City Development,Third Party Payments,Private contractors,04/06/2018,6225693,383,VENDOR,ADAMS MOREY LTD,100446
Portsmouth City Council,PCC,Environmental and Regulatory Services,Regulatory Services,Culture & City Development,Third Party Payments,Private contractors,04/06/2018,6225693,2115,VENDOR,ADAMS MOREY LTD,100446
Portsmouth City Council,PCC,Environmental and Regulatory Services,Regulatory Services,Culture & City Development,Third Party Payments,Private contractors,04/06/2018,6225693,1097.5,VENDOR,ADAMS MOREY LTD,100446
Portsmouth City Council,PCC,Environmental and Regulatory Services,Regulatory Services,Culture & City Development,Third Party Payments,Private contractors,04/06/2018,6225693,1755,VENDOR,ADAMS MOREY LTD,100446
Portsmouth City Council,PCC,Environmental and Regulatory Services,Regulatory Services,Culture & City Development,Third Party Payments,Private contractors,04/06/2018,6225693,463.5,VENDOR,ADAMS MOREY LTD,100446
Portsmouth City Council,PCC,Environmental and Regulatory Services,Regulatory Services,Culture & City Development,Third Party Payments,Private contractors,04/06/2018,6225693,1080,VENDOR,ADAMS MOREY LTD,100446
Portsmouth City Council,PCC,Housing Revenue Account,Special Services,"Housing, Neighbourhood and Building Services",Supplies and Services,"Printing, stationery and general office expenses",11/06/2018,6226913,4058.44,VENDOR,HOLBROOKS PRINTERS LTD,100893
Portsmouth City Council,PCC,Cultural and Related Services,Allocation of Management & Admin,Community & Communication,Supplies and Services,"Printing, stationery and general office expenses",15/06/2018,6227966,2884,VENDOR,HOLBROOKS PRINTERS LTD,100893
Portsmouth City Council,PCC,Other,Suspense and Capital Schemes,Capital - Housing RA,Capital Charges,Capital Expenditure (WIP),05/06/2018,6225889,318.35,VENDOR,ELMHURST ENERGY SYSTEMS LTD,127591
Portsmouth City Council,PCC,Other,Suspense and Capital Schemes,Capital - Housing RA,Capital Charges,Capital Expenditure (WIP),05/06/2018,6225889,295.84,VENDOR,ELMHURST ENERGY SYSTEMS LTD,127591
Portsmouth City Council,PCC,Other,Suspense and Capital Schemes,Capital - PRED (Excl. Port & Solent LEP),Capital Charges,Capital Expenditure (WIP),07/06/2018,6226591,855,VENDOR,SOUTH COAST PUBLISHING,142859
Portsmouth City Council,PCC,Other,Suspense and Capital Schemes,Capital - Health & Social Care,Capital Charges,Capital Expenditure (WIP),25/06/2018,6229670,536.54,VENDOR,OXFORD COMPUTER CONSULTANTS LIMITED,127286
Portsmouth City Council,PCC,Highways and Transport Services,"Airports, Harbours and Toll Facilities",Portsmouth International Port,Third Party Payments,Private contractors,01/06/2018,6225655,4116.85,VENDOR,SOUTHERN MARITIME SERVICES LIMITED,120765
Portsmouth City Council,PCC,Highways and Transport Services,"Airports, Harbours and Toll Facilities",Portsmouth International Port,Third Party Payments,Private contractors,01/06/2018,6225655,391.7,VENDOR,SOUTHERN MARITIME SERVICES LIMITED,120765
Portsmouth City Council,PCC,Highways and Transport Services,"Airports, Harbours and Toll Facilities",Portsmouth International Port,Third Party Payments,Private contractors,01/06/2018,6225655,345.22,VENDOR,SOUTHERN MARITIME SERVICES LIMITED,120765
Portsmouth City Council,PCC,Highways and Transport Services,"Airports, Harbours and Toll Facilities",Portsmouth International Port,Third Party Payments,Private contractors,01/06/2018,6225655,4491.15,VENDOR,SOUTHERN MARITIME SERVICES LIMITED,120765
Portsmouth City Council,PCC,Highways and Transport Services,"Airports, Harbours and Toll Facilities",Portsmouth International Port,Third Party Payments,Private contractors,01/06/2018,6225655,376.7,VENDOR,SOUTHERN MARITIME SERVICES LIMITED,120765
Portsmouth City Council,PCC,Highways and Transport Services,"Airports, Harbours and Toll Facilities",Portsmouth International Port,Transport-Related Expenditure,Direct transport costs,11/06/2018,6226974,3031.13,VENDOR,SOUTHERN MARITIME SERVICES LIMITED,120765
Portsmouth City Council,PCC,Highways and Transport Services,"Airports, Harbours and Toll Facilities",Portsmouth International Port,Third Party Payments,Private contractors,11/06/2018,6226974,933.65,VENDOR,SOUTHERN MARITIME SERVICES LIMITED,120765
Portsmouth City Council,PCC,Highways and Transport Services,"Airports, Harbours and Toll Facilities",Portsmouth International Port,Third Party Payments,Private contractors,28/06/2018,6230536,341.75,VENDOR,SOUTHERN MARITIME SERVICES LIMITED,120765
Portsmouth City Council,PCC,Highways and Transport Services,"Airports, Harbours and Toll Facilities",Portsmouth International Port,Third Party Payments,Private contractors,28/06/2018,6230536,926.6,VENDOR,SOUTHERN MARITIME SERVICES LIMITED,120765
Portsmouth City Council,PCC,Highways and Transport Services,"Airports, Harbours and Toll Facilities",Portsmouth International Port,Transport-Related Expenditure,Direct transport costs,28/06/2018,6230536,3971.63,VENDOR,SOUTHERN MARITIME SERVICES LIMITED,120765
Portsmouth City Council,PCC,Children's and Education Services,Special Schools,Children's Services and Education,Third Party Payments,Other establishments,11/06/2018,6226897,21116.51,VENDOR,FAIRWAYS CARE (UK) LTD,111915
Portsmouth City Council,PCC,Adult Social Care,Social Care Activities,Adult Services,Third Party Payments,Other establishments,25/06/2018,6229660,5202.48,VENDOR,NIGHTINGALES GOLDEN CARE,103699
Portsmouth City Council,PCC,Adult Social Care,Social Care Activities,Adult Services,Third Party Payments,Other establishments,25/06/2018,6229660,4122.72,VENDOR,NIGHTINGALES GOLDEN CARE,103699
Portsmouth City Council,PCC,Adult Social Care,Social Support - Support for Carer,Adult Services,Third Party Payments,Other establishments,25/06/2018,6229660,295.68,VENDOR,NIGHTINGALES GOLDEN CARE,103699
Portsmouth City Council,PCC,Adult Social Care,Social Support - Support for Carer,Adult Services,Third Party Payments,Other establishments,25/06/2018,6229660,239.36,VENDOR,NIGHTINGALES GOLDEN CARE,103699
Portsmouth City Council,PCC,Adult Social Care,Social Support - Support for Carer,Adult Services,Third Party Payments,Other establishments,25/06/2018,6229660,204.16,VENDOR,NIGHTINGALES GOLDEN CARE,103699
Portsmouth City Council,PCC,Adult Social Care,Physical Support Older People (85+),Adult Services,Third Party Payments,Other establishments,25/06/2018,6229660,571.71,VENDOR,NIGHTINGALES GOLDEN CARE,103699
Portsmouth City Council,PCC,Adult Social Care,Physical Support Older People (85+),Adult Services,Third Party Payments,Other establishments,25/06/2018,6229660,687.12,VENDOR,NIGHTINGALES GOLDEN CARE,103699
Portsmouth City Council,PCC,Adult Social Care,Physical Support Older People (85+),Adult Services,Third Party Payments,Other establishments,25/06/2018,6229660,1946.84,VENDOR,NIGHTINGALES GOLDEN CARE,103699
Portsmouth City Council,PCC,Adult Social Care,Learning Disability Support  Adults (18 - 64),Adult Services,Third Party Payments,Other establishments,25/06/2018,6229660,736.2,VENDOR,NIGHTINGALES GOLDEN CARE,103699
Portsmouth City Council,PCC,Adult Social Care,Physical Support Older People (85+),Adult Services,Third Party Payments,Other establishments,25/06/2018,6229660,1145.2,VENDOR,NIGHTINGALES GOLDEN CARE,103699
Portsmouth City Council,PCC,Adult Social Care,Physical Support Older People (85+),Adult Services,Third Party Payments,Other establishments,25/06/2018,6229660,572.6,VENDOR,NIGHTINGALES GOLDEN CARE,103699
Portsmouth City Council,PCC,Adult Social Care,Physical Support Older People (85+),Adult Services,Third Party Payments,Other establishments,25/06/2018,6229660,458.08,VENDOR,NIGHTINGALES GOLDEN CARE,103699
Portsmouth City Council,PCC,Adult Social Care,Physical Support Older People (85+),Adult Services,Third Party Payments,Other establishments,25/06/2018,6229660,229.04,VENDOR,NIGHTINGALES GOLDEN CARE,103699
Portsmouth City Council,PCC,Adult Social Care,Physical Support Older People (85+),Adult Services,Third Party Payments,Other establishments,25/06/2018,6229660,233.13,VENDOR,NIGHTINGALES GOLDEN CARE,103699
Portsmouth City Council,PCC,Adult Social Care,Physical Support Older People (85+),Adult Services,Third Party Payments,Other establishments,25/06/2018,6229660,458.08,VENDOR,NIGHTINGALES GOLDEN CARE,103699
Portsmouth City Council,PCC,Adult Social Care,Physical Support Older People (85+),Adult Services,Third Party Payments,Other establishments,25/06/2018,6229660,163.6,VENDOR,NIGHTINGALES GOLDEN CARE,103699
Portsmouth City Council,PCC,Adult Social Care,Physical Support Older People (85+),Adult Services,Third Party Payments,Other establishments,25/06/2018,6229660,49.08,VENDOR,NIGHTINGALES GOLDEN CARE,103699
Portsmouth City Council,PCC,Adult Social Care,Physical Support Older People (85+),Adult Services,Third Party Payments,Other establishments,25/06/2018,6229660,229.04,VENDOR,NIGHTINGALES GOLDEN CARE,103699
Portsmouth City Council,PCC,Adult Social Care,Physical Support Older People (85+),Adult Services,Third Party Payments,Other establishments,25/06/2018,6229660,916.16,VENDOR,NIGHTINGALES GOLDEN CARE,103699
Portsmouth City Council,PCC,Adult Social Care,Physical Support Older People (85+),Adult Services,Third Party Payments,Other establishments,25/06/2018,6229660,343.56,VENDOR,NIGHTINGALES GOLDEN CARE,103699
Portsmouth City Council,PCC,Adult Social Care,Physical Support Older People (85+),Adult Services,Third Party Payments,Other establishments,25/06/2018,6229660,417.18,VENDOR,NIGHTINGALES GOLDEN CARE,103699
Portsmouth City Council,PCC,Adult Social Care,Physical Support Older People (85+),Adult Services,Third Party Payments,Other establishments,25/06/2018,6229660,98.16,VENDOR,NIGHTINGALES GOLDEN CARE,103699
Portsmouth City Council,PCC,Adult Social Care,Physical Support Older People (85+),Adult Services,Third Party Payments,Other establishments,25/06/2018,6229660,98.16,VENDOR,NIGHTINGALES GOLDEN CARE,103699
Portsmouth City Council,PCC,Adult Social Care,Physical Support Older People (85+),Adult Services,Third Party Payments,Other establishments,25/06/2018,6229660,687.12,VENDOR,NIGHTINGALES GOLDEN CARE,103699
Portsmouth City Council,PCC,Adult Social Care,Social Care Activities,Adult Services,Third Party Payments,Other establishments,05/06/2018,6225939,186.31,VENDOR,SAFEGUARDING GP,137636
Portsmouth City Council,PCC,Adult Social Care,Social Care Activities,Adult Services,Third Party Payments,Other establishments,05/06/2018,6225939,186.31,VENDOR,SAFEGUARDING GP,137636
Portsmouth City Council,PCC,Adult Social Care,Social Care Activities,Adult Services,Third Party Payments,Other establishments,26/06/2018,6229854,186.31,VENDOR,SAFEGUARDING GP,137636
Portsmouth City Council,PCC,Adult Social Care,Social Care Activities,Adult Services,Third Party Payments,Other establishments,26/06/2018,6229854,186.31,VENDOR,SAFEGUARDING GP,137636
Portsmouth City Council,PCC,Adult Social Care,Social Care Activities,Adult Services,Third Party Payments,Other establishments,26/06/2018,6229854,186.31,VENDOR,SAFEGUARDING GP,137636
Portsmouth City Council,PCC,Adult Social Care,Social Care Activities,Adult Services,Third Party Payments,Other establishments,26/06/2018,6229854,190.12,VENDOR,SAFEGUARDING GP,137636
Portsmouth City Council,PCC,Adult Social Care,Physical Support Older People (85+),Adult Services,Third Party Payments,Other establishments,25/06/2018,6229660,1603.28,VENDOR,NIGHTINGALES GOLDEN CARE,103699
Portsmouth City Council,PCC,Adult Social Care,Physical Support Older People (85+),Adult Services,Third Party Payments,Other establishments,25/06/2018,6229660,458.08,VENDOR,NIGHTINGALES GOLDEN CARE,103699
Portsmouth City Council,PCC,Adult Social Care,Physical Support Older People (85+),Adult Services,Third Party Payments,Other establishments,25/06/2018,6229660,32.72,VENDOR,NIGHTINGALES GOLDEN CARE,103699
Portsmouth City Council,PCC,Adult Social Care,Physical Support Older People (85+),Adult Services,Third Party Payments,Other establishments,25/06/2018,6229660,151.33,VENDOR,NIGHTINGALES GOLDEN CARE,103699
Portsmouth City Council,PCC,Adult Social Care,Physical Support Older People (85+),Adult Services,Third Party Payments,Other establishments,25/06/2018,6229660,1251.54,VENDOR,NIGHTINGALES GOLDEN CARE,103699
Portsmouth City Council,PCC,Adult Social Care,Physical Support Older People (85+),Adult Services,Third Party Payments,Other establishments,25/06/2018,6229660,343.56,VENDOR,NIGHTINGALES GOLDEN CARE,103699
Portsmouth City Council,PCC,Adult Social Care,Physical Support Older People (85+),Adult Services,Third Party Payments,Other establishments,25/06/2018,6229660,1145.2,VENDOR,NIGHTINGALES GOLDEN CARE,103699
Portsmouth City Council,PCC,Adult Social Care,Physical Support Older People (85+),Adult Services,Third Party Payments,Other establishments,25/06/2018,6229660,409,VENDOR,NIGHTINGALES GOLDEN CARE,103699
Portsmouth City Council,PCC,Adult Social Care,Social Support - Support for Carer,Adult Services,Third Party Payments,Other establishments,25/06/2018,6229660,168.96,VENDOR,NIGHTINGALES GOLDEN CARE,103699
Portsmouth City Council,PCC,Adult Social Care,Physical Support Older People (85+),Adult Services,Third Party Payments,Other establishments,25/06/2018,6229660,948.88,VENDOR,NIGHTINGALES GOLDEN CARE,103699
Portsmouth City Council,PCC,Adult Social Care,Social Support - Support for Carer,Adult Services,Third Party Payments,Other establishments,25/06/2018,6229660,84.48,VENDOR,NIGHTINGALES GOLDEN CARE,103699
Portsmouth City Council,PCC,Adult Social Care,Physical Support Older People (85+),Adult Services,Third Party Payments,Other establishments,25/06/2018,6229660,167.69,VENDOR,NIGHTINGALES GOLDEN CARE,103699
Portsmouth City Council,PCC,Adult Social Care,Physical Support Older People (85+),Adult Services,Third Party Payments,Other establishments,25/06/2018,6229660,319.02,VENDOR,NIGHTINGALES GOLDEN CARE,103699
Portsmouth City Council,PCC,Adult Social Care,Physical Support Older People (85+),Adult Services,Third Party Payments,Other establishments,25/06/2018,6229660,1161.56,VENDOR,NIGHTINGALES GOLDEN CARE,103699
Portsmouth City Council,PCC,Children's and Education Services,Asylum seekers,Children's Services and Education,Third Party Payments,Other establishments,06/06/2018,6226028,3579.36,VENDOR,FAIRWAYS CARE (UK) LTD,111915
Portsmouth City Council,PCC,Children's and Education Services,Safeguarding Children and Young Peoples Services,Children's Services and Education,Third Party Payments,Other establishments,06/06/2018,6226028,3579.36,VENDOR,FAIRWAYS CARE (UK) LTD,111915
Portsmouth City Council,PCC,Planning Services,Development Control,Regeneration,Supplies and Services,Services,14/06/2018,6227869,2000,VENDOR,Classified as 'personal data' (under the Data Protection Act 1998),144035
Portsmouth City Council,PCC,Other,Suspense and Capital Schemes,Capital - Housing RA,Capital Charges,Capital Expenditure (WIP),07/06/2018,6226534,3570,COMPANY,CRYSTAL ELECTRONICS LTD,140472
Portsmouth City Council,PCC,Housing Revenue Account,Repairs and Maintenance,"Housing, Neighbourhood and Building Services",Premises-Related Expenditure,"Repairs, alterations and maintenance of buildings",27/06/2018,6230326,63.16,COMPANY,LAWTECH GROUP LIMITED,141430
Portsmouth City Council,PCC,Housing Revenue Account,Repairs and Maintenance,"Housing, Neighbourhood and Building Services",Premises-Related Expenditure,"Repairs, alterations and maintenance of buildings",27/06/2018,6230326,10120,COMPANY,LAWTECH GROUP LIMITED,141430
Portsmouth City Council,PCC,Children's and Education Services,Asylum seekers,Children's Services and Education,Third Party Payments,Other establishments,15/06/2018,6227958,3912.2,VENDOR,FAIRWAYS CARE (UK) LTD,111915
Portsmouth City Council,PCC,Children's and Education Services,Asylum seekers,Children's Services and Education,Third Party Payments,Other establishments,15/06/2018,6227958,2650.2,VENDOR,FAIRWAYS CARE (UK) LTD,111915
Portsmouth City Council,PCC,Children's and Education Services,Asylum seekers,Children's Services and Education,Third Party Payments,Other establishments,19/06/2018,6228266,2368.92,VENDOR,FAIRWAYS CARE (UK) LTD,111915
Portsmouth City Council,PCC,Children's and Education Services,Asylum seekers,Children's Services and Education,Third Party Payments,Other establishments,19/06/2018,6228266,2556.68,VENDOR,FAIRWAYS CARE (UK) LTD,111915
Portsmouth City Council,PCC,Children's and Education Services,Safeguarding Children and Young Peoples Services,Children's Services and Education,Third Party Payments,Other establishments,19/06/2018,6228266,3579.36,VENDOR,FAIRWAYS CARE (UK) LTD,111915
Portsmouth City Council,PCC,Cultural and Related Services,Library Service,Culture & City Development,Supplies and Services,"Equipment, furniture and materials",07/06/2018,6226482,615,VENDOR,ASKEWS & HOLTS LIBRARY SERVICES LIMITED,100128
Portsmouth City Council,PCC,Housing Revenue Account,Special Services,"Housing, Neighbourhood and Building Services",Employees,Direct employee expenses,15/06/2018,6228026,3952.76,VENDOR,THE PORTSMOUTH SITTING SERVICE AND COMMUNITY CARE SERVICES LTD T/A ASSURED CARE,100201
Portsmouth City Council,PCC,Housing Revenue Account,Special Services,"Housing, Neighbourhood and Building Services",Employees,Direct employee expenses,15/06/2018,6228026,171,VENDOR,THE PORTSMOUTH SITTING SERVICE AND COMMUNITY CARE SERVICES LTD T/A ASSURED CARE,100201
Portsmouth City Council,PCC,Adult Social Care,Social Care Activities,Adult Services,Third Party Payments,Other establishments,08/06/2018,6226804,506.88,VENDOR,THE PORTSMOUTH SITTING SERVICE AND COMMUNITY CARE SERVICES LTD T/A ASSURED CARE,100201
Portsmouth City Council,PCC,Adult Social Care,Social Care Activities,Adult Services,Third Party Payments,Other establishments,08/06/2018,6226804,458.08,VENDOR,THE PORTSMOUTH SITTING SERVICE AND COMMUNITY CARE SERVICES LTD T/A ASSURED CARE,100201
Portsmouth City Council,PCC,Adult Social Care,Social Support - Support for Carer,Adult Services,Third Party Payments,Other establishments,08/06/2018,6226804,387.2,VENDOR,THE PORTSMOUTH SITTING SERVICE AND COMMUNITY CARE SERVICES LTD T/A ASSURED CARE,100201
Portsmouth City Council,PCC,Adult Social Care,Social Support - Support for Carer,Adult Services,Third Party Payments,Other establishments,08/06/2018,6226804,225.28,VENDOR,THE PORTSMOUTH SITTING SERVICE AND COMMUNITY CARE SERVICES LTD T/A ASSURED CARE,100201
Portsmouth City Council,PCC,Adult Social Care,Social Support - Support for Carer,Adult Services,Third Party Payments,Other establishments,08/06/2018,6226804,246.4,VENDOR,THE PORTSMOUTH SITTING SERVICE AND COMMUNITY CARE SERVICES LTD T/A ASSURED CARE,100201
Portsmouth City Council,PCC,Adult Social Care,Physical Support Adults (18 - 64),Adult Services,Third Party Payments,Other establishments,08/06/2018,6226804,392.64,VENDOR,THE PORTSMOUTH SITTING SERVICE AND COMMUNITY CARE SERVICES LTD T/A ASSURED CARE,100201
Portsmouth City Council,PCC,Adult Social Care,Physical Support Older People (85+),Adult Services,Third Party Payments,Other establishments,08/06/2018,6226804,351.74,VENDOR,THE PORTSMOUTH SITTING SERVICE AND COMMUNITY CARE SERVICES LTD T/A ASSURED CARE,100201
Portsmouth City Council,PCC,Adult Social Care,Social Support - Support for Carer,Adult Services,Third Party Payments,Other establishments,08/06/2018,6226804,168.96,VENDOR,THE PORTSMOUTH SITTING SERVICE AND COMMUNITY CARE SERVICES LTD T/A ASSURED CARE,100201
Portsmouth City Council,PCC,Adult Social Care,Social Support - Support for Carer,Adult Services,Third Party Payments,Other establishments,08/06/2018,6226804,168.96,VENDOR,THE PORTSMOUTH SITTING SERVICE AND COMMUNITY CARE SERVICES LTD T/A ASSURED CARE,100201
Portsmouth City Council,PCC,Adult Social Care,Physical Support Older People (85+),Adult Services,Third Party Payments,Other establishments,08/06/2018,6226804,515.34,VENDOR,THE PORTSMOUTH SITTING SERVICE AND COMMUNITY CARE SERVICES LTD T/A ASSURED CARE,100201
Portsmouth City Council,PCC,Adult Social Care,Physical Support Older People (85+),Adult Services,Third Party Payments,Other establishments,08/06/2018,6226804,84.48,VENDOR,THE PORTSMOUTH SITTING SERVICE AND COMMUNITY CARE SERVICES LTD T/A ASSURED CARE,100201
Portsmouth City Council,PCC,Adult Social Care,Physical Support Older People (85+),Adult Services,Third Party Payments,Other establishments,08/06/2018,6226804,458.08,VENDOR,THE PORTSMOUTH SITTING SERVICE AND COMMUNITY CARE SERVICES LTD T/A ASSURED CARE,100201
Portsmouth City Council,PCC,Adult Social Care,Physical Support Older People (85+),Adult Services,Third Party Payments,Other establishments,08/06/2018,6226804,687.12,VENDOR,THE PORTSMOUTH SITTING SERVICE AND COMMUNITY CARE SERVICES LTD T/A ASSURED CARE,100201
Portsmouth City Council,PCC,Adult Social Care,Physical Support Older People (85+),Adult Services,Third Party Payments,Other establishments,08/06/2018,6226804,801.64,VENDOR,THE PORTSMOUTH SITTING SERVICE AND COMMUNITY CARE SERVICES LTD T/A ASSURED CARE,100201
Portsmouth City Council,PCC,Adult Social Care,Physical Support Older People (85+),Adult Services,Third Party Payments,Other establishments,08/06/2018,6226804,331.29,VENDOR,THE PORTSMOUTH SITTING SERVICE AND COMMUNITY CARE SERVICES LTD T/A ASSURED CARE,100201
Portsmouth City Council,PCC,Adult Social Care,Social Support - Support for Carer,Adult Services,Third Party Payments,Other establishments,08/06/2018,6226804,351.6,VENDOR,THE PORTSMOUTH SITTING SERVICE AND COMMUNITY CARE SERVICES LTD T/A ASSURED CARE,100201
Portsmouth City Council,PCC,Adult Social Care,Physical Support Older People (85+),Adult Services,Third Party Payments,Other establishments,08/06/2018,6226804,433.54,VENDOR,THE PORTSMOUTH SITTING SERVICE AND COMMUNITY CARE SERVICES LTD T/A ASSURED CARE,100201
Portsmouth City Council,PCC,Adult Social Care,Physical Support Older People (85+),Adult Services,Third Party Payments,Other establishments,08/06/2018,6226804,343.56,VENDOR,THE PORTSMOUTH SITTING SERVICE AND COMMUNITY CARE SERVICES LTD T/A ASSURED CARE,100201
Portsmouth City Council,PCC,Housing Services,Homelessness,"Housing, Neighbourhood and Building Services",Premises-Related Expenditure,Rents,25/06/2018,6229692,1830,SOLETRADER,Classified as 'personal data' (under the Data Protection Act 1998),139696
Portsmouth City Council,PCC,Adult Social Care,Physical Support Older People (85+),Adult Services,Third Party Payments,Other establishments,08/06/2018,6226804,437.63,VENDOR,THE PORTSMOUTH SITTING SERVICE AND COMMUNITY CARE SERVICES LTD T/A ASSURED CARE,100201
Portsmouth City Council,PCC,Adult Social Care,Social Support - Support for Carer,Adult Services,Third Party Payments,Other establishments,08/06/2018,6226804,225.28,VENDOR,THE PORTSMOUTH SITTING SERVICE AND COMMUNITY CARE SERVICES LTD T/A ASSURED CARE,100201
Portsmouth City Council,PCC,Adult Social Care,Physical Support Older People (85+),Adult Services,Third Party Payments,Other establishments,08/06/2018,6226804,32.72,VENDOR,THE PORTSMOUTH SITTING SERVICE AND COMMUNITY CARE SERVICES LTD T/A ASSURED CARE,100201
Portsmouth City Council,PCC,Adult Social Care,Physical Support Older People (85+),Adult Services,Third Party Payments,Other establishments,08/06/2018,6226804,65.44,VENDOR,THE PORTSMOUTH SITTING SERVICE AND COMMUNITY CARE SERVICES LTD T/A ASSURED CARE,100201
Portsmouth City Council,PCC,Adult Social Care,Mental Health Support Adults (18 - 64),Adult Services,Third Party Payments,Other establishments,08/06/2018,6226804,433.54,VENDOR,THE PORTSMOUTH SITTING SERVICE AND COMMUNITY CARE SERVICES LTD T/A ASSURED CARE,100201
Portsmouth City Council,PCC,Adult Social Care,Physical Support Older People (85+),Adult Services,Third Party Payments,Other establishments,08/06/2018,6226804,139.06,VENDOR,THE PORTSMOUTH SITTING SERVICE AND COMMUNITY CARE SERVICES LTD T/A ASSURED CARE,100201
Portsmouth City Council,PCC,Adult Social Care,Physical Support Older People (85+),Adult Services,Third Party Payments,Other establishments,08/06/2018,6226804,57.26,VENDOR,THE PORTSMOUTH SITTING SERVICE AND COMMUNITY CARE SERVICES LTD T/A ASSURED CARE,100201
Portsmouth City Council,PCC,Adult Social Care,Physical Support Older People (85+),Adult Services,Third Party Payments,Other establishments,08/06/2018,6226804,687.12,VENDOR,THE PORTSMOUTH SITTING SERVICE AND COMMUNITY CARE SERVICES LTD T/A ASSURED CARE,100201
Portsmouth City Council,PCC,Adult Social Care,Social Support - Support for Carer,Adult Services,Third Party Payments,Other establishments,08/06/2018,6226804,253.44,VENDOR,THE PORTSMOUTH SITTING SERVICE AND COMMUNITY CARE SERVICES LTD T/A ASSURED CARE,100201
Portsmouth City Council,PCC,Adult Social Care,Physical Support Older People (85+),Adult Services,Third Party Payments,Other establishments,08/06/2018,6226804,458.08,VENDOR,THE PORTSMOUTH SITTING SERVICE AND COMMUNITY CARE SERVICES LTD T/A ASSURED CARE,100201
Portsmouth City Council,PCC,Adult Social Care,Physical Support Older People (85+),Adult Services,Third Party Payments,Other establishments,08/06/2018,6226804,1145.2,VENDOR,THE PORTSMOUTH SITTING SERVICE AND COMMUNITY CARE SERVICES LTD T/A ASSURED CARE,100201
Portsmouth City Council,PCC,Adult Social Care,Physical Support Older People (85+),Adult Services,Third Party Payments,Other establishments,08/06/2018,6226804,98.56,VENDOR,THE PORTSMOUTH SITTING SERVICE AND COMMUNITY CARE SERVICES LTD T/A ASSURED CARE,100201
Portsmouth City Council,PCC,Adult Social Care,Physical Support Older People (85+),Adult Services,Third Party Payments,Other establishments,08/06/2018,6226804,704,VENDOR,THE PORTSMOUTH SITTING SERVICE AND COMMUNITY CARE SERVICES LTD T/A ASSURED CARE,100201
Portsmouth City Council,PCC,Adult Social Care,Physical Support Older People (85+),Adult Services,Third Party Payments,Other establishments,08/06/2018,6226804,1497.27,VENDOR,THE PORTSMOUTH SITTING SERVICE AND COMMUNITY CARE SERVICES LTD T/A ASSURED CARE,100201
Portsmouth City Council,PCC,Adult Social Care,Physical Support Older People (85+),Adult Services,Third Party Payments,Other establishments,08/06/2018,6226804,130.88,VENDOR,THE PORTSMOUTH SITTING SERVICE AND COMMUNITY CARE SERVICES LTD T/A ASSURED CARE,100201
Portsmouth City Council,PCC,Adult Social Care,Social Support - Support for Carer,Adult Services,Third Party Payments,Other establishments,08/06/2018,6226804,337.92,VENDOR,THE PORTSMOUTH SITTING SERVICE AND COMMUNITY CARE SERVICES LTD T/A ASSURED CARE,100201
Portsmouth City Council,PCC,Adult Social Care,Social Support - Support for Carer,Adult Services,Third Party Payments,Other establishments,08/06/2018,6226804,309.76,VENDOR,THE PORTSMOUTH SITTING SERVICE AND COMMUNITY CARE SERVICES LTD T/A ASSURED CARE,100201
Portsmouth City Council,PCC,Adult Social Care,Physical Support Older People (85+),Adult Services,Third Party Payments,Other establishments,08/06/2018,6226804,8.18,VENDOR,THE PORTSMOUTH SITTING SERVICE AND COMMUNITY CARE SERVICES LTD T/A ASSURED CARE,100201
Portsmouth City Council,PCC,Cultural and Related Services,Culture and Heritage,Culture & City Development,Supplies and Services,"Equipment, furniture and materials",19/06/2018,6228288,709.81,VENDOR,MACMILLAN DISTRIBUTION LIMITED,104913
Portsmouth City Council,PCC,Housing Revenue Account,Repairs and Maintenance,"Housing, Neighbourhood and Building Services",Premises-Related Expenditure,"Repairs, alterations and maintenance of buildings",20/06/2018,6229238,9547.2,VENDOR,SANDBERG CONSULTING ENGINEERS,123873
Portsmouth City Council,PCC,Highways and Transport Services,Parking Services,Regeneration,Supplies and Services,Communications and computing,20/06/2018,6228812,3875,VENDOR,CONDUENT PARKING ENFORCEMENT SOLUTIONS LIMITED,113838
Portsmouth City Council,PCC,Children's and Education Services,Children Looked After,Children's Services and Education,Transport-Related Expenditure,Direct transport costs,15/06/2018,6227911,447.6,VENDOR,BARNARDO SERVICES LTD,107155
Portsmouth City Council,PCC,Children's and Education Services,Children Looked After,Children's Services and Education,Transport-Related Expenditure,Direct transport costs,15/06/2018,6227911,254.36,VENDOR,BARNARDO SERVICES LTD,107155
Portsmouth City Council,PCC,Children's and Education Services,Children Looked After,Children's Services and Education,Transport-Related Expenditure,Direct transport costs,15/06/2018,6227911,109.2,VENDOR,BARNARDO SERVICES LTD,107155
Portsmouth City Council,PCC,Children's and Education Services,Children Looked After,Children's Services and Education,Transport-Related Expenditure,Direct transport costs,15/06/2018,6227911,82.8,VENDOR,BARNARDO SERVICES LTD,107155
Portsmouth City Council,PCC,Children's and Education Services,Children Looked After,Children's Services and Education,Transport-Related Expenditure,Direct transport costs,15/06/2018,6227911,123.6,VENDOR,BARNARDO SERVICES LTD,107155
Portsmouth City Council,PCC,Children's and Education Services,Children Looked After,Children's Services and Education,Third Party Payments,Other establishments,14/06/2018,6227792,3484.36,VENDOR,BARNARDO SERVICES LTD,107155
Portsmouth City Council,PCC,Children's and Education Services,Children Looked After,Children's Services and Education,Third Party Payments,Other establishments,14/06/2018,6227792,3484.36,VENDOR,BARNARDO SERVICES LTD,107155
Portsmouth City Council,PCC,Cultural and Related Services,Culture and Heritage,Culture & City Development,Supplies and Services,"Equipment, furniture and materials",19/06/2018,6228288,93.53,VENDOR,MACMILLAN DISTRIBUTION LIMITED,104913
Portsmouth City Council,PCC,Housing Revenue Account,Supervision and Management,"Housing, Neighbourhood and Building Services",Supplies and Services,"Printing, stationery and general office expenses",06/06/2018,6226425,590,VENDOR,PORTSMOUTH.COM REMOVALS LTD,137147
Portsmouth City Council,PCC,Environmental and Regulatory Services,Agricultural and Fisheries Services,Portsmouth International Port,Third Party Payments,Private contractors,11/06/2018,6226926,2809.41,VENDOR,KEN BROWN BOATS LTD,100926
Portsmouth City Council,PCC,Environmental and Regulatory Services,Agricultural and Fisheries Services,Portsmouth International Port,Third Party Payments,Private contractors,11/06/2018,6226926,60.33,VENDOR,KEN BROWN BOATS LTD,100926
Portsmouth City Council,PCC,Environmental and Regulatory Services,Agricultural and Fisheries Services,Portsmouth International Port,Third Party Payments,Private contractors,28/06/2018,6230490,2809.41,VENDOR,KEN BROWN BOATS LTD,100926
Portsmouth City Council,PCC,Adult Social Care,Social Care Activities,Adult Services,Third Party Payments,Other establishments,15/06/2018,318668,186.31,VENDOR,SAFEGUARDING GP,137636
Portsmouth City Council,PCC,Adult Social Care,Social Care Activities,Adult Services,Third Party Payments,Other establishments,15/06/2018,318668,202.63,VENDOR,SAFEGUARDING GP,137636
Portsmouth City Council,PCC,Public Health,Sexual Health,Public Health,Third Party Payments,Other establishments,04/06/2018,6225835,2719.27,VENDOR,WESTERN SUSSEX HOSPITALS NHS FOUNDATION TRUST,139914
Portsmouth City Council,PCC,Adult Social Care,Physical Support Older People (85+),Adult Services,Third Party Payments,Other establishments,04/06/2018,6225781,495,VENDOR,KARE PLUS NATIONAL,142667
Portsmouth City Council,PCC,Adult Social Care,Physical Support Older People (85+),Adult Services,Third Party Payments,Other establishments,12/06/2018,6227129,540.45,VENDOR,KARE PLUS NATIONAL,142667
Portsmouth City Council,PCC,Cultural and Related Services,Open Spaces,Culture & City Development,Premises-Related Expenditure,"Repairs, alterations and maintenance of buildings",20/06/2018,6229232,2505,COMPANY,REDS BUILDERS LTD,108228
Portsmouth City Council,PCC,Adult Social Care,Physical Support Older People (85+),Adult Services,Third Party Payments,Other establishments,12/06/2018,6227129,511.5,VENDOR,KARE PLUS NATIONAL,142667
Portsmouth City Council,PCC,Cultural and Related Services,Open Spaces,Culture & City Development,Premises-Related Expenditure,"Repairs, alterations and maintenance of buildings",15/06/2018,6227999,745,COMPANY,REDS BUILDERS LTD,108228
Portsmouth City Council,PCC,Other,Suspense and Capital Schemes,Capital - Education,Capital Charges,REFCUS,27/06/2018,6230355,2000,COMPANY,REDS BUILDERS LTD,108228
Portsmouth City Council,PCC,Other,Suspense and Capital Schemes,Capital - Culture Leisure & Sport,Capital Charges,Capital Expenditure (WIP),04/06/2018,6225800,6168.5,COMPANY,REDS BUILDERS LTD,108228
Portsmouth City Council,PCC,Adult Social Care,Physical Support Adults (18 - 64),Adult Services,Third Party Payments,Other establishments,12/06/2018,6227129,602.25,VENDOR,KARE PLUS NATIONAL,142667
Portsmouth City Council,PCC,Adult Social Care,Social Support - Support for Carer,Adult Services,Third Party Payments,Other establishments,05/06/2018,6225910,98.16,VENDOR,KARE PLUS NATIONAL,142667
Portsmouth City Council,PCC,Adult Social Care,Social Support - Support for Carer,Adult Services,Third Party Payments,Other establishments,05/06/2018,6225910,-13.68,VENDOR,KARE PLUS NATIONAL,142667
Portsmouth City Council,PCC,Adult Social Care,Social Support - Support for Carer,Adult Services,Third Party Payments,Other establishments,04/06/2018,6225781,65.44,VENDOR,KARE PLUS NATIONAL,142667
Portsmouth City Council,PCC,Adult Social Care,Social Support - Support for Carer,Adult Services,Third Party Payments,Other establishments,05/06/2018,6225910,-9.12,VENDOR,KARE PLUS NATIONAL,142667
Portsmouth City Council,PCC,Adult Social Care,Social Support - Support for Carer,Adult Services,Third Party Payments,Other establishments,04/06/2018,6225781,98.16,VENDOR,KARE PLUS NATIONAL,142667
Portsmouth City Council,PCC,Adult Social Care,Social Support - Support for Carer,Adult Services,Third Party Payments,Other establishments,04/06/2018,6225781,-13.68,VENDOR,KARE PLUS NATIONAL,142667
Portsmouth City Council,PCC,Adult Social Care,Social Support - Support for Carer,Adult Services,Third Party Payments,Other establishments,04/06/2018,6225781,98.16,VENDOR,KARE PLUS NATIONAL,142667
Portsmouth City Council,PCC,Adult Social Care,Social Support - Support for Carer,Adult Services,Third Party Payments,Other establishments,04/06/2018,6225781,-13.68,VENDOR,KARE PLUS NATIONAL,142667
Portsmouth City Council,PCC,Adult Social Care,Social Support - Support for Carer,Adult Services,Third Party Payments,Other establishments,04/06/2018,6225781,98.16,VENDOR,KARE PLUS NATIONAL,142667
Portsmouth City Council,PCC,Adult Social Care,Social Support - Support for Carer,Adult Services,Third Party Payments,Other establishments,04/06/2018,6225781,-13.68,VENDOR,KARE PLUS NATIONAL,142667
Portsmouth City Council,PCC,Adult Social Care,Social Support - Support for Carer,Adult Services,Third Party Payments,Other establishments,04/06/2018,6225781,98.16,VENDOR,KARE PLUS NATIONAL,142667
Portsmouth City Council,PCC,Adult Social Care,Social Support - Support for Carer,Adult Services,Third Party Payments,Other establishments,04/06/2018,6225781,-13.68,VENDOR,KARE PLUS NATIONAL,142667
Portsmouth City Council,PCC,Adult Social Care,Social Support - Support for Carer,Adult Services,Third Party Payments,Other establishments,04/06/2018,6225781,65.44,VENDOR,KARE PLUS NATIONAL,142667
Portsmouth City Council,PCC,Adult Social Care,Social Support - Support for Carer,Adult Services,Third Party Payments,Other establishments,04/06/2018,6225781,-9.12,VENDOR,KARE PLUS NATIONAL,142667
Portsmouth City Council,PCC,Adult Social Care,Social Support - Support for Carer,Adult Services,Third Party Payments,Other establishments,04/06/2018,6225781,98.16,VENDOR,KARE PLUS NATIONAL,142667
Portsmouth City Council,PCC,Adult Social Care,Social Support - Support for Carer,Adult Services,Third Party Payments,Other establishments,04/06/2018,6225781,65.44,VENDOR,KARE PLUS NATIONAL,142667
Portsmouth City Council,PCC,Adult Social Care,Social Support - Support for Carer,Adult Services,Third Party Payments,Other establishments,04/06/2018,6225781,98.16,VENDOR,KARE PLUS NATIONAL,142667
Portsmouth City Council,PCC,Adult Social Care,Social Support - Support for Carer,Adult Services,Third Party Payments,Other establishments,04/06/2018,6225781,98.16,VENDOR,KARE PLUS NATIONAL,142667
Portsmouth City Council,PCC,Adult Social Care,Social Support - Support for Carer,Adult Services,Third Party Payments,Other establishments,04/06/2018,6225781,-13.68,VENDOR,KARE PLUS NATIONAL,142667
Portsmouth City Council,PCC,Adult Social Care,Social Support - Support for Carer,Adult Services,Third Party Payments,Other establishments,04/06/2018,6225781,98.16,VENDOR,KARE PLUS NATIONAL,142667
Portsmouth City Council,PCC,Adult Social Care,Social Support - Support for Carer,Adult Services,Third Party Payments,Other establishments,04/06/2018,6225781,-13.68,VENDOR,KARE PLUS NATIONAL,142667
Portsmouth City Council,PCC,Adult Social Care,Social Support - Support for Carer,Adult Services,Third Party Payments,Other establishments,04/06/2018,6225781,98.16,VENDOR,KARE PLUS NATIONAL,142667
Portsmouth City Council,PCC,Adult Social Care,Social Support - Support for Carer,Adult Services,Third Party Payments,Other establishments,04/06/2018,6225781,-13.68,VENDOR,KARE PLUS NATIONAL,142667
Portsmouth City Council,PCC,Adult Social Care,Physical Support Adults (18 - 64),Adult Services,Third Party Payments,Other establishments,11/06/2018,6226925,638.04,VENDOR,KARE PLUS NATIONAL,142667
Portsmouth City Council,PCC,Adult Social Care,Social Support - Support for Carer,Adult Services,Third Party Payments,Other establishments,04/06/2018,6225781,98.16,VENDOR,KARE PLUS NATIONAL,142667
Portsmouth City Council,PCC,Adult Social Care,Social Support - Support for Carer,Adult Services,Third Party Payments,Other establishments,04/06/2018,6225781,65.44,VENDOR,KARE PLUS NATIONAL,142667
Portsmouth City Council,PCC,Adult Social Care,Social Support - Support for Carer,Adult Services,Third Party Payments,Other establishments,05/06/2018,6225910,98.16,VENDOR,KARE PLUS NATIONAL,142667
Portsmouth City Council,PCC,Adult Social Care,Social Support - Support for Carer,Adult Services,Third Party Payments,Other establishments,05/06/2018,6225910,-13.68,VENDOR,KARE PLUS NATIONAL,142667
Portsmouth City Council,PCC,Adult Social Care,Social Support - Support for Carer,Adult Services,Third Party Payments,Other establishments,05/06/2018,6225910,65.44,VENDOR,KARE PLUS NATIONAL,142667
Portsmouth City Council,PCC,Adult Social Care,Social Support - Support for Carer,Adult Services,Third Party Payments,Other establishments,05/06/2018,6225910,-9.12,VENDOR,KARE PLUS NATIONAL,142667
Portsmouth City Council,PCC,Adult Social Care,Social Care Activities,Adult Services,Third Party Payments,Other establishments,08/06/2018,6226738,302.66,VENDOR,KARE PLUS NATIONAL,142667
Portsmouth City Council,PCC,Adult Social Care,Social Support - Support for Carer,Adult Services,Third Party Payments,Other establishments,05/06/2018,6225910,98.16,VENDOR,KARE PLUS NATIONAL,142667
Portsmouth City Council,PCC,Adult Social Care,Social Support - Support for Carer,Adult Services,Third Party Payments,Other establishments,05/06/2018,6225910,-13.68,VENDOR,KARE PLUS NATIONAL,142667
Portsmouth City Council,PCC,Adult Social Care,Social Support - Support for Carer,Adult Services,Third Party Payments,Other establishments,04/06/2018,6225781,98.16,VENDOR,KARE PLUS NATIONAL,142667
Portsmouth City Council,PCC,Adult Social Care,Social Support - Support for Carer,Adult Services,Third Party Payments,Other establishments,04/06/2018,6225781,-13.68,VENDOR,KARE PLUS NATIONAL,142667
Portsmouth City Council,PCC,Adult Social Care,Social Support - Support for Carer,Adult Services,Third Party Payments,Other establishments,04/06/2018,6225781,98.16,VENDOR,KARE PLUS NATIONAL,142667
Portsmouth City Council,PCC,Adult Social Care,Social Support - Support for Carer,Adult Services,Third Party Payments,Other establishments,04/06/2018,6225781,-13.68,VENDOR,KARE PLUS NATIONAL,142667
Portsmouth City Council,PCC,Adult Social Care,Social Support - Support for Carer,Adult Services,Third Party Payments,Other establishments,05/06/2018,6225910,130.88,VENDOR,KARE PLUS NATIONAL,142667
Portsmouth City Council,PCC,Adult Social Care,Social Support - Support for Carer,Adult Services,Third Party Payments,Other establishments,05/06/2018,6225910,-18.24,VENDOR,KARE PLUS NATIONAL,142667
Portsmouth City Council,PCC,Adult Social Care,Social Support - Support for Carer,Adult Services,Third Party Payments,Other establishments,11/06/2018,6226925,65.44,VENDOR,KARE PLUS NATIONAL,142667
Portsmouth City Council,PCC,Adult Social Care,Social Care Activities,Adult Services,Third Party Payments,Other establishments,08/06/2018,6226738,400.82,VENDOR,KARE PLUS NATIONAL,142667
Portsmouth City Council,PCC,Adult Social Care,Social Support - Support for Carer,Adult Services,Third Party Payments,Other establishments,05/06/2018,6225910,98.16,VENDOR,KARE PLUS NATIONAL,142667
Portsmouth City Council,PCC,Adult Social Care,Social Support - Support for Carer,Adult Services,Third Party Payments,Other establishments,05/06/2018,6225910,-13.68,VENDOR,KARE PLUS NATIONAL,142667
Portsmouth City Council,PCC,Adult Social Care,Social Support - Support for Carer,Adult Services,Third Party Payments,Other establishments,04/06/2018,6225781,98.16,VENDOR,KARE PLUS NATIONAL,142667
Portsmouth City Council,PCC,Adult Social Care,Social Support - Support for Carer,Adult Services,Third Party Payments,Other establishments,04/06/2018,6225781,-13.68,VENDOR,KARE PLUS NATIONAL,142667
Portsmouth City Council,PCC,Adult Social Care,Social Support - Support for Carer,Adult Services,Third Party Payments,Other establishments,04/06/2018,6225781,98.16,VENDOR,KARE PLUS NATIONAL,142667
Portsmouth City Council,PCC,Adult Social Care,Social Support - Support for Carer,Adult Services,Third Party Payments,Other establishments,04/06/2018,6225781,-13.68,VENDOR,KARE PLUS NATIONAL,142667
Portsmouth City Council,PCC,Adult Social Care,Social Support - Support for Carer,Adult Services,Third Party Payments,Other establishments,05/06/2018,6225910,98.16,VENDOR,KARE PLUS NATIONAL,142667
Portsmouth City Council,PCC,Adult Social Care,Social Support - Support for Carer,Adult Services,Third Party Payments,Other establishments,05/06/2018,6225910,-55.92,VENDOR,KARE PLUS NATIONAL,142667
Portsmouth City Council,PCC,Adult Social Care,Social Care Activities,Adult Services,Third Party Payments,Other establishments,05/06/2018,6225910,669.5,VENDOR,KARE PLUS NATIONAL,142667
Portsmouth City Council,PCC,Adult Social Care,Social Care Activities,Adult Services,Third Party Payments,Other establishments,05/06/2018,6225910,112.64,VENDOR,KARE PLUS NATIONAL,142667
Portsmouth City Council,PCC,Adult Social Care,Social Care Activities,Adult Services,Third Party Payments,Other establishments,05/06/2018,6225910,19.5,VENDOR,KARE PLUS NATIONAL,142667
Portsmouth City Council,PCC,Adult Social Care,Social Care Activities,Adult Services,Third Party Payments,Other establishments,05/06/2018,6225910,-111.72,VENDOR,KARE PLUS NATIONAL,142667
Portsmouth City Council,PCC,Adult Social Care,Physical Support Adults (18 - 64),Adult Services,Third Party Payments,Other establishments,06/06/2018,6226407,458.08,VENDOR,KARE PLUS NATIONAL,142667
Portsmouth City Council,PCC,Adult Social Care,Social Care Activities,Adult Services,Third Party Payments,Other establishments,06/06/2018,6226407,6217.5,VENDOR,KARE PLUS NATIONAL,142667
Portsmouth City Council,PCC,Adult Social Care,Physical Support Older People (85+),Adult Services,Third Party Payments,Other establishments,06/06/2018,6226407,306.75,VENDOR,KARE PLUS NATIONAL,142667
Portsmouth City Council,PCC,Adult Social Care,Social Support - Support for Carer,Adult Services,Third Party Payments,Other establishments,04/06/2018,6225781,98.16,VENDOR,KARE PLUS NATIONAL,142667
Portsmouth City Council,PCC,Adult Social Care,Physical Support Older People (85+),Adult Services,Third Party Payments,Other establishments,06/06/2018,6226407,417.18,VENDOR,KARE PLUS NATIONAL,142667
Portsmouth City Council,PCC,Adult Social Care,Physical Support Older People (85+),Adult Services,Third Party Payments,Other establishments,11/06/2018,6226925,515.34,VENDOR,KARE PLUS NATIONAL,142667
Portsmouth City Council,PCC,Adult Social Care,Physical Support Older People (85+),Adult Services,Third Party Payments,Other establishments,06/06/2018,6226407,85.89,VENDOR,KARE PLUS NATIONAL,142667
Portsmouth City Council,PCC,Adult Social Care,Physical Support Adults (18 - 64),Adult Services,Third Party Payments,Other establishments,06/06/2018,6226407,572.6,VENDOR,KARE PLUS NATIONAL,142667
Portsmouth City Council,PCC,Adult Social Care,Physical Support Adults (18 - 64),Adult Services,Third Party Payments,Other establishments,06/06/2018,6226407,523.52,VENDOR,KARE PLUS NATIONAL,142667
Portsmouth City Council,PCC,Adult Social Care,Physical Support Older People (85+),Adult Services,Third Party Payments,Other establishments,06/06/2018,6226407,40.9,VENDOR,KARE PLUS NATIONAL,142667
Portsmouth City Council,PCC,Adult Social Care,Social Support - Support for Carer,Adult Services,Third Party Payments,Other establishments,04/06/2018,6225781,98.16,VENDOR,KARE PLUS NATIONAL,142667
Portsmouth City Council,PCC,Adult Social Care,Social Support - Support for Carer,Adult Services,Third Party Payments,Other establishments,04/06/2018,6225781,65.44,VENDOR,KARE PLUS NATIONAL,142667
Portsmouth City Council,PCC,Adult Social Care,Social Care Activities,Adult Services,Third Party Payments,Other establishments,08/06/2018,6226738,400.82,VENDOR,KARE PLUS NATIONAL,142667
Portsmouth City Council,PCC,Adult Social Care,Physical Support Adults (18 - 64),Adult Services,Third Party Payments,Other establishments,06/06/2018,6226407,114.52,VENDOR,KARE PLUS NATIONAL,142667
Portsmouth City Council,PCC,Adult Social Care,Physical Support Older People (85+),Adult Services,Third Party Payments,Other establishments,06/06/2018,6226407,65.44,VENDOR,KARE PLUS NATIONAL,142667
Portsmouth City Council,PCC,Adult Social Care,Social Support - Support for Carer,Adult Services,Third Party Payments,Other establishments,04/06/2018,6225781,98.16,VENDOR,KARE PLUS NATIONAL,142667
Portsmouth City Council,PCC,Adult Social Care,Physical Support Older People (85+),Adult Services,Third Party Payments,Other establishments,06/06/2018,6226407,515.34,VENDOR,KARE PLUS NATIONAL,142667
Portsmouth City Council,PCC,Adult Social Care,Physical Support Older People (85+),Adult Services,Third Party Payments,Other establishments,06/06/2018,6226407,466.26,VENDOR,KARE PLUS NATIONAL,142667
Portsmouth City Council,PCC,Adult Social Care,Social Care Activities,Adult Services,Third Party Payments,Other establishments,06/06/2018,6226407,171.78,VENDOR,KARE PLUS NATIONAL,142667
Portsmouth City Council,PCC,Adult Social Care,Physical Support Older People (85+),Adult Services,Third Party Payments,Other establishments,06/06/2018,6226407,515.34,VENDOR,KARE PLUS NATIONAL,142667
Portsmouth City Council,PCC,Adult Social Care,Social Care Activities,Adult Services,Third Party Payments,Other establishments,06/06/2018,6226407,96,VENDOR,KARE PLUS NATIONAL,142667
Portsmouth City Council,PCC,Adult Social Care,Physical Support Adults (18 - 64),Adult Services,Third Party Payments,Other establishments,06/06/2018,6226407,457.8,VENDOR,KARE PLUS NATIONAL,142667
Portsmouth City Council,PCC,Adult Social Care,Physical Support Older People (85+),Adult Services,Third Party Payments,Other establishments,06/06/2018,6226407,33,VENDOR,KARE PLUS NATIONAL,142667
Portsmouth City Council,PCC,Adult Social Care,Social Support - Support for Carer,Adult Services,Third Party Payments,Other establishments,04/06/2018,6225781,98.16,VENDOR,KARE PLUS NATIONAL,142667
Portsmouth City Council,PCC,Adult Social Care,Physical Support Older People (85+),Adult Services,Third Party Payments,Other establishments,06/06/2018,6226407,458.08,VENDOR,KARE PLUS NATIONAL,142667
Portsmouth City Council,PCC,Adult Social Care,Social Support - Support for Carer,Adult Services,Third Party Payments,Other establishments,04/06/2018,6225781,98.16,VENDOR,KARE PLUS NATIONAL,142667
Portsmouth City Council,PCC,Adult Social Care,Social Support - Support for Carer,Adult Services,Third Party Payments,Other establishments,04/06/2018,6225781,-13.68,VENDOR,KARE PLUS NATIONAL,142667
Portsmouth City Council,PCC,Adult Social Care,Social Support - Support for Carer,Adult Services,Third Party Payments,Other establishments,04/06/2018,6225781,98.16,VENDOR,KARE PLUS NATIONAL,142667
Portsmouth City Council,PCC,Adult Social Care,Physical Support Adults (18 - 64),Adult Services,Third Party Payments,Other establishments,06/06/2018,6226407,572.6,VENDOR,KARE PLUS NATIONAL,142667
Portsmouth City Council,PCC,Adult Social Care,Social Care Activities,Adult Services,Third Party Payments,Other establishments,06/06/2018,6226407,71.73,VENDOR,KARE PLUS NATIONAL,142667
Portsmouth City Council,PCC,Adult Social Care,Social Care Activities,Adult Services,Third Party Payments,Other establishments,06/06/2018,6226407,288,VENDOR,KARE PLUS NATIONAL,142667
Portsmouth City Council,PCC,Adult Social Care,Social Care Activities,Adult Services,Third Party Payments,Other establishments,06/06/2018,6226407,48.27,VENDOR,KARE PLUS NATIONAL,142667
Portsmouth City Council,PCC,Adult Social Care,Physical Support Older People (85+),Adult Services,Third Party Payments,Other establishments,06/06/2018,6226407,744.38,VENDOR,KARE PLUS NATIONAL,142667
Portsmouth City Council,PCC,Adult Social Care,Physical Support Older People (85+),Adult Services,Third Party Payments,Other establishments,06/06/2018,6226407,57.26,VENDOR,KARE PLUS NATIONAL,142667
Portsmouth City Council,PCC,Adult Social Care,Physical Support Older People (65-74),Adult Services,Third Party Payments,Other establishments,06/06/2018,6226407,241.31,VENDOR,KARE PLUS NATIONAL,142667
Portsmouth City Council,PCC,Adult Social Care,Social Support - Support for Carer,Adult Services,Third Party Payments,Other establishments,04/06/2018,6225781,98.16,VENDOR,KARE PLUS NATIONAL,142667
Portsmouth City Council,PCC,Adult Social Care,Social Support - Support for Carer,Adult Services,Third Party Payments,Other establishments,04/06/2018,6225781,-13.68,VENDOR,KARE PLUS NATIONAL,142667
Portsmouth City Council,PCC,Adult Social Care,Mental Health Support Older People (65 - 74),Adult Services,Third Party Payments,Other establishments,06/06/2018,6226407,32.72,VENDOR,KARE PLUS NATIONAL,142667
Portsmouth City Council,PCC,Adult Social Care,Physical Support Older People (85+),Adult Services,Third Party Payments,Other establishments,06/06/2018,6226407,257.67,VENDOR,KARE PLUS NATIONAL,142667
Portsmouth City Council,PCC,Adult Social Care,Social Care Activities,Adult Services,Third Party Payments,Other establishments,06/06/2018,6226407,281.49,VENDOR,KARE PLUS NATIONAL,142667
Portsmouth City Council,PCC,Adult Social Care,Physical Support Adults (18 - 64),Adult Services,Third Party Payments,Other establishments,06/06/2018,6226407,515.34,VENDOR,KARE PLUS NATIONAL,142667
Portsmouth City Council,PCC,Adult Social Care,Physical Support Older People (85+),Adult Services,Third Party Payments,Other establishments,06/06/2018,6226407,85.89,VENDOR,KARE PLUS NATIONAL,142667
Portsmouth City Council,PCC,Adult Social Care,Social Support - Support for Carer,Adult Services,Third Party Payments,Other establishments,04/06/2018,6225781,65.44,VENDOR,KARE PLUS NATIONAL,142667
Portsmouth City Council,PCC,Adult Social Care,Social Support - Support for Carer,Adult Services,Third Party Payments,Other establishments,04/06/2018,6225781,-9.12,VENDOR,KARE PLUS NATIONAL,142667
Portsmouth City Council,PCC,Adult Social Care,Social Care Activities,Adult Services,Third Party Payments,Other establishments,06/06/2018,6226407,571.34,VENDOR,KARE PLUS NATIONAL,142667
Portsmouth City Council,PCC,Adult Social Care,Social Care Activities,Adult Services,Third Party Payments,Other establishments,06/06/2018,6226407,112.64,VENDOR,KARE PLUS NATIONAL,142667
Portsmouth City Council,PCC,Adult Social Care,Social Care Activities,Adult Services,Third Party Payments,Other establishments,06/06/2018,6226407,19.5,VENDOR,KARE PLUS NATIONAL,142667
Portsmouth City Council,PCC,Adult Social Care,Physical Support Adults (18 - 64),Adult Services,Third Party Payments,Other establishments,12/06/2018,6227129,458.08,VENDOR,KARE PLUS NATIONAL,142667
Portsmouth City Council,PCC,Adult Social Care,Social Care Activities,Adult Services,Third Party Payments,Other establishments,12/06/2018,6227129,6216,VENDOR,KARE PLUS NATIONAL,142667
Portsmouth City Council,PCC,Adult Social Care,Physical Support Older People (85+),Adult Services,Third Party Payments,Other establishments,12/06/2018,6227129,306.75,VENDOR,KARE PLUS NATIONAL,142667
Portsmouth City Council,PCC,Adult Social Care,Social Support - Support for Carer,Adult Services,Third Party Payments,Other establishments,12/06/2018,6227129,42.24,VENDOR,KARE PLUS NATIONAL,142667
Portsmouth City Council,PCC,Adult Social Care,Physical Support Older People (85+),Adult Services,Third Party Payments,Other establishments,12/06/2018,6227129,400.82,VENDOR,KARE PLUS NATIONAL,142667
Portsmouth City Council,PCC,Children's and Education Services,Children Looked After,Children's Services and Education,Third Party Payments,Private contractors,27/06/2018,6230308,675,VENDOR,HEMISPHERES MOVEMENT FOR LEARNING LIMITED,143464
Portsmouth City Council,PCC,Adult Social Care,Physical Support Older People (85+),Adult Services,Third Party Payments,Other establishments,12/06/2018,6227129,85.89,VENDOR,KARE PLUS NATIONAL,142667
Portsmouth City Council,PCC,Adult Social Care,Physical Support Adults (18 - 64),Adult Services,Third Party Payments,Other establishments,12/06/2018,6227129,572.6,VENDOR,KARE PLUS NATIONAL,142667
Portsmouth City Council,PCC,Adult Social Care,Physical Support Adults (18 - 64),Adult Services,Third Party Payments,Other establishments,12/06/2018,6227129,523.52,VENDOR,KARE PLUS NATIONAL,142667
Portsmouth City Council,PCC,Adult Social Care,Physical Support Older People (85+),Adult Services,Third Party Payments,Other establishments,12/06/2018,6227129,40.9,VENDOR,KARE PLUS NATIONAL,142667
Portsmouth City Council,PCC,Adult Social Care,Social Support - Support for Carer,Adult Services,Third Party Payments,Other establishments,12/06/2018,6227129,56.32,VENDOR,KARE PLUS NATIONAL,142667
Portsmouth City Council,PCC,Adult Social Care,Physical Support Adults (18 - 64),Adult Services,Third Party Payments,Other establishments,12/06/2018,6227129,98.16,VENDOR,KARE PLUS NATIONAL,142667
Portsmouth City Council,PCC,Adult Social Care,Physical Support Older People (85+),Adult Services,Third Party Payments,Other establishments,12/06/2018,6227129,49.08,VENDOR,KARE PLUS NATIONAL,142667
Portsmouth City Council,PCC,Adult Social Care,Social Support - Support for Carer,Adult Services,Third Party Payments,Other establishments,12/06/2018,6227129,84.48,VENDOR,KARE PLUS NATIONAL,142667
Portsmouth City Council,PCC,Adult Social Care,Physical Support Older People (85+),Adult Services,Third Party Payments,Other establishments,12/06/2018,6227129,32.72,VENDOR,KARE PLUS NATIONAL,142667
Portsmouth City Council,PCC,Adult Social Care,Physical Support Older People (85+),Adult Services,Third Party Payments,Other establishments,12/06/2018,6227129,515.34,VENDOR,KARE PLUS NATIONAL,142667
Portsmouth City Council,PCC,Adult Social Care,Physical Support Older People (85+),Adult Services,Third Party Payments,Other establishments,12/06/2018,6227129,466.26,VENDOR,KARE PLUS NATIONAL,142667
Portsmouth City Council,PCC,Adult Social Care,Social Care Activities,Adult Services,Third Party Payments,Other establishments,12/06/2018,6227129,171.78,VENDOR,KARE PLUS NATIONAL,142667
Portsmouth City Council,PCC,Adult Social Care,Physical Support Older People (85+),Adult Services,Third Party Payments,Other establishments,12/06/2018,6227129,515.34,VENDOR,KARE PLUS NATIONAL,142667
Portsmouth City Council,PCC,Adult Social Care,Physical Support Adults (18 - 64),Adult Services,Third Party Payments,Other establishments,12/06/2018,6227129,453.24,VENDOR,KARE PLUS NATIONAL,142667
Portsmouth City Council,PCC,Adult Social Care,Physical Support Older People (85+),Adult Services,Third Party Payments,Other establishments,12/06/2018,6227129,33,VENDOR,KARE PLUS NATIONAL,142667
Portsmouth City Council,PCC,Adult Social Care,Social Support - Support for Carer,Adult Services,Third Party Payments,Other establishments,12/06/2018,6227129,84.48,VENDOR,KARE PLUS NATIONAL,142667
Portsmouth City Council,PCC,Adult Social Care,Physical Support Older People (85+),Adult Services,Third Party Payments,Other establishments,12/06/2018,6227129,458.08,VENDOR,KARE PLUS NATIONAL,142667
Portsmouth City Council,PCC,Adult Social Care,Social Support - Support for Carer,Adult Services,Third Party Payments,Other establishments,12/06/2018,6227129,84.48,VENDOR,KARE PLUS NATIONAL,142667
Portsmouth City Council,PCC,Adult Social Care,Social Support - Support for Carer,Adult Services,Third Party Payments,Other establishments,12/06/2018,6227129,49.08,VENDOR,KARE PLUS NATIONAL,142667
Portsmouth City Council,PCC,Adult Social Care,Physical Support Adults (18 - 64),Adult Services,Third Party Payments,Other establishments,12/06/2018,6227129,572.6,VENDOR,KARE PLUS NATIONAL,142667
Portsmouth City Council,PCC,Adult Social Care,Physical Support Older People (85+),Adult Services,Third Party Payments,Other establishments,12/06/2018,6227129,744.38,VENDOR,KARE PLUS NATIONAL,142667
Portsmouth City Council,PCC,Adult Social Care,Physical Support Older People (85+),Adult Services,Third Party Payments,Other establishments,12/06/2018,6227129,57.26,VENDOR,KARE PLUS NATIONAL,142667
Portsmouth City Council,PCC,Adult Social Care,Physical Support Older People (65-74),Adult Services,Third Party Payments,Other establishments,12/06/2018,6227129,257.67,VENDOR,KARE PLUS NATIONAL,142667
Portsmouth City Council,PCC,Adult Social Care,Social Support - Support for Carer,Adult Services,Third Party Payments,Other establishments,12/06/2018,6227129,84.48,VENDOR,KARE PLUS NATIONAL,142667
Portsmouth City Council,PCC,Adult Social Care,Mental Health Support Older People (65 - 74),Adult Services,Third Party Payments,Other establishments,12/06/2018,6227129,81.8,VENDOR,KARE PLUS NATIONAL,142667
Portsmouth City Council,PCC,Adult Social Care,Physical Support Older People (85+),Adult Services,Third Party Payments,Other establishments,12/06/2018,6227129,257.67,VENDOR,KARE PLUS NATIONAL,142667
Portsmouth City Council,PCC,Adult Social Care,Social Care Activities,Adult Services,Third Party Payments,Other establishments,12/06/2018,6227129,289.67,VENDOR,KARE PLUS NATIONAL,142667
Portsmouth City Council,PCC,Adult Social Care,Physical Support Adults (18 - 64),Adult Services,Third Party Payments,Other establishments,12/06/2018,6227129,433.54,VENDOR,KARE PLUS NATIONAL,142667
Portsmouth City Council,PCC,Adult Social Care,Physical Support Older People (85+),Adult Services,Third Party Payments,Other establishments,12/06/2018,6227129,85.89,VENDOR,KARE PLUS NATIONAL,142667
Portsmouth City Council,PCC,Adult Social Care,Social Support - Support for Carer,Adult Services,Third Party Payments,Other establishments,12/06/2018,6227129,56.32,VENDOR,KARE PLUS NATIONAL,142667
Portsmouth City Council,PCC,Adult Social Care,Social Care Activities,Adult Services,Third Party Payments,Other establishments,12/06/2018,6227129,553.1,VENDOR,KARE PLUS NATIONAL,142667
Portsmouth City Council,PCC,Adult Social Care,Social Care Activities,Adult Services,Third Party Payments,Other establishments,12/06/2018,6227129,112.64,VENDOR,KARE PLUS NATIONAL,142667
Portsmouth City Council,PCC,Adult Social Care,Social Care Activities,Adult Services,Third Party Payments,Other establishments,12/06/2018,6227129,19.5,VENDOR,KARE PLUS NATIONAL,142667
Portsmouth City Council,PCC,Adult Social Care,Physical Support Adults (18 - 64),Adult Services,Third Party Payments,Other establishments,18/06/2018,6228138,458.08,VENDOR,KARE PLUS NATIONAL,142667
Portsmouth City Council,PCC,Children's and Education Services,Children Looked After,Children's Services and Education,Third Party Payments,Other establishments,04/06/2018,6225761,2959.88,VENDOR,FAMILYPLACEMENT.COM LIMITED,137231
Portsmouth City Council,PCC,Adult Social Care,Social Care Activities,Adult Services,Third Party Payments,Other establishments,11/06/2018,6226925,6273,VENDOR,KARE PLUS NATIONAL,142667
Portsmouth City Council,PCC,Children's and Education Services,Children Looked After,Children's Services and Education,Third Party Payments,Other establishments,04/06/2018,6225761,2959.88,VENDOR,FAMILYPLACEMENT.COM LIMITED,137231
Portsmouth City Council,PCC,Adult Social Care,Physical Support Older People (85+),Adult Services,Third Party Payments,Other establishments,18/06/2018,6228138,298.57,VENDOR,KARE PLUS NATIONAL,142667
Portsmouth City Council,PCC,Adult Social Care,Social Support - Support for Carer,Adult Services,Third Party Payments,Other establishments,11/06/2018,6226925,98.16,VENDOR,KARE PLUS NATIONAL,142667
Portsmouth City Council,PCC,Adult Social Care,Physical Support Older People (85+),Adult Services,Third Party Payments,Other establishments,18/06/2018,6228138,388.55,VENDOR,KARE PLUS NATIONAL,142667
Portsmouth City Council,PCC,Adult Social Care,Physical Support Older People (85+),Adult Services,Third Party Payments,Other establishments,18/06/2018,6228138,85.89,VENDOR,KARE PLUS NATIONAL,142667
Portsmouth City Council,PCC,Adult Social Care,Physical Support Adults (18 - 64),Adult Services,Third Party Payments,Other establishments,18/06/2018,6228138,572.6,VENDOR,KARE PLUS NATIONAL,142667
Portsmouth City Council,PCC,Adult Social Care,Physical Support Adults (18 - 64),Adult Services,Third Party Payments,Other establishments,18/06/2018,6228138,523.52,VENDOR,KARE PLUS NATIONAL,142667
Portsmouth City Council,PCC,Adult Social Care,Physical Support Older People (85+),Adult Services,Third Party Payments,Other establishments,18/06/2018,6228138,8.18,VENDOR,KARE PLUS NATIONAL,142667
Portsmouth City Council,PCC,Adult Social Care,Social Support - Support for Carer,Adult Services,Third Party Payments,Other establishments,18/06/2018,6228138,56.32,VENDOR,KARE PLUS NATIONAL,142667
Portsmouth City Council,PCC,Adult Social Care,Social Care Activities,Adult Services,Third Party Payments,Other establishments,18/06/2018,6228138,400.82,VENDOR,KARE PLUS NATIONAL,142667
Portsmouth City Council,PCC,Cultural and Related Services,Open Spaces,Culture & City Development,Premises-Related Expenditure,Grounds maintenance costs,04/06/2018,6225702,3900.9,COMPANY,BARHILL PLANT LTD,100355
Portsmouth City Council,PCC,Adult Social Care,Physical Support Adults (18 - 64),Adult Services,Third Party Payments,Other establishments,18/06/2018,6228138,114.52,VENDOR,KARE PLUS NATIONAL,142667
Portsmouth City Council,PCC,Adult Social Care,Physical Support Older People (85+),Adult Services,Third Party Payments,Other establishments,18/06/2018,6228138,114.52,VENDOR,KARE PLUS NATIONAL,142667
Portsmouth City Council,PCC,Cultural and Related Services,Open Spaces,Culture & City Development,Premises-Related Expenditure,"Repairs, alterations and maintenance of buildings",04/06/2018,6225702,3063.54,COMPANY,BARHILL PLANT LTD,100355
Portsmouth City Council,PCC,Adult Social Care,Social Support - Support for Carer,Adult Services,Third Party Payments,Other establishments,11/06/2018,6226925,98.16,VENDOR,KARE PLUS NATIONAL,142667
Portsmouth City Council,PCC,Cultural and Related Services,Open Spaces,Culture & City Development,Premises-Related Expenditure,Grounds maintenance costs,04/06/2018,6225702,3273.8,COMPANY,BARHILL PLANT LTD,100355
Portsmouth City Council,PCC,Adult Social Care,Physical Support Older People (85+),Adult Services,Third Party Payments,Other establishments,18/06/2018,6228138,32.72,VENDOR,KARE PLUS NATIONAL,142667
Portsmouth City Council,PCC,Adult Social Care,Physical Support Older People (85+),Adult Services,Third Party Payments,Other establishments,18/06/2018,6228138,515.34,VENDOR,KARE PLUS NATIONAL,142667
Portsmouth City Council,PCC,Adult Social Care,Physical Support Older People (85+),Adult Services,Third Party Payments,Other establishments,18/06/2018,6228138,466.26,VENDOR,KARE PLUS NATIONAL,142667
Portsmouth City Council,PCC,Adult Social Care,Physical Support Older People (85+),Adult Services,Third Party Payments,Other establishments,18/06/2018,6228138,515.34,VENDOR,KARE PLUS NATIONAL,142667
Portsmouth City Council,PCC,Adult Social Care,Physical Support Adults (18 - 64),Adult Services,Third Party Payments,Other establishments,18/06/2018,6228138,446.2,VENDOR,KARE PLUS NATIONAL,142667
Portsmouth City Council,PCC,Adult Social Care,Physical Support Older People (85+),Adult Services,Third Party Payments,Other establishments,18/06/2018,6228138,33,VENDOR,KARE PLUS NATIONAL,142667
Portsmouth City Council,PCC,Adult Social Care,Social Support - Support for Carer,Adult Services,Third Party Payments,Other establishments,11/06/2018,6226925,98.16,VENDOR,KARE PLUS NATIONAL,142667
Portsmouth City Council,PCC,Adult Social Care,Physical Support Older People (85+),Adult Services,Third Party Payments,Other establishments,18/06/2018,6228138,458.08,VENDOR,KARE PLUS NATIONAL,142667
Portsmouth City Council,PCC,Cultural and Related Services,Open Spaces,Culture & City Development,Third Party Payments,Private contractors,11/06/2018,6226838,110,COMPANY,BARHILL PLANT LTD,100355
Portsmouth City Council,PCC,Adult Social Care,Social Support - Support for Carer,Adult Services,Third Party Payments,Other establishments,11/06/2018,6226925,98.16,VENDOR,KARE PLUS NATIONAL,142667
Portsmouth City Council,PCC,Cultural and Related Services,Open Spaces,Culture & City Development,Third Party Payments,Private contractors,11/06/2018,6226838,99.5,COMPANY,BARHILL PLANT LTD,100355
Portsmouth City Council,PCC,Adult Social Care,Physical Support Adults (18 - 64),Adult Services,Third Party Payments,Other establishments,18/06/2018,6228138,572.6,VENDOR,KARE PLUS NATIONAL,142667
Portsmouth City Council,PCC,Cultural and Related Services,Open Spaces,Culture & City Development,Third Party Payments,Private contractors,11/06/2018,6226838,3758.45,COMPANY,BARHILL PLANT LTD,100355
Portsmouth City Council,PCC,Adult Social Care,Physical Support Older People (85+),Adult Services,Third Party Payments,Other establishments,18/06/2018,6228138,744.38,VENDOR,KARE PLUS NATIONAL,142667
Portsmouth City Council,PCC,Cultural and Related Services,Open Spaces,Culture & City Development,Third Party Payments,Private contractors,11/06/2018,6226838,2626.86,COMPANY,BARHILL PLANT LTD,100355
Portsmouth City Council,PCC,Adult Social Care,Physical Support Older People (85+),Adult Services,Third Party Payments,Other establishments,18/06/2018,6228138,57.26,VENDOR,KARE PLUS NATIONAL,142667
Portsmouth City Council,PCC,Cultural and Related Services,Open Spaces,Culture & City Development,Third Party Payments,Private contractors,11/06/2018,6226838,692.5,COMPANY,BARHILL PLANT LTD,100355
Portsmouth City Council,PCC,Adult Social Care,Physical Support Older People (85+),Adult Services,Third Party Payments,Other establishments,18/06/2018,6228138,257.67,VENDOR,KARE PLUS NATIONAL,142667
Portsmouth City Council,PCC,Cultural and Related Services,Recreation and Sport,Culture & City Development,Premises-Related Expenditure,Grounds maintenance costs,11/06/2018,6226838,457.65,COMPANY,BARHILL PLANT LTD,100355
Portsmouth City Council,PCC,Adult Social Care,Social Support - Support for Carer,Adult Services,Third Party Payments,Other establishments,11/06/2018,6226925,98.16,VENDOR,KARE PLUS NATIONAL,142667
Portsmouth City Council,PCC,Cultural and Related Services,Open Spaces,Culture & City Development,Premises-Related Expenditure,Grounds maintenance costs,21/06/2018,6229290,2828.86,COMPANY,BARHILL PLANT LTD,100355
Portsmouth City Council,PCC,Adult Social Care,Mental Health Support Older People (65 - 74),Adult Services,Third Party Payments,Other establishments,18/06/2018,6228138,81.8,VENDOR,KARE PLUS NATIONAL,142667
Portsmouth City Council,PCC,Adult Social Care,Physical Support Older People (85+),Adult Services,Third Party Payments,Other establishments,18/06/2018,6228138,257.67,VENDOR,KARE PLUS NATIONAL,142667
Portsmouth City Council,PCC,Adult Social Care,Social Care Activities,Adult Services,Third Party Payments,Other establishments,18/06/2018,6228138,292.67,VENDOR,KARE PLUS NATIONAL,142667
Portsmouth City Council,PCC,Adult Social Care,Physical Support Adults (18 - 64),Adult Services,Third Party Payments,Other establishments,18/06/2018,6228138,400.82,VENDOR,KARE PLUS NATIONAL,142667
Portsmouth City Council,PCC,Adult Social Care,Physical Support Older People (85+),Adult Services,Third Party Payments,Other establishments,18/06/2018,6228138,85.89,VENDOR,KARE PLUS NATIONAL,142667
Portsmouth City Council,PCC,Adult Social Care,Social Support - Support for Carer,Adult Services,Third Party Payments,Other establishments,11/06/2018,6226925,65.44,VENDOR,KARE PLUS NATIONAL,142667
Portsmouth City Council,PCC,Adult Social Care,Social Support - Support for Carer,Adult Services,Third Party Payments,Other establishments,27/06/2018,6230321,112.64,VENDOR,KARE PLUS NATIONAL,142667
Portsmouth City Council,PCC,Adult Social Care,Physical Support Older People (85+),Adult Services,Third Party Payments,Other establishments,27/06/2018,6230321,114.52,VENDOR,KARE PLUS NATIONAL,142667
Portsmouth City Council,PCC,Adult Social Care,Social Support - Support for Carer,Adult Services,Third Party Payments,Other establishments,27/06/2018,6230321,98.56,VENDOR,KARE PLUS NATIONAL,142667
Portsmouth City Council,PCC,Children's and Education Services,Safeguarding Children and Young Peoples Services,Children's Services and Education,Third Party Payments,Private contractors,21/06/2018,6229385,1150,VENDOR,POSITIVE PRESS LTD,102488
Portsmouth City Council,PCC,Cultural and Related Services,Library Service,Culture & City Development,Supplies and Services,"Equipment, furniture and materials",13/06/2018,6227254,-4.94,VENDOR,ASKEWS & HOLTS LIBRARY SERVICES LIMITED,100128
Portsmouth City Council,PCC,Housing Services,Homelessness,"Housing, Neighbourhood and Building Services",Premises-Related Expenditure,Rents,25/06/2018,6229646,2400,SOLETRADER,Classified as 'personal data' (under the Data Protection Act 1998),137146
Portsmouth City Council,PCC,Housing Services,Homelessness,"Housing, Neighbourhood and Building Services",Premises-Related Expenditure,Rents,25/06/2018,6229628,4950,SOLETRADER,Classified as 'personal data' (under the Data Protection Act 1998),114064
Portsmouth City Council,PCC,Planning Services,Business support,Regeneration,Employees,Direct employee expenses,13/06/2018,6227726,241.32,VENDOR,OUTSHINE TELEPHONE TRAINING & RESOURCES LTD,131895
Portsmouth City Council,PCC,Planning Services,Business support,Regeneration,Employees,Direct employee expenses,13/06/2018,6227726,2450,VENDOR,OUTSHINE TELEPHONE TRAINING & RESOURCES LTD,131895
Portsmouth City Council,PCC,Planning Services,Business support,Regeneration,Employees,Direct employee expenses,26/06/2018,6229841,241.32,VENDOR,OUTSHINE TELEPHONE TRAINING & RESOURCES LTD,131895
Portsmouth City Council,PCC,Planning Services,Business support,Regeneration,Employees,Direct employee expenses,26/06/2018,6229841,2450,VENDOR,OUTSHINE TELEPHONE TRAINING & RESOURCES LTD,131895
Portsmouth City Council,PCC,Children's and Education Services,Safeguarding Children and Young Peoples Services,Children's Services and Education,Third Party Payments,Other establishments,12/06/2018,6227122,70,VENDOR,HORIZON CARE AND EDUCATION GROUP LTD,138450
Portsmouth City Council,PCC,Children's and Education Services,Children Looked After,Children's Services and Education,Third Party Payments,Other establishments,15/06/2018,6227968,1165.68,VENDOR,HORIZON CARE AND EDUCATION GROUP LTD,138450
Portsmouth City Council,PCC,Adult Social Care,Physical Support Older People (85+),Adult Services,Third Party Payments,Other establishments,08/06/2018,6226767,355.58,VENDOR,PLATINUM CARE SOLUTIONS,138675
Portsmouth City Council,PCC,Adult Social Care,Physical Support Older People (85+),Adult Services,Third Party Payments,Other establishments,08/06/2018,6226767,255.24,VENDOR,PLATINUM CARE SOLUTIONS,138675
Portsmouth City Council,PCC,Adult Social Care,Social Care Activities,Adult Services,Third Party Payments,Other establishments,08/06/2018,6226767,378,VENDOR,PLATINUM CARE SOLUTIONS,138675
Portsmouth City Council,PCC,Adult Social Care,Physical Support Older People (85+),Adult Services,Third Party Payments,Other establishments,08/06/2018,6226767,517.14,VENDOR,PLATINUM CARE SOLUTIONS,138675
Portsmouth City Council,PCC,Adult Social Care,Social Support - Support for Carer,Adult Services,Third Party Payments,Other establishments,08/06/2018,6226767,31.34,VENDOR,PLATINUM CARE SOLUTIONS,138675
Portsmouth City Council,PCC,Adult Social Care,Physical Support Older People (85+),Adult Services,Third Party Payments,Other establishments,08/06/2018,6226767,727.22,VENDOR,PLATINUM CARE SOLUTIONS,138675
Portsmouth City Council,PCC,Adult Social Care,Physical Support Older People (85+),Adult Services,Third Party Payments,Other establishments,08/06/2018,6226767,689.52,VENDOR,PLATINUM CARE SOLUTIONS,138675
Portsmouth City Council,PCC,Adult Social Care,Social Care Activities,Adult Services,Third Party Payments,Other establishments,08/06/2018,6226767,360.35,VENDOR,PLATINUM CARE SOLUTIONS,138675
Portsmouth City Council,PCC,Adult Social Care,Social Care Activities,Adult Services,Third Party Payments,Other establishments,08/06/2018,6226767,110.55,VENDOR,PLATINUM CARE SOLUTIONS,138675
Portsmouth City Council,PCC,Adult Social Care,Social Care Activities,Adult Services,Third Party Payments,Other establishments,08/06/2018,6226767,653.67,VENDOR,PLATINUM CARE SOLUTIONS,138675
Portsmouth City Council,PCC,Adult Social Care,Social Care Activities,Adult Services,Third Party Payments,Other establishments,08/06/2018,6226767,132.66,VENDOR,PLATINUM CARE SOLUTIONS,138675
